Workbook

Sheet 1. Instructions
A1: U. S. Environmental Protection Agency
A2: Clean School Bus (CSB) Grant Program
A3: Project Semi-Annual AND Final Reporting Template
A4: Burden Statement for EPA Form Number 5900-692
A5: This collection of information is approved by OMB under the Paperwork Reduction Act, 44 U.S.C. 3501 et seq. (OMB Control No. 2060-0754). Responses to this collection of information are voluntary (2 CFR 200 at 2 CFR 1500). An agency may not conduct or sponsor, and a person is not required to respond to, a collection of information unless it displays a currently valid OMB control number. The public reporting and recordkeeping burden for this collection of information is estimated to range from 12.6 to 14.2 hours per response. Send comments on the Agency’s need for this information, the accuracy of the provided burden estimates and any suggested methods for minimizing respondent burden to the Regulatory Support Division Director, U.S. Environmental Protection Agency (2821T), 1200 Pennsylvania Ave., NW, Washington, D.C. 20460. Include the OMB control number in any correspondence. Do not send the completed form to this address.
A6: Instructions
A7: Per grant agreement terms and conditions, this reporting template should be submitted 1) every 6 months throughout the project period of performance and 2) a Final Report (120-days after) the completion of the grant period. Please work with relevant parties (i.e., transportation contractor, bus dealer, etc.) to ensure information submitted is accurate. Information that is submitted on semi-annual reports should NOT be changed in future semi-annual report submissions unless approved by EPA. Please only update information for the specific quarter in which this report is being submitted. The grant recipient only needs to fill out shaded cells highlighted blue with a diagonal pattern (///). Cells highlighted yellow are simply for informative purposes and/or automated from other tabs in this spreadsheet. Please complete tabs in this workbook according to the instructions below.
A8: Excel Workbook Tab | B8: Definition
A9: 1. Instructions | B9: Basic instructions for all worksheets in this reporting workbook.
A10: 2. Work Plan | B10: The tab should be completed within the first month of working with your project officer and reflects the approved work plan. For school district applicants, only the first row of Table 2 will be completed. For third-party applicants, please list all school-district beneficiary information. Please refer to the School District data definitions on tab 12 (Data Dictionary) for additional guidance on each field.
A11: 3. Amendments | B11: The Amendments tab should be used to update any changes in bus numbers, charger numbers, and/or funding amounts post-award. Please update this tab on an annual basis at the end of each year of project performance and at project closeout.
A12: 4. Financial Summary | B12: Financial summary for the entire grant period of performance. Please only complete shaded cells highlighted blue with a diagonal pattern (///) that contain grantee and original project budget information. Other cells on this worksheet will automatically feed from information in tabs 3-5 (Year 1-Year 3). If a modification to the grant is approved, please update the financial tabs accordingly.
A13: 5. Year 1 | B13: Financial summary for the first year of the project period. For each semi-annual report, please complete all financial and narrative descriptive cells highlighted blue with a diagonal pattern (///) for each period the report is submitted. Other cells in this worksheet are informative or may be automated from subsequent tabs. Below the financial information, please ensure to complete the programmatic questions regarding the grant.
A14: 6. Year 2 | B14: Financial summary for the second year of the project period if grant period of performance is longer than one year. For each semi-annual report, please complete all shaded financial and narrative descriptive cells highlighted blue with a diagonal pattern (///) for each period the report is submitted. Other cells in this worksheet are informative or may be automated from subsequent tabs. Below the financial information, please ensure to complete the programmatic questions regarding the grant.
A15: 7. Year 3 | B15: Financial summary for the third year of the project period if grant period of performance is longer than two years. For each semi-annual report, please complete all shaded financial and narrative descriptive cells highlighted blue with a diagonal pattern (///) for each period the report is submitted. Other cells in this worksheet are informative or may be automated from subsequent tabs. Below the financial information, please ensure to complete the programmatic questions regarding the grant.
A16: 8 CSB Priorities | B16: The tab should be completed based upon environmental justice, community engagement, sustainability, workforce development, climate impact resiliency, and/or leveraging of additional external funds commitments defined in the proposed workplan. Please complete this tab SEMI-ANNUALLY, if the proposed workplan committed to ANY environmental justice, community engagement, sustainability, workforce development, climate impact resiliency, and/or leveraging of additional external funds commitments as referred to in the evaluation metrics defined in the NOFO. During each semi-annual reporting period of the project period of performance, please complete updates on these defined project commitments. The final report submission for the project should contain the end results of environmental justice, community engagement, sustainability, workforce development, climate impact resiliency, and/or leveraging of additional external funds commitments completed during the project period.
A17: 9. Fleet Description | B17: The Fleet Description should detail all vehicles impacted under the project. The Fleet Description should be updated semi-annually with all vehicle upgrades completed. Please only fill out shaded cells highlighted blue with a diagonal pattern (///). For third-party applicants, please list ALL school districts in this one worksheet. You do NOT need to make a separate worksheet for each school district. This Fleet Description is broken into two sections: 1) Current Vehicle Information and 2) New Vehicle Upgrade Information. The sheet has capacity for 100 vehicles. Please refer to the Fleet Description data definitions on tab 12 (Data Dictionary) for additional guidance on each field.
A18: 10. EV Infrastructure | B18: The EV Infrastructure Description should detail all electric vehicle supply equipment (EVSE) and supporting infrastructure purchased under the project. For third-party and large school districts applicants, the EV Infrastructure needs to be listed by school district and/or city. That is, if School District A and School District B are procuring the same EVSE, the EVSE Equipment Information with appear as two separate EV Infrastructure Groups. Similarly, for large school districts, if EV infrastructure is being installed in two different locations, the EVSE equipment information needs to appear as two separate EV Infrastructure Groups. The EV Infrastructure worksheet should be updated as EVSEs are procured and installed. Please only fill out shaded cells highlighted blue with a diagonal pattern (///); however, additional rows may be add as needed to capture all EVSEs. Please refer to the EV Infrastructure data definitions on Tab 12 (Data Dictionary) for data field definitions. Reminder: All Level 2 EVSEs must be ENERGY STAR certified.
A19: 11. Final Report | B19: Final project details including actual emission and programmatic results. Please only complete shaded cells highlighted blue with a diagonal pattern (///). Emissions results should be copy and pasted from DEQ results.
A20: 12. Data Dictionary | B20: Please refer to the dictionary on this tab for support in completing the Fleet Description (tab 9) and EV Infrastructure (tab 10).

Sheet 2. Work Plan
A1: U. S. Environmental Protection Agency
A2: Clean School Bus (CSB) Grant Program
A3: Work Plan
A5: Grant Recipient | B5: ='4. Financial Summary'!D5 -> 0 | F5: Financial Summary
A6: Program FY | B6: ='4. Financial Summary'!D6 -> 0 | F6: EPA Project Award Amount | H6: ='4. Financial Summary'!O5 -> 0
A7: Grant Number | B7: ='4. Financial Summary'!D7 -> 0 | F7: Estimated EPA Funds for Bus | I7: =SUM(I8:I10) -> 0 | J7: Estimated EPA Funds for EV Chargers | M7: =SUM(M8:M9) -> 0
A8: Project Title | B8: ='4. Financial Summary'!D9 -> 0 | F8: Estimated EPA Funds for CNG buses | J8: Estimated EPA Funds for AC Level 2 Chargers
F9: Estimated EPA Funds for Propane buses | J9: Estimated EPA Funds for DC Level 3 Chargers
F10: Estimated EPA Funds for Electric buses
A12: Instructions
A13: Please complete above Financial Summary and Tables 1-4 below on this tab using information from your approved workplan. The grant recipient only needs to fill out shaded cells highlighted blue. Cells highlighted yellow are simply for informative purposes and/or automated from other tabs in this spreadsheet.
A18: Table 1. Project Summary and Approach
A19: Please use the space provided to add a short narrative description of the project summary and approach to cover anything not captured in Table 2. Work Plan. Language from the Project Summary and Approach section of the application can be used here.
A23: Table 2. Work Plan
A24: Please complete the following table of information. For school district applicants, only the first row will be completed. For third-party applicants, please list all school-district beneficiary information. Please refer to the School District data definitions on tab 12 (Data Dictionary) for additional guidance on each field. If other leveraged funds are being used for the purchase of EV Charges, please include these chargers in the number counts (columns N and O), and then record $0 in cells M8 and M9 of the Financial Summary table above.
A25: School District Summary | J25: Proposed Fleet | N25: Proposed EV Chargers
A26: School District Name | B26: NCES # | C26: State | D26: County | E26: City | F26: Zip | G26: Prioritized | H26: Self-Certified as Prioritized | I26: Non-Attainment or Maintenance Area | J26: Proposed Number of CNG Buses | K26: Proposed Number of Propane Buses | L26: Proposed Number of Electric Buses | M26: Total Number of Buses | N26: Proposed Number of AC Level 2 Charger | O26: Proposed Number of DC Level 3 Charger | P26: Total Number of Chargers
A27: School District A | B27: 1234567 | C27: AZ | D27: Maricopa County | E27: Phoenix | F27: 85308 | G27: Yes | H27: Yes - Large SD with 80% Title I | I27: Yes | J27: 5 | K27: 5 | L27: 20 | M27: =SUM(J27:L27) -> 30 | N27: 10 | O27: 5 | P27: =SUM(N27:O27) -> 15
M28: =SUM(J28:L28) -> 0 | P28: =SUM(N28:O28) -> 0
M29: =SUM(J29:L29) -> 0 | P29: 0
M30: =SUM(J30:L30) -> 0 | P30: 0
M31: 0 | P31: =SUM(N31:O31) -> 0
M32: 0 | P32: 0
M33: 0 | P33: 0
M34: 0 | P34: 0
M35: 0 | P35: 0
M36: 0 | P36: 0
M37: 0 | P37: 0
M38: 0 | P38: 0
M39: =SUM(J39:L39) -> 0 | P39: 0
M40: 0 | P40: 0
M41: 0 | P41: 0
M42: 0 | P42: 0
M43: 0 | P43: 0
M44: 0 | P44: 0
M45: 0 | P45: 0
M46: 0 | P46: 0
M47: 0 | P47: 0
M48: 0 | P48: 0
M49: 0 | P49: 0
M50: 0 | P50: 0
M51: =SUM(J51:L51) -> 0 | P51: 0
A52: Totals | B52: =COUNT(B28:B51) -> 0 | G52: =COUNTIF(G28:G51,"Yes") -> 0 | H52: =COUNTIF(H28:H51,"Yes - Title I") + COUNTIF(H28:H51, "Yes - Large SD with 80% Title I") + COUNTIF(H28:H51, "Yes - Large SD with sub-group of Title I" ) -> 0 | I52: =COUNTIF(I28:I51,"Yes") -> 0 | J52: =SUM(J28:J51) -> 0 | K52: 0 | L52: 0 | M52: =SUM(M28:M51) -> 0 | N52: 0 | O52: 0 | P52: 0
A54: Table 3. CSB Priorities
A55: A. Community Engagement
A57: Does the workplan demonstrate actions and/or commitments to engage communities? If no, please jump to the next section, "Project Sustainability". If yes, please complete the rest of this section. | I57: (Y or N or N/A)
A58: 1. How does the workplan demonstrate engagement with the communities identified above, especially local residents, to ensure their meaningful participation with respect to the design, planning, and performance of the project?
A60: B. Project Sustainability
A62: Does the workplan demonstrate actions and/or commitments to promote sustainable project results and benefits? If no, please jump to the next section, "Workforce Development". If yes, please complete the rest of this section. | I62: (Y or N or N/A)
A63: 1. How does the workplan demonstrate that project results and benefits will be sustainable and that the applicant and project partners have the ability to promote and continue efforts to reduce emissions from school buses after EPA funding for the project has ended?
A65: C. Workforce Development
A67: Does the workplan demonstrate actions and/or commitments to promote workforce development? If no, please jump to the next section, "Project Resilience to Climate Impacts". If yes, please complete the rest of this section. | I67: (Y or N or N/A)
A68: 1. How does the workplan demonstrate a plan to prepare the workforce for the project?
A70: D. Project Resilience to Climate Impacts
A72: Does the workplan demonstrate actions and/or commitments to promote project resilience to climate impacts? If no, please jump to the next section, "Leveraging of Additional External Funds". If yes, please complete the rest of this section. | I72: (Y or N or N/A)
A73: 1. How does the workplan demonstrate planning or action taken towards building project resilience and reducing vulnerabilities to climate impacts?
A75: E. Other Leveraged Funds
A77: Does the workplan demonstrate that the recipient has leveraged or plans to leverage additional external funds in order to support proposed project activities? If no, please jump to the next table, "Timeline and Milestones". If yes, please complete the rest of this section. | I77: (Y or N or N/A)
A78: 1. How does the workplan demonstrate that the recipient has leveraged or plans to leverage additional external funds in order to support proposed project activities, as well as how these funds will be used to contribute to the performance and success of the project?
A82: Table 4. Timeline and Milestones
A83: Please use the rows below to indicate key project milestones and activities, the timeline for each, and the responsible party for each milestone and activity. Timeline can be represented either as the expected month(s) each activity/milestone will take place (ex., September 2024, September 2024 - December 2024, etc.), or, if applicable, can be represented with descriptors such as "continuous," "ongoing," or otherwise described in relation to other activities and milestones (ex., 1 month after activity X). Note: Additional rows may be added as needed.
A84: Timeline | B84: Milestone/Activity | G84: Responsible Party

Sheet 3. Amendments
A1: U. S. Environmental Protection Agency
A2: Clean School Bus (CSB) Grant Program
A3: Amendments
A5: Instructions
A6: Please use this tab to indicate any changes in bus numbers, charger numbers, and/or funding amounts post-award. Fill out this tab at the end of each year of project performance.
L7: Number of Amendments By Year | M7: Change in Funding Amount by Year
A8: Were there any changes to bus numbers, charger numbers, and/or funding amounts in Year 1 of the project period of performance? If yes, please indicate the change(s) using the table below. | K8: Project Year 1 | L8: =COUNTIF($A$14:$B$31, "Year 1 Update") -> 0 | M8: =SUMIF($A$14:$B$31, "Year 1 Update", $P$14:$P$31) -> 0
A9: Were there any changes to bus numbers, charger numbers, and/or funding amounts in Year 2 of the project period of performance? If yes, please indicate the change(s) using the table below. | K9: Project Year 2 | L9: =COUNTIF($A$14:$B$31, "Year 2 Update") -> 0 | M9: =SUMIF($A$14:$B$31, "Year 2 Update", $P$14:$P$31) -> 0
A10: (If applicable based on project period length) Were there any changes to bus numbers, charger numbers, and/or funding amounts in Year 3 of the project period of performance? If yes, please indicate the change(s) using the table below. | K10: Project Year 3 | L10: =COUNTIF($A$14:$B$31, "Year 3 Update") -> 0 | M10: =SUMIF($A$14:$B$31, "Year 3 Update", $P$14:$P$31) -> 0
A12: Table 5. Post-Award Amendments
A13: Update Year | C13: Type of Amendment | F13: School District Name | H13: NCES ID | I13: Original Vehicle or Eligible Infrastructure Component Type | J13: Updated Vehicle or Eligible Infrastructure Component Type | K13: Original Quantity of Vehicle or Eligible Infrastructure Component | L13: Updated Quantity of Vehicle or Eligible Infrastructure Type | M13: If 'Other Changes' selected as Type of Amendment, please describe here | N13: Original Funding Request Amount | O13: Updated Funding Request Amount | P13: Change in Funding Amount
A14: (Select Year) | C14: (Select Amendment Type) | P14: =N14-O14 -> 0
A15: (Select Year) | C15: (Select Amendment Type) | P15: =N15-O15 -> 0
A16: (Select Year) | C16: (Select Amendment Type) | P16: 0
A17: (Select Year) | C17: (Select Amendment Type) | P17: 0
A18: (Select Year) | C18: (Select Amendment Type) | P18: 0
A19: (Select Year) | C19: (Select Amendment Type) | P19: 0
A20: (Select Year) | C20: (Select Amendment Type) | P20: 0
A21: (Select Year) | C21: (Select Amendment Type) | P21: 0
A22: (Select Year) | C22: (Select Amendment Type) | P22: 0
A23: (Select Year) | C23: (Select Amendment Type) | P23: 0
A24: (Select Year) | C24: (Select Amendment Type) | P24: 0
A25: (Select Year) | C25: (Select Amendment Type) | P25: 0
A26: (Select Year) | C26: (Select Amendment Type) | P26: 0
A27: (Select Year) | C27: (Select Amendment Type) | P27: 0
A28: (Select Year) | C28: (Select Amendment Type) | P28: 0
A29: (Select Year) | C29: (Select Amendment Type) | P29: 0
A30: (Select Year) | C30: (Select Amendment Type) | P30: 0
A31: (Select Year) | C31: (Select Amendment Type) | P31: 0

Sheet 4. Financial Summary
A1: U. S. Environmental Protection Agency
A2: Clean School Bus (CSB) Grant Program
A3: Financial Summary - Project Lifetime
A5: Grant Recipient | K5: Federal (EPA) Project Award Amount | O5: =C28 -> 0
A6: Program and Fiscal Year | K6: Total Other Leveraged Funds | O6: =C30 -> 0
A7: Grant Number | K7: Federal (EPA) Funds Expended to Date | O7: =F28 -> 0
A8: Project Period of Performance | K8: Federal (EPA) Funds Remaining | O8: =I28 -> 0
A9: Project Title
A12: Table 6. Summary Rate of Expenditure
A13: Record project budget funds ONLY from approved final work plan. All other numbers will reflect automatically from subsequent tabs. Please refer to the funding definitions on tab 12 (Data Dictionary) for additional guidance on each field.
A15: Financial Summary | C15: Project Budget | F15: Total Expenses to Date | I15: Remaining Balance
A16: EPA Funds
A17: Personnel | F17: =C37+F37+I37 -> 0 | I17: =C17-F17 -> 0
A18: Fringe Benefits | F18: 0 | I18: =C18-F18 -> 0
A19: Travel | F19: 0 | I19: 0
A20: Equipment | F20: 0 | I20: 0
A21: Supplies | F21: 0 | I21: 0
A22: Contractual | F22: =C42+F42+I42 -> 0 | I22: =C22-F22 -> 0
A23: Construction | F23: 0 | I23: 0
A24: Other | F24: 0 | I24: 0
A26: Direct Cost Total | C26: =SUM(C17:C24) -> 0 | F26: =C46+F46+I46 -> 0 | I26: =C26-F26 -> 0
A27: Indirect Charges | F27: =C47+F47+I47 -> 0 | I27: 0
A28: TOTALS | C28: =C26+C27 -> 0 | F28: 0 | I28: 0
A30: Other Leveraged Funds | F30: =C50+F50+I50 -> 0 | I30: =C30-F30 -> 0
A32: Table 7. Annual Rate of Expenditure
A33: No Entry Needed - ALL numbers will reflect automatically from subsequent tabs.
A35: Financial Summary | C35: Year 1 | F35: Year 2 | I35: Year 3 (if applicable)
A36: EPA Funds
A37: Personnel | C37: ='5. Year 1'!B16+'5. Year 1'!D16+'5. Year 1'!F16+'5. Year 1'!H16 -> 0 | F37: ='6. Year 2'!B16+'6. Year 2'!D16+'6. Year 2'!F16+'6. Year 2'!H16 -> 0 | I37: ='7. Year 3'!B16+'7. Year 3'!D16+'7. Year 3'!F16+'7. Year 3'!H16 -> 0
A38: Fringe Benefits | C38: ='5. Year 1'!B17+'5. Year 1'!D17+'5. Year 1'!F17+'5. Year 1'!H17 -> 0 | F38: ='6. Year 2'!B17+'6. Year 2'!D17+'6. Year 2'!F17+'6. Year 2'!H17 -> 0 | I38: ='7. Year 3'!B17+'7. Year 3'!D17+'7. Year 3'!F17+'7. Year 3'!H17 -> 0
A39: Travel | C39: ='5. Year 1'!B18+'5. Year 1'!D18+'5. Year 1'!F18+'5. Year 1'!H18 -> 0 | F39: ='6. Year 2'!B18+'6. Year 2'!D18+'6. Year 2'!F18+'6. Year 2'!H18 -> 0 | I39: ='7. Year 3'!B18+'7. Year 3'!D18+'7. Year 3'!F18+'7. Year 3'!H18 -> 0
A40: Equipment | C40: ='5. Year 1'!B19+'5. Year 1'!D19+'5. Year 1'!F19+'5. Year 1'!H19 -> 0 | F40: ='6. Year 2'!B19+'6. Year 2'!D19+'6. Year 2'!F19+'6. Year 2'!H19 -> 0 | I40: ='7. Year 3'!B19+'7. Year 3'!D19+'7. Year 3'!F19+'7. Year 3'!H19 -> 0
A41: Supplies | C41: ='5. Year 1'!B20+'5. Year 1'!D20+'5. Year 1'!F20+'5. Year 1'!H20 -> 0 | F41: ='6. Year 2'!B20+'6. Year 2'!D20+'6. Year 2'!F20+'6. Year 2'!H20 -> 0 | I41: ='7. Year 3'!B20+'7. Year 3'!D20+'7. Year 3'!F20+'7. Year 3'!H20 -> 0
A42: Contractual | C42: ='5. Year 1'!B21+'5. Year 1'!D21+'5. Year 1'!F21+'5. Year 1'!H21 -> 0 | F42: ='6. Year 2'!B21+'6. Year 2'!D21+'6. Year 2'!F21+'6. Year 2'!H21 -> 0 | I42: ='7. Year 3'!B21+'7. Year 3'!D21+'7. Year 3'!F21+'7. Year 3'!H21 -> 0
A43: Construction | C43: ='5. Year 1'!B22+'5. Year 1'!D22+'5. Year 1'!F22+'5. Year 1'!H22 -> 0 | F43: ='6. Year 2'!B22+'6. Year 2'!D22+'6. Year 2'!F22+'6. Year 2'!H22 -> 0 | I43: ='7. Year 3'!B22+'7. Year 3'!D22+'7. Year 3'!F22+'7. Year 3'!H22 -> 0
A44: Other | C44: ='5. Year 1'!B23+'5. Year 1'!D23+'5. Year 1'!F23+'5. Year 1'!H23 -> 0 | F44: ='6. Year 2'!B23+'6. Year 2'!D23+'6. Year 2'!F23+'6. Year 2'!H23 -> 0 | I44: ='7. Year 3'!B23+'7. Year 3'!D23+'7. Year 3'!F23+'7. Year 3'!H23 -> 0
A46: Direct Cost Total | C46: ='5. Year 1'!B25+'5. Year 1'!D25+'5. Year 1'!F25+'5. Year 1'!H25 -> 0 | F46: ='6. Year 2'!B25+'6. Year 2'!D25+'6. Year 2'!F25+'6. Year 2'!H25 -> 0 | I46: ='7. Year 3'!B25+'7. Year 3'!D25+'7. Year 3'!F25+'7. Year 3'!H25 -> 0
A47: Indirect Charges | C47: ='5. Year 1'!B26+'5. Year 1'!D26+'5. Year 1'!F26+'5. Year 1'!H26 -> 0 | F47: ='6. Year 2'!B26+'6. Year 2'!D26+'6. Year 2'!F26+'6. Year 2'!H26 -> 0 | I47: ='7. Year 3'!B26+'7. Year 3'!D26+'7. Year 3'!F26+'7. Year 3'!H26 -> 0
A48: TOTALS | C48: =C46+C47 -> 0 | F48: =F46+F47 -> 0 | I48: =I46+I47 -> 0
A50: Other Leveraged Funds | C50: ='5. Year 1'!B29+'5. Year 1'!D29+'5. Year 1'!F29+'5. Year 1'!H29 -> 0 | F50: ='6. Year 2'!B29+'6. Year 2'!D29+'6. Year 2'!F29+'6. Year 2'!H29 -> 0 | I50: ='7. Year 3'!B29+'7. Year 3'!D29+'7. Year 3'!F29+'7. Year 3'!H29 -> 0

Sheet 5. Year 1
A1: U. S. Environmental Protection Agency
A2: Clean School Bus (CSB) Grant Program
A3: Financial and Narrative Summary - Year 1
A5: Grant Recipient | B5: ='4. Financial Summary'!D5 -> 0 | F5: Total EPA Funds Expended: Year 1 | I5: =B27+D27+F27+H27 -> 0
A6: Grant Number | B6: ='4. Financial Summary'!D7 -> 0 | F6: Reporting Cadence
A7: Project Title | B7: ='4. Financial Summary'!D9 -> 0 | F7: Project Reporting Period
A9: Table 8. Year 1 Annual Rate of Expenditure
A10: Record and update project expenses at each interval according to the reporting cadence determined by your Project Officer. Previous fields should remain and edits should be made to the reporting period being submitted. Note the table will update based upon the Reporting Cadence field, selected above.
A12: Enter Dates For this Reporting Period | B12: Reporting Period
B13: =IF(I6= "Quarterly", "Quarter 1", "Jan-Jun of Year 1") -> Jan-Jun of Year 1 | D13: =IF(I6= "Quarterly", "Quarter 2", "Jul-Dec of Year 1") -> Jul-Dec of Year 1 | F13: =IF(I6= "Quarterly", "Quarter 3", "") ->  | H13: =IF(I6= "Quarterly", "Quarter 4", "") -> 
A15: EPA Funds
A16: Personnel
A17: Fringe Benefits
A18: Travel
A19: Equipment
A20: Supplies
A21: Contractual
A22: Construction
A23: Other
A25: Direct Cost Total | B25: =SUM(B16:B23) -> 0 | D25: =SUM(D16:D23) -> 0 | F25: =SUM(F16:F23) -> 0 | H25: =SUM(H16:H23) -> 0
A26: Indirect Charges
A27: TOTALS | B27: =B25+B26 -> 0 | D27: =D25+D26 -> 0 | F27: =F25+F26 -> 0 | H27: =H25+H26 -> 0
A29: Other Leveraged Funds
A32: Table 9. Project Updates - Narrative Responses
A33: Record and update project updates below.
A34: Please paste the planned activities, outputs, and outcome from the submitted workplan information. Provide updates and if any changes occurred, please provide that information accordingly. In the 'Progress to Date' column, please use the dropdown to indicate if the activity is 1) Not yet started, 2) In progress, or 3) Completed.
A35: Activities | D35: Anticipated Outputs | F35: Anticipated Outcomes | H35: Progress to Date | L35: Progress Notes
H36: =IF(I6= "Quarterly", "Q1", "Jan-Jun of Year 1") -> Jan-Jun of Year 1 | I36: =IF(I6= "Quarterly", "Q2", "Jul-Dec of Year 1") -> Jul-Dec of Year 1 | J36: =IF(I6= "Quarterly", "Q3", "") ->  | K36: =IF(I6= "Quarterly", "Q4", "") ->  | L36: Write below, as appropriate.
A49: Please provide programmatic and narrative financial updates on the project. As reports are submitted, indicate updates or changes for each reporting period. For each reporting period, please indicate if there was a change from the previous reporting period. If yes, please provide an explanation in the subsequent cell.
A50: Question | C50: =IF(I6= "Quarterly", "Quarter 1 Update", "Jan-Jun of Year 1 Update") -> Jan-Jun of Year 1 Update | G50: =IF(I6= "Quarterly", "Quarter 2 Update", "Jul-Dec of Year 1 Update") -> Jul-Dec of Year 1 Update | J50: =IF(I6= "Quarterly", "Quarter 3 Update", "") ->  | M50: =IF(I6= "Quarterly", "Quarter 4 Update", "") -> 
A51: 1. Provide a comparison of actual accomplishments to the objectives established for the reporting period.
A52: 2. If anticipated outputs/outcomes and/or timelines/milestones are not met, why not? Did you encounter any problems during the reporting period which may interfere with meeting project objectives?
A53: 3. If any other external funds are reported for this reporting period in Table 8 above, identify the source of the funds.
A54: 4. Have there been any major personnel changes during this reporting period?
A55: 5. Did any public relations events regarding this grant take place during the reporting period?
A56: 6. Are you using websites or other tools used to relay information about this grant to the public?
A57: 7. What project activities are planned for the next reporting period?
A58: 8. Was any program income generated during the reporting period? Identify amount of program income, how it was generated, and how the program income was/will be used.
A59: 9. Have any vehicles or activities changed from those included in the final workplan?
A60: 10. Do you have any other comments or feedback?
A61: 9. Have any school buses or activities changed from those included in the final workplan?
A62: 10. Do you have any other comments or feedback?

Sheet 6. Year 2
A1: U. S. Environmental Protection Agency
A2: Clean School Bus (CSB) Grant Program
A3: Financial and Narrative Summary - Year 2
A5: Grant Recipient | B5: ='4. Financial Summary'!D5 -> 0 | F5: Total EPA Funds Expended: Year 2 | I5: =B27+D27+F27+H27 -> 0
A6: Grant Number | B6: ='4. Financial Summary'!D7 -> 0 | F6: Reporting Cadence
A7: Project Title | B7: ='4. Financial Summary'!D9 -> 0 | F7: Project Reporting Period
A9: Table 10. Year 2 Annual Rate of Expenditure
A10: Record and update project expenses at each interval according to the reporting cadence determined by your Project Officer. Previous fields should remain and edits should be made to the reporting period being submitted. Note the table will update based upon the Reporting Cadence field, selected above.
A12: Enter Dates For this Reporting Period | B12: Reporting Period
B13: =IF(I6= "Quarterly", "Quarter 1", "Jan-Jun of Year 2") -> Jan-Jun of Year 2 | D13: =IF(I6= "Quarterly", "Quarter 2", "Jul-Dec of Year 2") -> Jul-Dec of Year 2 | F13: =IF(I6= "Quarterly", "Quarter 3", "") ->  | H13: =IF(I6= "Quarterly", "Quarter 4", "") -> 
A15: EPA Funds
A16: Personnel
A17: Fringe Benefits
A18: Travel
A19: Equipment
A20: Supplies
A21: Contractual
A22: Construction
A23: Other
A25: Direct Cost Total | B25: =SUM(B16:B23) -> 0 | D25: =SUM(D16:D23) -> 0 | F25: =SUM(F16:F23) -> 0 | H25: =SUM(H16:H23) -> 0
A26: Indirect Charges
A27: TOTALS | B27: =B25+B26 -> 0 | D27: =D25+D26 -> 0 | F27: =F25+F26 -> 0 | H27: =H25+H26 -> 0
A29: Other Leveraged Funds
A32: Table 11. Project Updates - Narrative Responses
A33: Record and update project updates below.
A34: Please paste the planned activities, outputs, and outcome from the submitted workplan information. Provide updates and if any changes occurred, please provide that information accordingly. In the 'Progress to Date' column, please use the dropdown to indicate if the activity is 1) Not yet started, 2) In progress, or 3) Completed.
A35: Activities | D35: Anticipated Outputs | F35: Anticipated Outcomes | H35: Progress to Date | L35: Progress Notes
H36: =IF(I6= "Quarterly", "Q1", "Jan-Jun of Year 2") -> Jan-Jun of Year 2 | I36: =IF(I6= "Quarterly", "Q2", "Jul-Dec of Year 2") -> Jul-Dec of Year 2 | J36: =IF(I6= "Quarterly", "Q3", "") ->  | K36: =IF(I6= "Quarterly", "Q4", "") ->  | L36: Write below, as appropriate.
A49: Please provide programmatic and narrative financial updates on the project. As reports are submitted, indicate updates or changes for each reporting period. For each reporting period, please indicate if there was a change from the previous quarter. If yes, please provide an explanation in the subsequent cell.
A50: Question | C50: =IF(I6= "Quarterly", "Quarter 1 Update", "Jan-Jun of Year 2 Update") -> Jan-Jun of Year 2 Update | G50: =IF(I6= "Quarterly", "Quarter 2 Update", "Jul-Dec of Year 2 Update") -> Jul-Dec of Year 2 Update | J50: =IF(I6= "Quarterly", "Quarter 3 Update", "") ->  | M50: =IF(I6= "Quarterly", "Quarter 4 Update", "") -> 
A51: 1. Provide a comparison of actual accomplishments to the objectives established for the reporting period.
A52: 2. If anticipated outputs/outcomes and/or timelines/milestones are not met, why not? Did you encounter any problems during the reporting period which may interfere with meeting project objectives?
A53: 3. If any other external funds are reported for this reporting period in Table 10 above, identify the source of the funds.
A54: 4. Have there been any major personnel changes during this reporting period?
A55: 5. Did any public relations events regarding this grant take place during the reporting period?
A56: 6. Are you using websites or other tools used to relay information about this grant to the public?
A57: 7. What project activities are planned for the next reporting period?
A58: 8. Was any program income generated during the reporting period? Identify amount of program income, how it was generated, and how the program income was/will be used.
A59: 9. Have any vehicles or activities changed from those included in the final workplan?
A60: 10. Do you have any other comments or feedback?

Sheet 7. Year 3
A1: U. S. Environmental Protection Agency
A2: Clean School Bus (CSB) Grant Program
A3: Financial and Narrative Summary - Year 3
A5: Grant Recipient | B5: ='4. Financial Summary'!D5 -> 0 | F5: Total EPA Funds Expended: Year 3 | I5: =B27+D27+F27+H27 -> 0
A6: Grant Number | B6: ='4. Financial Summary'!D7 -> 0 | F6: Reporting Cadence
A7: Project Title | B7: ='4. Financial Summary'!D9 -> 0 | F7: Project Reporting Period
A9: Table 12. Year 3 Annual Rate of Expenditure
A10: Record and update project expenses at each interval according to the reporting cadence determined by your Project Officer. Previous fields should remain and edits should be made to the reporting period being submitted. Note the table will update based upon the Reporting Cadence field, selected above.
A12: Enter Dates For this Reporting Period | B12: Reporting Period
B13: =IF(I6= "Quarterly", "Quarter 1", "Jan-Jun of Year 3") -> Jan-Jun of Year 3 | D13: =IF(I6= "Quarterly", "Quarter 2", "Jul-Dec of Year 3") -> Jul-Dec of Year 3 | F13: =IF(I6= "Quarterly", "Quarter 3", "") ->  | H13: =IF(I6= "Quarterly", "Quarter 4", "") -> 
A15: EPA Funds
A16: Personnel
A17: Fringe Benefits
A18: Travel
A19: Equipment
A20: Supplies
A21: Contractual
A22: Construction
A23: Other
A25: Direct Cost Total | B25: =SUM(B16:B23) -> 0 | D25: =SUM(D16:D23) -> 0 | F25: =SUM(F16:F23) -> 0 | H25: =SUM(H16:H23) -> 0
A26: Indirect Charges
A27: TOTALS | B27: =B25+B26 -> 0 | D27: =D25+D26 -> 0 | F27: =F25+F26 -> 0 | H27: =H25+H26 -> 0
A29: Other Leveraged Funds
A32: Table 13. Project Updates - Narrative Responses
A33: Record and update project updates below.
A34: Please paste the planned activities, outputs, and outcome from the submitted workplan information. Provide updates and if any changes occurred, please provide that information accordingly. In the 'Progress to Date' column, please use the dropdown to indicate if the activity is 1) Not yet started, 2) In progress, or 3) Completed.
A35: Activities | D35: Anticipated Outputs | F35: Anticipated Outcomes | H35: Progress to Date | L35: Progress Notes
H36: =IF(I6= "Quarterly", "Q1", "Jan-Jun of Year 3") -> Jan-Jun of Year 3 | I36: =IF(I6= "Quarterly", "Q2", "Jul-Dec of Year 3") -> Jul-Dec of Year 3 | J36: =IF(I6= "Quarterly", "Q3", "") ->  | K36: =IF(I6= "Quarterly", "Q4", "") ->  | L36: Write below, as appropriate.
A49: Please provide programmatic and narrative financial updates on the project. As reports are submitted, indicate updates or changes for each reporting period. For each reporting period, please indicate if there was a change from the previous reporting period. If yes, please provide an explanation in the subsequent cell.
A50: Question | C50: =IF(I6= "Quarterly", "Quarter 1 Update", "Jan-Jun of Year 3 Update") -> Jan-Jun of Year 3 Update | J50: =IF(I6= "Quarterly", "Quarter 3 Update", "") ->  | M50: =IF(I6= "Quarterly", "Quarter 4 Update", "") -> 
A51: 1. Provide a comparison of actual accomplishments to the objectives established for the reporting period.
A52: 2. If anticipated outputs/outcomes and/or timelines/milestones are not met, why not? Did you encounter any problems during the reporting period which may interfere with meeting project objectives?
A53: 3. If any other external funds are reported for this reporting period in Table 12 above, identify the source of the funds.
A54: 4. Have there been any major personnel changes during this reporting period?
A55: 5. Did any public relations events regarding this grant take place during the reporting period?
A56: 6. Are you using websites or other tools used to relay information about this grant to the public?
A57: 7. What project activities are planned for the next reporting period?
A58: 8. Was any program income generated during the reporting period? Identify amount of program income, how it was generated, and how the program income was/will be used.
A59: 9. Have any vehicles or activities changed from those included in the final workplan?
A60: 10. Do you have any other comments or feedback?

Sheet 8. CSB Priorities
A1: U. S. Environmental Protection Agency
A2: Clean School Bus (CSB) Grant Program
A3: CSB Priorities
A5: Grant Recipient | C5: ='4. Financial Summary'!D5 -> 0
A6: Program FY | C6: ='4. Financial Summary'!D6 -> 0
A7: Grant Number | C7: ='4. Financial Summary'!D7 -> 0
A8: Project Title | C8: ='4. Financial Summary'!D9 -> 0
A10: Instructions
A11: Please complete this tab if your organization committed to ANY environmental justice, community engagement, sustainability, workforce development, climate impact resiliency, or leveraging of additional external funds actions or commitments in your application, as referred to in the evaluation metrics defined in section V.A. Evaluation Criteria in the NOFO. Only cells shaded in blue need to be filled out; cells shaded in yellow will automatically populate based on information entered in earlier tabs. If planned activities or commitments changed between the submitted application and approved workplan, please indicate on the first question below. Please use the drop downs for columns to indicate any updates that occurred during the reporting period indicating continued progress towards commitments. At the end of each of the sections below, there is a cell to provide additional narrative responses, as appropriate. For narrative responses, please include at least 1-2 sentences. Please take care to ensure all questions are answered; the final question is on row 142 of this sheet.
A13: Did any planned activities or commitments change between the submitted application and the approved workplan? | J13: (Y or N or N/A)
A14: If no, please jump to the next section, "Environmental Justice and Disadvantaged Communities." If yes, please provide context and details to the approved changes (example: the number of school buses was reduced due to partial funding).
A17: Table 14. Environmental Justice and Disadvantaged Communities
B18: 1. Did the workplan demonstrate that the project will benefit school district(s) that meet one or more of the criteria for prioritization listed in the NOFO in Section I.B? Specifically, communities served by high-need local educational agencies; rural school districts; Bureau of Indian Affairs-funded school districts; and school districts receiving basic support payments for children who reside on Indian land? Or did the proposed workplan demonstrate that the project will benefit school district(s) that self-certified their prioritization status? | J18: (Y or N or N/A)
B19: 2. Did any of the school district beneficiaries from the workplan decide to no longer participate in the project? If yes, please use the rows below to indicate which school district beneficiaries withdrew their participation from the project, and if applicable, please note what school district beneficiary was chosen as a replacement. Note: Please add additional rows as needed. | J19: (Y or N or N/A)
B20: Withdrawn School District Beneficiary | D20: NCES ID | E20: Prioritization Status on Prioritized District List or Self-Certified | F20: Date of Withdrawal | H20: Brief Description of Reason for Withdrawal | I20: Replacement School District Beneficiary (use "N/A" if school district beneficiary not replaced) | J20: NCES ID
E21: (Y or N or N/A) | F21: Select Reporting Period
E22: (Y or N or N/A) | F22: Select Reporting Period
E23: (Y or N or N/A) | F23: Select Reporting Period
E24: (Y or N or N/A) | F24: Select Reporting Period
E25: (Y or N or N/A) | F25: Select Reporting Period
E26: (Y or N or N/A) | F26: Select Reporting Period
B27: 2. For any school district(s) prioritized under self-certification Category 2B, which identifies a sub-group of schools within the district receiving Title I funding, are the buses serving this school district(s) continuing to primarily serve the sub-group of Title I funded schools? If no, please provide an explanation below. | J27: (Y or N or N/A)
A31: Table 15. Community Engagement
B33: Did the workplan demonstrate actions and/or commitments to engage communities? If no, please jump to the next section, "Project Sustainability". If yes, please complete the rest of this section. | J33: ='2. Work Plan'!I57 -> (Y or N or N/A)
B34: 1. How did the workplan demonstrate engagement with the communities identified above, especially local residents, to ensure their meaningful participation with respect to the design, planning, and performance of the project?
B35: =IF(ISBLANK('2. Work Plan'!A59),"",'2. Work Plan'!A59) -> 
B36: Policy/Process to Engage Communities and Point of Contact | H36: Application | I36: Status Update | J36: Reporting Period Completed
B37: 1. Did the workplan for this project demonstrate that the recipient and/or project partner(s) has an existing clear point of contact in a public platform (e.g., newsletter, website) for community issues and complaints (specific to air quality or broader) and a publicly documented policy or process to engage communities and get their input on operations and projects that impact air quality? The process could be a meeting in the past year and/or a policy or process to have a meeting or otherwise get input (e.g., a standing citizens advisory committee). Please include any narrative details in question 2.
B38: 1.a. If no, did the workplan for this project demonstrate that the recipient and/or project partner(s) commit to completing one before the end of the project period? | H38: (Y or N or N/A)
B39: 1.b. To date, has the recipient and/or project partner(s) completed this commitment? | I39: Select Status | J39: Select Reporting Period
B40: 2. Please provide any additional details and/or a status update to be provided for this category, including but not limited to the URL(s) where the public can find the clear point of contact and policy or process; a description of the point of contact and policy or process; and any other relevant information. Please use the drop downs under 'Please Select One' to indicate which year the update was completed. Note: Do not delete data from prior quarterly reports. If providing updates for multiple quarters in one year, please indicate all updates in the same cell.
J41: Please Select One
J42: Please Select One
J43: Please Select One
A46: Table 16. Project Sustainability
A48: Did the workplan demonstrate actions and/or commitments to promote sustainable project results and benefits? If no, please jump to the next section, "Workforce Development". If yes, please complete the rest of this section. | J48: ='2. Work Plan'!I62 -> (Y or N or N/A)
B49: 1. How did the workplan demonstrate that project results and benefits will be sustainable and that the applicant and project partners have the ability to promote and continue efforts to reduce emissions from school buses after EPA funding for the project has ended?
B50: =IF(ISBLANK('2. Work Plan'!A64),"",'2. Work Plan'!A64) -> 
B51: A. Zero-Emission Projects For non-ZE projects, skip to part B. | H51: Application | I51: Status Update | J51: Reporting Period Completed
B52: A1. Did the workplan for this project demonstrate coordination and/or consultation with utilities on the feasibility of the project? This could include, but is not limited to, discussion with utilities on project charging needs, project upgrade needs, project costs, rates for future service, and/or the timeframe for necessary upgrades. Please include any narrative details in question A2. | H52: (Y or N or N/A)
B53: A1.a. If no, did the workplan for this project demonstrate that the recipient and/or project partner(s) commit to such coordination before the end of the project period? | H53: (Y or N or N/A)
B54: A1.b. To date, has the recipient and/or project partner(s) completed this commitment? | I54: Select Status | J54: Select Reporting Period
B55: A2. Please provide additional details and any relevant status updates for this section, including but not limited to describing the extent of coordination with utilities, noting the timing and frequency of discussions with utilities, and any project decisions impacted by these discussions. Please use the drop downs under 'Please Select One' to indicate which year the update was completed. Note: Do not delete data from prior quarterly reports. If providing updates for multiple quarters in one year, please indicate all updates in the same cell.
J56: Please Select One
J57: Please Select One
J58: Please Select One
B59: B. Non Zero-Emission Projects | H59: Application | I59: Status Update | J59: Reporting Period Completed
B60: B1. Did the workplan for this project demonstrate that the recipient and/or project partner(s) have existing idle reduction policies? Please include any narrative details in question B4. | H60: (Y or N or N/A)
B61: B1.a. If no, did the workplan for this project demonstrate that the recipient and/or project partner(s) commit to completing one before the end of the project period? | H61: (Y or N or N/A)
B62: B1.b. To date, has the recipient and/or project partner(s) completed this commitment? | I62: Select Status | J62: Select Reporting Period
B63: B2. Did the workplan for this project demonstrate that the recipient and/or project partner(s) have contract specifications requiring the use of cleaner, more efficient vehicles and equipment? Please include any narrative details in question B4. | H63: (Y or N or N/A)
B64: B2.a. If no, did the workplan for this project demonstrate that the recipient and/or project partner(s) commit to completing one before the end of the project period? | H64: (Y or N or N/A)
B65: B2.b. To date, has the recipient and/or project partner(s) completed this commitment? | I65: Select Status | J65: Select Reporting Period
B66: B3. Did the workplan for this project demonstrate that the recipient and/or project partner(s) have adopted other strategies to promote and continue efforts to reduce diesel emissions? If yes, please describe the other policies in more detail below. Please include any narrative details in question B4. | H66: (Y or N or N/A)
B67: B3.a. If no, did the workplan for this project demonstrate that the recipient and/or project partner(s) commit to adopting one or more strategies before the end of the project period? | H67: (Y or N or N/A)
B68: B3.b. To date, has the recipient and/or project partner(s) completed this commitment? | I68: Select Status | J68: Select Reporting Period
B69: B4. Please provide additional details and any relevant status updates for this section, including but not limited to descriptions of idle reduction policies, contract specifications, and/or any additional diesel emission reduction strategies, as well as any changes made to these throughout the project period. Please use the drop downs under 'Please Select One' to indicate which year the update was completed. Note: Do not delete data from prior quarterly reports. If providing updates for multiple quarters in one year, please indicate all updates in the same cell.
J70: Please Select One
J71: Please Select One
J72: Please Select One
A76: Table 17. Workforce Development
A78: Did the workplan demonstrate actions and/or commitments to promote workforce development? If no, please jump to the next section, "Project Resilience to Climate Impacts". If yes, please complete the rest of this section. | J78: ='2. Work Plan'!I67 -> (Y or N or N/A)
B79: 1. How did the workplan demonstrate a plan to prepare the workforce for the project?
B80: =IF(ISBLANK('2. Work Plan'!A69),"",'2. Work Plan'!A69) -> 
H81: Application | I81: Status Update | J81: Reporting Period Completed
B82: 2. Did the workplan for this project demonstrate that current drivers, mechanics, electricians, and other essential personnel have received training to safely operate and maintain the new buses and infrastructure? This could include the establishment of workforce training programs for zero emission vehicles and charging infrastructure. Please include any narrative details in question 6. | H82: (Y or N or N/A)
B83: 2.a. If no, did the workplan for this project demonstrate that the recipient and/or project partner(s) commit to ensuring current drivers, mechanics, electricians, and other essential personnel receive training to safely operate and maintain the new buses and infrastructure before the end of the project period? | H83: (Y or N or N/A)
B84: 2.b. To date, has the recipient and/or project partner(s) completed this commitment? | I84: Select Status | J84: Select Reporting Period
B85: 3. Did the workplan for this project demonstrate that the recipient and/or project partner(s) have clarified protections to ensure existing workers are not replaced or displaced because of new technologies? Please include any narrative details in question 6. | H85: (Y or N or N/A)
B86: 3.a. If no, did the workplan for this project demonstrate that the recipient and/or project partner(s) commit to clarifying protections to ensure existing workers are not replaced for displaced because of new technologies before the end of the project period? | H86: (Y or N or N/A)
B87: 3.b. To date, has the recipient and/or project partner(s) completed this commitment? | I87: Select Status | J87: Select Reporting Period
B88: 4. Did the workplan for this project demonstrate that the recipient and/or project partner(s) have increased the availability of domestic manufacturing and workforce for zero- and near-zero emission vehicles, engines, and other key components (e.g., batteries)? Please include any narrative details in question 6. | H88: (Y or N or N/A)
B89: 4.a. If no, did the workplan for this project demonstrate that the recipient and/or project partner(s) commit to increasing the availability of domestic manufacturing and workforce for zero- and near-zero emission vehicles, engines, and other key components (e.g., batteries) before the end of the project period? | H89: (Y or N or N/A)
B90: 4.b. To date, has the recipient and/or project partner(s) completed this commitment? | I90: Select Status | J90: Select Reporting Period
B91: 5. Did the workplan for this project demonstrate that the recipient and/or project partner(s) have other measures and/or policies in place to promote workforce development? If yes, please describe the other measures and/or policies in more detail below. Please include any narrative details in question 6. | H91: (Y or N or N/A)
B92: 5.a. If no, did the workplan for this project demonstrate that the recipient and/or project partner(s) commit establishing measures and/or policies to promote workforce development before the end of the project period? | H92: (Y or N or N/A)
B93: 5.b. To date, has the recipient and/or project partner(s) completed this commitment? | I93: Select Status | J93: Select Reporting Period
B94: 6. Please provide additional details and any relevant status updates for this section, including but not limited to details on training programs, protections for existing workers, measures taken to increase the availability of domestic manufacturing and workforce, and/or descriptions of any additional policies and measures to promote workforce development, as well as any changes made to these throughout the project period. Please use the drop downs under 'Please Select One' to indicate which year the update was completed. Note: Do not delete data from prior quarterly reports. If providing updates for multiple quarters in one year, please indicate all updates in the same cell.
J95: Please Select One
J96: Please Select One
J97: Please Select One
A101: Table 18. Project Resilience to Climate Impacts
A103: Did the workplan demonstrate actions and/or commitments to promote project resilience to climate impacts? If no, please jump to the next section, "Leveraging of Additional External Funds". If yes, please complete the rest of this section. | J103: ='2. Work Plan'!I72 -> (Y or N or N/A)
B104: 1. How did the workplan demonstrate planning or action taken towards building project resilience and reducing vulnerabilities to climate impacts?
B105: =IF(ISBLANK('2. Work Plan'!A74),"",'2. Work Plan'!A74) -> 
H106: Application | I106: Status Update | J106: Reporting Period Completed
B107: 2. Did the workplan for this project demonstrate that the recipient and/or project partner(s) have assessed and implemented climate change adaptation considerations to help ensure that the project achieves its expected outcomes even as the climate changes? This could include assessing project vulnerability to local climate impacts when making siting decision and operational plans, ensuring fleets and equipment are protected from climate change impacts, and/or protecting infrastructure from storm damage. Please include any narrative details in question 4. | H107: (Y or N or N/A)
B108: 2.a. If no, did the workplan for this project demonstrate that the recipient and/or project partner(s) commit to assessing and implementing climate change adaptation considerations before the end of the project period? | H108: (Y or N or N/A)
B109: 2.b. To date, has the recipient and/or project partner(s) completed this commitment? | I109: Select Status | J109: Select Reporting Period
B110: 3. Did the workplan for this project demonstrate that the recipient and/or project partner(s) have other measures and/or policies in place to promote project resilience to climate impacts? If yes, please describe the other measures and/or policies in more detail below. Please include any narrative details in question 4. | H110: (Y or N or N/A)
B111: 3.a. If no, did the workplan for this project demonstrate that the recipient and/or project partner(s) commit establishing measures and/or policies to promote project resilience to climate impacts before the end of the project period? | H111: (Y or N or N/A)
B112: 3.b. To date, has the recipient and/or project partner(s) completed this commitment? | I112: Select Status | J112: Select Reporting Period
B113: 4. Please provide additional details and any relevant status updates for this section, including but not limited to details on climate impact assessments, descriptions of project decisions impacted by these assessments, and/or descriptions of any additional policies and measures to promote project resilience to climate impacts, as well as any changes made to these throughout the project period. Please use the drop downs under 'Please Select One' to indicate which year the update was completed. Note: Do not delete data from prior quarterly reports. If providing updates for multiple quarters in one year, please indicate all updates in the same cell.
J114: Please Select One
J115: Please Select One
J116: Please Select One
A120: Table 19. Leveraging of Additional External Funds
B121: Did the workplan demonstrate that the recipient has leveraged or plans to leverage additional external funds in order to support proposed project activities? If no, please jump to the next section, "Other". If yes, please complete the rest of this section. | J121: ='2. Work Plan'!I77 -> (Y or N or N/A)
B122: 1. How did the workplan demonstrate that the recipient has leveraged or plans to leverage additional external funds in order to support proposed project activities, as well as how these funds will be used to contribute to the performance and success of the project?
B123: =IF(ISBLANK('2. Work Plan'!A79),"",'2. Work Plan'!A79) -> 
B124: 2. Please provide updates on proposed or secured additional external funds using the rows below. This should include additional external leveraged funds, but should not include applicant funds. Refer to the following definitions when selecting Status: "Not Yet Started:" Funding is proposed but the application process has not yet begun "In Progress:" The funding application or selection process is underway, but funds have not been awarded "Awarded:" Funding has been officially awarded "Not Awarded:" Funding that had been applied for was not awarded Note: Please add additional rows as needed.
B125: Source Name | F125: Amount ($) | H125: Status | J125: Reporting Period Awarded
H126: Please Select One | J126: Select Reporting Period
H127: Please Select One | J127: Select Reporting Period
H128: Please Select One | J128: Select Reporting Period
H129: Please Select One | J129: Select Reporting Period
H130: Please Select One | J130: Select Reporting Period
H131: Please Select One | J131: Select Reporting Period
H132: Please Select One | J132: Select Reporting Period
H133: Please Select One | J133: Select Reporting Period
H134: Please Select One | J134: Select Reporting Period
H135: Please Select One | J135: Select Reporting Period
B136: 3. Are there any updates to be provided or additional information for any proposed or secured additional external funds? If yes, please provide additional details and a status update below, including a description of how any secured funds are being used to support proposed project activities and how they are contributing to the performance and success of the project. If any proposed funding was not awarded, use the space provided to indicate your plans to make up for these funds. Please use the drop downs under 'Please Select One' to indicate which year the update was completed. Note: Do not delete data from prior quarterly reports. If providing updates for multiple quarters in one year, please indicate all updates in the same cell. | J136: (Y or N or N/A)
J137: Please Select One
J138: Please Select One
J139: Please Select One
A142: OTHER: Please provide any additional details or comments regarding environmental justice, community engagement, sustainability, workforce development, resiliency to climate impacts, or leveraged additional external funds of the project.

Sheet 9. Fleet Description
A1: U. S. Environmental Protection Agency
A2: Clean School Bus (CSB) Grant Program
A3: Fleet Description
A5: Grant Recipient | B5: ='4. Financial Summary'!D5 -> 0 | E5: Summary Bus Information | I5: Summary Federal Funds Expended
A6: Program FY | B6: ='4. Financial Summary'!D6 -> 0 | E6: Total number of CNG buses delivered | H6: =COUNTIF(AO$18:AO$117, "CNG") -> 0 | I6: Total Federal funds expended for CNG buses | L6: =SUMIFS(AR18:AR117,AO18:AO117,"CNG") -> 0
A7: Grant Number | B7: ='4. Financial Summary'!D7 -> 0 | E7: Total number of Propane buses delivered | H7: =COUNTIF(AO$18:AO$117, "Propane") -> 0 | I7: Total Federal funds expended for Propane buses | L7: =SUMIFS(AR18:AR117,AO18:AO117,"Propane") -> 0
A8: Project Title | B8: ='4. Financial Summary'!D9 -> 0 | E8: Total number of Electric buses delivered | H8: =COUNTIF(AO$18:AO$117, "Electric") -> 0 | I8: Total Federal funds expended for Electric buses | L8: =SUMIFS(AR18:AR117,AO18:AO117,"Electric") -> 0
E9: Total number of school buses delivered | H9: =SUM(H6:H8) -> 0 | I9: Total Federal funds expended | L9: =SUM(L6:L8) -> 0
A11: Instructions
A12: The Fleet Description should detail all vehicles impacted under the project. The Fleet Description should be updated semi-annually with all vehicle upgrades completed. Please only fill out shaded cells highlighted blue with a diagonal pattern (///). For third-party applicants, please list ALL school districts in this one worksheet. You do NOT need to make a separate worksheet for each school district. This Fleet Description is broken into two sections: 1) Current Vehicle Information and 2) New Vehicle Upgrade Information. The sheet has capacity for 100 vehicles. Please refer to the Fleet Description data definitions on tab 12 (Data Dictionary) for additional guidance on each field.
A13: Table 20. CURRENT VEHICLE INFORMATION | AI13: Table 21: NEW REPLACEMENT VEHICLE INFORMATION
A14: Table 20a. Basic Vehicle Information | Q14: Table 20b. Basic Fleet Information & Place(s) of Performance | AI14: Table 21a. Upgrade Vehicle Information | AS14: Table 21b. New Vehicle Annual Activity Data | AX14: Table 21c. Zero Emission Vehicle Data | BK14: Table 21d. New Vehicle Fleet Information
R15: Primary Place of Performance | Y15: Secondary Place of Performance (please complete if applicable) | AF15: Additional Location Details (please complete if applicable) | BN15: Primary Place of Performance | BU15: Secondary Place of Performance | CB15: Additional Place of Performance
A16: Vehicle | B16: Vehicle Identification Number (Use Capital Letters) | C16: Vehicle Manufacturer | D16: Vehicle Model | E16: Baseline Vehicle Model Year | F16: Baseline Engine Fuel Type | G16: Engine Family Name (if unregulated, then N/A) | H16: GVWR | I16: Class | J16: Odometer (in miles) | K16: Annual Miles Traveled (miles per vehicle) | L16: Annual Idling Hours (hours per engine) | M16: Annual Amount of Fuel Used (gallons/year per engine) | N16: Remaining Life of Baseline Engine/Vehicle | O16: Vehicle Disposition/Replacement Process | P16: Did the applicant request a scrappage waiver? | Q16: Current Fleet Owner | R16: Place of Performance: School District | S16: Place of Performance: NCES ID | T16: Place of Performance: State | U16: Place of Performance: County | V16: Percentage of Time operated in this County | W16: Place of Performance: City | X16: Place of Performance: Zip Code(s) | Y16: Place of Performance: School District_2 | Z16: Place of Performance: NCES ID_2 | AA16: Place of Performance: State_2 | AB16: Place of Performance: County_2 | AC16: Percentage of Time operated in this County 2 | AD16: Place of Performance: City_2 | AE16: Place of Performance: Zip Code(s)_2 | AF16: Additional Counties where Vehicle Operates | AG16: Additional School Districts where Vehicle Operates (Name & NCES ID) | AH16: Percent of Time Operated in Each Additional County | AI16: Year of Upgrade Action | AJ16: VIN for New Vehicle(s) | AK16: New Vehicle Manufacturer | AL16: New Vehicle Model | AM16: New Vehicle Model Year | AN16: New Engine or Vehicle Family Name | AO16: New Vehicle Fuel Type | AP16: New Vehicle GVWR | AQ16: Upgrade Cost per Bus | AR16: Total Federal Funds Expended Per Bus ($ of Total Cost per Unit) | AS16: New Vehicle Annual Idling Hours (hours per vehicle) | AT16: New Vehicle Annual Miles Traveled (miles per vehicle) | AU16: New Vehicle Annual Fuel Volume (estimated gallons/year for propane or CNG only) | AV16: New Vehicle Equipped with Auxiliary Heater? (Yes/No) | AW16: Auxiliary Heater Type (if not applicable, then N/A) | AX16: Capable of Bidirectional Charging? (Yes or No) | AY16: Estimate Range in Miles (for ZEV only) | AZ16: Battery Capacity in kWh (for ZEV only) | BA16: Is the Battery Warranty Included? (Yes/No) | BB16: Battery: indicate Number of Years | BC16: Battery: Number of Miles | BD16: Battery: Total kWh of battery discharge | BE16: Powertrain Warranty Included? (Yes/No) | BF16: Powertrain: Number of Years | BG16: Powertrain: Number of Miles | BH16: Is the bus equipped with Telematics? (Yes/No) | BI16: EPA or its partners may contact me about participating in research opportunities to provide bus or EVSE data that could inform future transportation work. (Yes/No) | BJ16: If Yes, Telematics Primary Point of contact (Name and email) | BK16: New Vehicle Fleet Owner | BL16: Does this bus operate in multiple school districts within this project? (Yes/No) | BM16: Does this bus operate in multiple counties? (Yes/No) | BN16: Place of Performance: School District | BO16: Place of Performance: NCES ID | BP16: Place of Performance: State | BQ16: Place of Performance: County | BR16: Percentage of Time operated in this County | BS16: Place of Performance: City | BT16: Place of Performance: Zip Code(s) | BU16: Place of Performance: School District_2 | BV16: Place of Performance: NCES ID_2 | BW16: Place of Performance: State_2 | BX16: Place of Performance: County_2 | BY16: Percentage of Time operated in this County 2 | BZ16: Place of Performance: City_2 | CA16: Place of Performance: Zip Code(s)_2 | CB16: Additional Counties where Vehicle Operates | CC16: Additional School Districts where Vehicle Operates (Name & NCES ID) | CD16: Percent of Time Operated in Each Additional County
A17: Example Vehicle | B17: 1N34FD78910113257 | C17: Manufacturer Name | D17: Model Name or # | E17: 1995 | F17: Diesel | G17: N/A | H17: 10150 | I17: Class 6 | J17: 140000 | K17: 12000 | L17: 1500 | M17: 6000 | N17: 3 | O17: Approved Scrappage Waiver | P17: Yes - waiver request rejected | Q17: Sarah Smith | R17: Warren 01 | S17: 1234567 | T17: SC | U17: Marion County | V17: 0.5 | W17: Springhill | X17: 22190 | Y17: Great Hills | Z17: 0563292 | AA17: TN | AB17: Fulton | AC17: 0.5 | AD17: Springfield | AE17: 38420 | AI17: 2023 | AJ17: 12345678912E97695 | AK17: Manufacturer Name | AL17: Model Name or # | AM17: 2023 | AN17: ABC | AO17: Electric | AP17: 12000 | AQ17: 375000 | AR17: 325000 | AS17: N/A | AT17: 12000 | AU17: N/A | AV17: Yes | AW17: Spheros Thermo 300 | AX17: Yes | AY17: 125 | AZ17: 168 | BA17: Yes | BB17: 8 | BC17: 160000 | BD17: 200000 | BE17: Yes | BF17: 4 | BG17: 100000 | BH17: Yes | BI17: Yes | BJ17: Sarah Smith, smith.sarah@HSD.edu | BK17: Sarah Smith | BL17: Yes | BM17: Yes | BN17: Warren 01 | BO17: 1234567 | BP17: SC | BQ17: Marion County | BR17: 0.5 | BS17: Springhill | BT17: 22190 | BU17: Great Hills | BV17: 0563292 | BW17: TN | BX17: Fulton | BY17: 0.5 | BZ17: Springfield | CA17: 38420
A18: Vehicle 1
A19: Vehicle 2
A20: Vehicle 3
A21: Vehicle 4
A22: Vehicle 5
A23: Vehicle 6
A24: Vehicle 7
A25: Vehicle 8
A26: Vehicle 9
A27: Vehicle 10
A28: Vehicle 11
A29: Vehicle 12
A30: Vehicle 13
A31: Vehicle 14
A32: Vehicle 15
A33: Vehicle 16
A34: Vehicle 17
A35: Vehicle 18
A36: Vehicle 19
A37: Vehicle 20
A38: Vehicle 21
A39: Vehicle 22
A40: Vehicle 23
A41: Vehicle 24
A42: Vehicle 25
A43: Vehicle 26
A44: Vehicle 27
A45: Vehicle 28
A46: Vehicle 29
A47: Vehicle 30
A48: Vehicle 31
A49: Vehicle 32
A50: Vehicle 33
A51: Vehicle 34
A52: Vehicle 35
A53: Vehicle 36
A54: Vehicle 37
A55: Vehicle 38
A56: Vehicle 39
A57: Vehicle 40
A58: Vehicle 41
A59: Vehicle 42
A60: Vehicle 43
A61: Vehicle 44
A62: Vehicle 45
A63: Vehicle 46
A64: Vehicle 47
A65: Vehicle 48
A66: Vehicle 49
A67: Vehicle 50
A68: Vehicle 51
A69: Vehicle 52
A70: Vehicle 53
A71: Vehicle 54
A72: Vehicle 55
A73: Vehicle 56
A74: Vehicle 57
A75: Vehicle 58
A76: Vehicle 59
A77: Vehicle 60
A78: Vehicle 61
A79: Vehicle 62
A80: Vehicle 63
A81: Vehicle 64
A82: Vehicle 65
A83: Vehicle 66
A84: Vehicle 67
A85: Vehicle 68
A86: Vehicle 69
A87: Vehicle 70
A88: Vehicle 71
A89: Vehicle 72
A90: Vehicle 73
A91: Vehicle 74
A92: Vehicle 75
A93: Vehicle 76
A94: Vehicle 77
A95: Vehicle 78
A96: Vehicle 79
A97: Vehicle 80
A98: Vehicle 81
A99: Vehicle 82
A100: Vehicle 83
A101: Vehicle 84
A102: Vehicle 85
A103: Vehicle 86
A104: Vehicle 87
A105: Vehicle 88
A106: Vehicle 89
A107: Vehicle 90
A108: Vehicle 91
A109: Vehicle 92
A110: Vehicle 93
A111: Vehicle 94
A112: Vehicle 95
A113: Vehicle 96
A114: Vehicle 97
A115: Vehicle 98
A116: Vehicle 99
A117: Vehicle 100

Sheet 10. EV Infrastructure
A1: U. S. Environmental Protection Agency
A2: Clean School Bus (CSB) Grant Programs Fleet Sheet
A3: EV Infrastructure Description
A5: Instructions
A6: Below are three tables (22-24). Please complete all three. The EVSE Equipment Information (Table 22) should detail all electric vehicle supply equipment (EVSE) and supporting infrastructure purchased under the project. Table 23 focuses on on-site power generation systems and Table 24 on battery storage systems. For all three tables, third-party and large school districts applicants, the infrastructure needs to be listed by school district and/or city. That is, if School District A and School District B are procuring the same EVSE, the EVSE will appear as two separate EVSE Groups. Similarly, for large school districts, if EVSE are being installed in two different locations, the EVSE needs to appear as two separate EVSE Groups. The EV Infrastructure worksheet should be updated semi-annually as EVSEs and supporting infrastructure are procured and installed. Please only fill out shaded cells highlighted blue with a diagonal pattern (///); however, additional rows may be add as needed to capture all equipment. Please refer to the EV Infrastructure data definitions on Tab 12 (Data Dictionary) for data field definitions. Reminder: All Level 2 EVSEs must be ENERGY STAR certified.
A8: Build America, Buy America (BABA) requirements
A9: On November 15, 2021, the Infrastructure Investment and Jobs Act ("IIJA"), Pub. L. No. 117-58, which includes the Build America, Buy America Act (BABA), Public Law 117-58, §§ 70901-52, was signed into law. BABA requires that on or after May 14, 2022, all of the iron, steel, manufactured products, and construction materials used in infrastructure project are produced in the United States. If award recipient will be installing, upgrading, or replacing “infrastructure,” with funds included in the assistance agreement (EPA funds), then BABA requirements apply to the infrastructure project. The assistance agreement includes all funds in the final award document and approved budget table. However, any infrastructure costs that are paid solely with non-federal funding and not included as cost share in any federal grant are not subject to BABA; cost share is defined in 2 CFR 200.306. For those non-federal funds not subject to BABA and included as “other leveraged resources” in the grantee’s workplan, the grantee would still need to meet any related leveraged funds terms and conditions of the grant agreement. Regardless, each funding recipient is encouraged to use goods, products, and materials produced in the United States, to the maximum extent, consistent with applicable law as described in 2 CFR 200.322. For more information, please visit https://www.epa.gov/cwsrf/build-america-buy-america-baba.
B11: Table 22. EVSE Equipment Information | R11: Location of EV Infrastructure | X11: School District Information | AA11: Infrastructure Installation Information | AI11: BABA Compliance (Applies to infrastructure equipment purchased with EPA funds) | AL11: Totals
B12: Type of Charger | C12: If Level 2, is it ENERGY STAR certified | D12: EVSE Manufacturer | E12: EVSE Model | F12: EVSE Manufacture Year | G12: EVSE Maximum Output Power (kW) | H12: Number of Plugs on EVSE | I12: Is the EVSE Capable of Bidirectional Charging? | J12: Will the Bus and EVSE be Used for V2G? | K12: EVSE Number of Units | L12: EVSE Equipment Cost only Per Unit: | M12: Funding Source for EVSE Equipment (Select all that apply) | N12: Total EPA Funds Expended Per EVSE Unit | O12: Total EPA Funds Expended for EVSE | P12: Total Other Leveraged Funds Expended for EVSE | Q12: Date of EVSE Installation (mm/dd/yyyy) | R12: State (select from dropdown) | S12: County (select from dropdown after selecting State) | T12: City | U12: Zip Code | V12: Street Address | W12: Who owns the charger? | X12: Does the EVSE serve multiple school districts within this application? | Y12: Name of the School District(s) the EVSE will serve (use a colon between school districts) | Z12: NCES ID of School District that the EVSE will serve (use a colon between school districts) | AA12: Total Funds Expended Installation Cost | AB12: Funding Source for EVSE Equipment Installation Cost (Select all that apply) | AC12: Total EPA Funds Expended Installation Cost: | AD12: Total Other Leveraged Funds Expended Installation Cost: | AE12: Does the Infrastructure Equipment Cost Include Installation? | AF12: Description of Installation Work | AG12: Installation Work Performed By | AH12: Installation was conducted by an individual who meets the infrastructure electrician requirements as outlined in the program guidance? (Select Option) | AI12: Is the infrastructure subject to BABA? (Applies to infrastructure purchased with EPA Funds) | AJ12: Is this infrastructure BABA Compliant? (Select Options) | AK12: Is a waiver is being used, please select waiver type (Select all that apply) | AL12: Total Federal Funds Expended Equipment and Installation | AM12: Total Other Leveraged Funds Expended for Equipment and Installation
A13: Example EV Infrastructure | B13: Level 2 | C13: Yes | D13: Manufacturer Name | E13: Model Name | F13: 2023 | G13: 24 | H13: 2 | I13: Yes | J13: No | K13: 2 | L13: 16000 | M13: Federal, State | N13: 12000 | O13: =K13*N13 -> 24000 | P13: =(K13*L13)-O13 -> 8000 | Q13: 2024-06-28 | R13: VA | S13: Arlington County | T13: Alexandria | U13: 22305 | V13: 400 1st Street | W13: Walton School District | X13: Yes | Y13: Walton School District: Franklin School District | Z13: 1234567: 7654321 | AA13: 12000 | AB13: State, Federal | AC13: 7000 | AD13: =AA13-AC13 -> 5000 | AE13: No | AF13: Upgrades to the electrical panel, wiring, and installation for two DCFC | AG13: XYZ Electric Co. | AH13: Yes - Certification from EVITP | AI13: =IF(O13+AC13>0,"Yes","No") -> Yes | AJ13: Yes - This infrastructure is BABA compliant | AK13: No - Infrastructure meets all BABA requirements | AL13: =AC13+O13 -> 31000 | AM13: =AD13+P13 -> 13000
A14: EVSE Group 1 | O14: =K14*N14 -> 0 | P14: =(K14*L14)-O14 -> 0 | AD14: =AA14-AC14 -> 0 | AI14: =IF(O14+AC14>0,"Yes","No") -> No | AL14: =AC14+O14 -> 0 | AM14: =AD14+P14 -> 0
A15: EVSE Group 2 | O15: 0 | P15: =(K15*L15)-O15 -> 0 | AD15: 0 | AI15: No | AL15: 0 | AM15: 0
A16: EVSE Group 3 | O16: 0 | P16: 0 | AD16: 0 | AI16: No | AL16: 0 | AM16: 0
A17: EVSE Group 4 | O17: 0 | P17: 0 | AD17: 0 | AI17: No | AL17: 0 | AM17: 0
A18: EVSE Group 5 | O18: 0 | P18: 0 | AD18: 0 | AI18: No | AL18: 0 | AM18: 0
A19: EVSE Group 6 | O19: 0 | P19: 0 | AD19: 0 | AI19: No | AL19: 0 | AM19: 0
A20: EVSE Group 7 | O20: 0 | P20: 0 | AD20: 0 | AI20: No | AL20: 0 | AM20: 0
A21: EVSE Group 8 | O21: 0 | P21: 0 | AD21: 0 | AI21: No | AL21: 0 | AM21: 0
A22: EVSE Group 9 | O22: 0 | P22: 0 | AD22: 0 | AI22: No | AL22: 0 | AM22: 0
A23: EVSE Group 10 | O23: 0 | P23: 0 | AD23: 0 | AI23: No | AL23: 0 | AM23: 0
A24: EVSE Group 11 | O24: 0 | P24: 0 | AD24: 0 | AI24: No | AL24: 0 | AM24: 0
A25: EVSE Group 12 | O25: 0 | P25: 0 | AD25: 0 | AI25: No | AL25: 0 | AM25: 0
A26: EVSE Group 13 | O26: 0 | P26: 0 | AD26: 0 | AI26: No | AL26: 0 | AM26: 0
A27: EVSE Group 14 | O27: 0 | P27: 0 | AD27: 0 | AI27: No | AL27: 0 | AM27: 0
A28: EVSE Group 15 | O28: 0 | P28: 0 | AD28: 0 | AI28: No | AL28: 0 | AM28: 0
A29: EVSE Group 16 | O29: 0 | P29: 0 | AD29: 0 | AI29: No | AL29: 0 | AM29: 0
A30: EVSE Group 17 | O30: 0 | P30: 0 | AD30: 0 | AI30: No | AL30: 0 | AM30: 0
A31: EVSE Group 18 | O31: 0 | P31: 0 | AD31: 0 | AI31: No | AL31: 0 | AM31: 0
A32: EVSE Group 19 | O32: 0 | P32: 0 | AD32: 0 | AI32: No | AL32: 0 | AM32: 0
A33: EVSE Group 20 | O33: 0 | P33: 0 | AD33: 0 | AI33: No | AL33: 0 | AM33: 0
A34: EVSE Group 21 | O34: 0 | P34: 0 | AD34: 0 | AI34: No | AL34: 0 | AM34: 0
A35: EVSE Group 22 | O35: 0 | P35: 0 | AD35: 0 | AI35: No | AL35: 0 | AM35: 0
A36: EVSE Group 23 | O36: 0 | P36: 0 | AD36: 0 | AI36: No | AL36: 0 | AM36: 0
A37: EVSE Group 24 | O37: 0 | P37: 0 | AD37: 0 | AI37: No | AL37: 0 | AM37: 0
A38: EVSE Group 25 | O38: 0 | P38: 0 | AD38: 0 | AI38: No | AL38: 0 | AM38: 0
A39: EVSE Group 26 | O39: 0 | P39: 0 | AD39: 0 | AI39: No | AL39: 0 | AM39: 0
A40: EVSE Group 27 | O40: 0 | P40: 0 | AD40: 0 | AI40: No | AL40: 0 | AM40: 0
A41: EVSE Group 28 | O41: 0 | P41: 0 | AD41: 0 | AI41: No | AL41: 0 | AM41: 0
A42: EVSE Group 29 | O42: 0 | P42: 0 | AD42: 0 | AI42: No | AL42: 0 | AM42: 0
A43: EVSE Group 30 | O43: 0 | P43: 0 | AD43: 0 | AI43: No | AL43: 0 | AM43: 0
B47: Table 23. On-Site Power Generation Equipment Information | Q47: Location of On-site Power Generation Infrastructure | Z47: BABA Compliance | AC47: Totals
B48: Type of energy generation | C48: Manufacturer of On-site Power Generation | D48: Model of On-site Power Generation | E48: Manufacture Year of On-site Power Generation | F48: Generation Capacity of the system (please indicate kW or MW) | G48: Date the On-site Power Generation & Associated Equipment was Manufactured | H48: Equipment Cost only Per Power Generation System | I48: Funding Source for On-site Power Generation (Select all that apply) | J48: Total EPA Funds Expended Per Power Generation System | K48: Total Other Leveraged Funds Expended Per Power Generation System | L48: Total Funds Expended - Installation Cost | M48: Funding Source for Installation Cost (Select all that apply) | N48: Total EPA Funds Expended - Installation Cost | O48: Total Other Leveraged Funds Expended - Installation Cost | P48: Date the On-site Power Generation was Installed (mm/dd/yyyy) | Q48: Date the On-site Power Generation was Operational (mm/dd/yyyy) | R48: State (select from dropdown) | S48: County (select from dropdown after selecting State) | T48: City | U48: Zip Code | V48: Street Address | W48: Who owns the equipment? | X48: Name of the School District(s) the On-site Power Generation will serve | Y48: NCES ID of School District that the On-site Power Generation will serve | Z48: Is the On-site Power Generation subject to BABA? (Purchased with EPA Funds) | AA48: Is the On-site Power Generation BABA Compliant? (Select Options) | AB48: Is a waiver being used to fulfill BABA compliance for the On-site Power Generation? | AC48: Total EPA Funds Expended - Equipment and Installation | AD48: Total Other Leveraged Funds Expended - Equipment and Installation
A49: Example On-site Power Generation | B49: Solar | C49: Manufacturer Name | D49: Model Name | E49: 2023 | F49: 15 kW | G49: solar panels: May 2024; wiring: Jan 2024 | H49: 45000 | I49: Federal | J49: 45000 | K49: =H49-J49 -> 0 | L49: 7000 | M49: Federal, State | N49: 5000 | O49: =L49-N49 -> 2000 | P49: 2024-06-27 | Q49: 2024-08-28 | R49: VA | S49: Arlington County | T49: Alexandria | U49: 22305 | V49: 400 1st Street | W49: Walton School District | X49: Walton School District | Y49: 1234567 | Z49: =IF(J49+N49>0,"Yes","No") -> Yes | AA49: Yes - This infrastructure is BABA compliant | AB49: No - Infrastructure meets all BABA requirements | AC49: =J49+N49 -> 50000 | AD49: =K49+O49 -> 2000
A50: On-site Power Generation 1 | K50: =H50-J50 -> 0 | O50: =L50-N50 -> 0 | Z50: =IF(J50+N50>0,"Yes","No") -> No | AC50: 0 | AD50: 0
A51: On-site Power Generation 2 | K51: 0 | O51: 0 | Z51: =IF(J51+N51>0,"Yes","No") -> No | AC51: 0 | AD51: 0
A52: On-site Power Generation 3 | K52: 0 | O52: 0 | Z52: No | AC52: 0 | AD52: 0
A53: On-site Power Generation 4 | K53: 0 | O53: 0 | Z53: No | AC53: 0 | AD53: 0
A54: On-site Power Generation 5 | K54: 0 | O54: 0 | Z54: No | AC54: 0 | AD54: 0
A55: On-site Power Generation 6 | K55: 0 | O55: 0 | Z55: No | AC55: 0 | AD55: 0
A56: On-site Power Generation 7 | K56: 0 | O56: 0 | Z56: No | AC56: 0 | AD56: 0
A57: On-site Power Generation 8 | K57: 0 | O57: 0 | Z57: No | AC57: 0 | AD57: 0
A58: On-site Power Generation 9 | K58: 0 | O58: 0 | Z58: No | AC58: 0 | AD58: 0
A59: On-site Power Generation 10 | K59: 0 | O59: 0 | Z59: No | AC59: 0 | AD59: 0
B63: Table 24. Battery Energy Storage System (BESS) Equipment Information | P63: Location of BESS Infrastructure | Z63: BABA Compliance | AC63: Totals
B64: Type of Battery | C64: Manufacturer of BESS | D64: Model of BESS | E64: Manufacture Year of BESS | F64: Energy Capacity (please indicate kWh or MWh) | G64: Date the BESS & Associated Equipment was Manufactured | H64: Equipment Cost only Per Unit: | I64: Funding Source for Equipment (Select all that apply) | J64: Total EPA Funds Expended Per Unit | K64: Total Other Leveraged Funds Expended Per Unit | L64: Total Funds Expended - Installation Cost | M64: Funding Source for Installation Cost (Select all that apply) | N64: Total EPA Funds Expended - Installation Cost: | O64: Total Other Leveraged Funds Expended - Installation Cost | P64: Date the BESS Installed (mm/dd/yyyy) | Q64: Date the BESS was Operational (mm/dd/yyyy) | R64: State (select from dropdown) | S64: County (select from dropdown after selecting State) | T64: City | U64: Zip Code | V64: Street Address | W64: Who owns the equipment? | X64: Name of the School District the BESS will serve | Y64: NCES ID of School District that the BESS will serve | Z64: Is the BESS subject to BABA? (Purchased with EPA Funds) | AA64: Is the BESS BABA Compliant? (Select Options) | AB64: Is a waiver being used to fulfill BABA compliance for the BESS? | AC64: Total EPA Funds Expended - Equipment and Installation | AD64: Total Other Leveraged Funds Expended - Equipment and Installation
A65: BESS Example | B65: Lithium-Ion | C65: Manufacturer Name | D65: Model Name | E65: 2023 | F65: 36kWh | G65: battery: May 2024; wiring: Jan 2024 | H65: 48000 | I65: Federal | J65: 20000 | K65: =H65-J65 -> 28000 | L65: 12000 | M65: Federal | N65: 8000 | O65: =L65-N65 -> 4000 | P65: 2024-06-27 | Q65: 2024-08-28 | R65: VA | S65: Arlington County | T65: Alexandria | U65: 22305 | V65: 400 1st Street | W65: Walton School District | X65: Walton School District | Y65: 1234567 | Z65: =IF(J65+N65>0,"Yes","No") -> Yes | AA65: Yes - This infrastructure is BABA compliant | AB65: No - Infrastructure meets all BABA requirements | AC65: =J65+N65 -> 28000 | AD65: =K65+O65 -> 32000
A66: BESS Group 1 | K66: =H66-J66 -> 0 | O66: =L66-N66 -> 0 | Z66: =IF(J66+N66>0,"Yes","No") -> No | AC66: 0 | AD66: 0
A67: BESS Group 2 | K67: 0 | O67: =L67-N67 -> 0 | Z67: =IF(J67+N67>0,"Yes","No") -> No | AC67: 0 | AD67: 0
A68: BESS Group 3 | K68: 0 | O68: 0 | Z68: No | AC68: 0 | AD68: 0
A69: BESS Group 4 | K69: 0 | O69: 0 | Z69: No | AC69: 0 | AD69: 0
A70: BESS Group 5 | K70: 0 | O70: 0 | Z70: No | AC70: 0 | AD70: 0
A71: BESS Group 6 | K71: 0 | O71: 0 | Z71: No | AC71: 0 | AD71: 0
A72: BESS Group 7 | K72: 0 | O72: 0 | Z72: No | AC72: 0 | AD72: 0
A73: BESS Group 8 | K73: 0 | O73: 0 | Z73: No | AC73: 0 | AD73: 0
A74: BESS Group 9 | K74: 0 | O74: 0 | Z74: No | AC74: 0 | AD74: 0
A75: BESS Group 10 | K75: 0 | O75: 0 | Z75: No | AC75: 0 | AD75: 0

Sheet 11. Final Report
A1: U. S. Environmental Protection Agency
A2: Clean School Bus (CSB) Grant Program
A3: Final Report: Financial and Narrative Summary
A5: Grant Recipient | C5: ='4. Financial Summary'!D5 -> 0 | G5: Federal (EPA) Project Award Amount | K5: ='4. Financial Summary'!O5 -> 0
A6: Program FY | C6: ='4. Financial Summary'!D6 -> 0 | G6: Other Leveraged Funds | K6: ='4. Financial Summary'!O6 -> 0
A7: Grant Number | C7: ='4. Financial Summary'!D7 -> 0 | G7: Federal (EPA) Funds Expended to Date | K7: ='4. Financial Summary'!O7 -> 0
A8: Project Period of Performance | C8: ='4. Financial Summary'!D8 -> 0 | G8: Federal (EPA) Funds Remaining | K8: ='4. Financial Summary'!O8 -> 0
A9: Project Title | C9: ='4. Financial Summary'!D9 -> 0
A11: Table 25. Project Updates - Narrative Responses
A12: Record final project information.
A13: Please paste the planned activities, outputs, and outcome from the last semi-annual report. Please indicate the final results below, including at least 1-2 sentences.
A14: Activities | F14: Anticipated Outputs | I14: Anticipated Outcomes | L14: ACTUAL Results
A27: Table 26: Additional Questions
A28: Please provide programmatic and narrative financial results on the project.
A29: Question | F29: Answer
A30: 1. Provide a narrative description of the project.
A31: 2. Explain the reason for any differences in proposed versus actual outputs/outcomes identified in Table 15 above.
A32: 3. Provide a narrative discussion of the actual project results (outputs and outcomes) and how the results are quantified. These may include, but are not limited to:  Number of replaced or retrofitted engines/vehicles/equipment and/or hours of idling reduced;  Adoption of an idle-reduction policy or changes in driver behavior regarding idling practices  Dissemination of the project information and increased knowledge via list serves, websites, journals, and press/outreach events (provide web links where applicable);  Widespread adoption of the implemented technology;  Increased public awareness of project and results  Other
A33: 4. Provide information on subrecipients and vendors:  Sub-recipient information (name, award amount, project description);  Vendor information (name, payment amount, good/services provided);
A34: 5. Provide a narrative discussion of the successes and lessons learned for the entire project.
A35: 6. If other leveraged funds are reported, identify the source of the funds.
A36: 7. Was any program income generated during the project period? Identify amount of program income, how it was generated, and how the program income was used.
A37: 8. For projects involving vehicle/equipment replacement, please provide: a) Evidence that the replacement activity is an “early replacement,” and would not have occurred during the project period through normal attrition (i.e. without the financial assistance provided by EPA). Supporting evidence can include verification that the vehicles or equipment replaced had useful life left and fleet characterization showing fleet age ranges and average turnover rates per the vehicle or fleet owner’s budget plan, operating plan, standard procedures, or retirement schedule; and b) Evidence of appropriate scrappage, sale, or vehicle donation (if applicable) including the engine serial number and/or the vehicle identification number (VIN). *Include Attachments as Necessary
A38: 9. For projects that take place in an area affected by, or that include affected vehicles, engines or equipment affected by, Federal, State or local law mandating emissions reductions, provide evidence that emission reductions funded with EPA funds were implemented prior to the effective date of the mandate and/or are in excess of (above and beyond) those required by the applicable mandate. *Include Attachments as Necessary
A39: 10. Did you include at least one photo of successful, new equipment(s) or vehicle(s) employed? If yes, please indicate if you approve of permission for EPA's future use of the photo(s) in future internal and external documents including, but not limited to Reports to Congress and case studies highlighting CSB success stories.
A40: 11. Do you have any other comments or feedback?

Sheet 12. Data Dictionary
A1: Fleet Description Data Fields: Please refer to the following data field dictionary for support in completing tabs 2-11.
A2: 2. PROPOSED WORK PLAN
A3: School District Summary
A4: Prioritized | C4: Select yes if the school district listed on the 2023 CSB Grants Program Prioritized School District List.
A5: Self-Certified as Prioritized | C5: If the school district self-certifies as Prioritized, indicate which of the three criteria the school district is using to self-certify.
A6: Non-Attainment or Maintenance Area | C6: Select yes if school district is located in a non-attainment or Maintenance area.
A7: 4. Financial Summary
A8: Funding Information
A9: EPA Funds | C9: Federal project award amount approved from final work plan.
A10: Other Leveraged Funds | C10: Non-EPA funds that support the proposed project activities such as public private-partnerships, grants from other entities, or the issuance of school bonds.
A11: 9. FLEET DESCRIPTION
A12: Current Vehicle Information
A13: Basic Vehicle Information
A14: Vehicle Identification Number | C14: Enter the VIN number for each vehicle. Note that a VIN is 17 characters, which does not include the letters O(o), I(i), or Q(q) to avoid confusion with the number 0, 1, and 9.
A15: Vehicle Manufacturer | C15: Enter the manufacturer of the existing vehicle.
A16: Vehicle Model | C16: Enter the model of the existing vehicle.
A17: Baseline Vehicle Model Year | C17: Enter the model year of the existing vehicle.
A18: Baseline Engine Fuel Type | C18: Select the type of fuel that is currently being used (prior to upgrade).
A19: Engine Family Name | C19: Enter the Engine Family name of the existing Engine. NOTE: unregulated engines will not have an Engine Family Name. If unregulated, then NA
A20: GVWR | C20: Enter the gross vehicle weight rating (GVWR) of the existing vehicle.
A21: Class | C21: Select from the dropdown menu the bus.
A22: Odometer | C22: Enter the existing bus's current odometer reading, in miles.
A23: Annual Miles Traveled | C23: Enter the average number of vehicle miles traveled per year per vehicle.
A24: Annual Idling Hours | C24: Enter the average number of hours the vehicle idles per year.
A25: Annual Amount of Fuel Used | C25: Enter the amount of fuel used in gallons/year.
A26: Remaining Life of Baseline Vehicle | C26: Enter the remaining life of baseline engine/vehicle in years at the time of the upgrade action.
A27: Vehicle Disposition/Replacement Process | C27: Select a vehicle disposition option.
A28: Did the applicant request a scrappage waiver? | C28: Select the outcome of a scrappage waiver request if applicable.
A29: Basic Fleet Information
A30: Current Fleet Owner | C30: Enter the first and last name and email address of the individual or organization that owns the fleet.
A31: Place of Performance: School District | C31: Enter the name of the school district in which the bus to be scrapped, sold, or donated has operated in.
A32: Place of Performance: NCES ID | C32: Enter the name of the National Center for Education Statistics (NCES) ID associated with the school district in which the bus to be scrapped, sold, or donated has operated in. If you are unsure of the district's NCES ID, you can search for the district at https://nces.ed.gov/ccd/districtsearch/.
A33: Place of Performance: State | C33: Select the two letter postal code for the state in which the bus to be scrapped, sold, or donated has operated in.
A34: Place of Performance: County(s) | C34: Enter the county in which the bus to be scrapped, sold, or donated has operated. If it has operated in multiple counties, record all and separate using a colon (e.g., Polk: Butler).
A35: Place of Performance: City | C35: Enter the city in which the bus to be scrapped, sold, or donated has operated in.
A36: Place of Performance: Zip Code(s) | C36: Enter the zip code in which the bus to be scrapped, sold, or donated has operated in. If it has operated in multiple zip codes, record all and separate using a colon (e.g., 50190 : 50191).
A37: Percentage of Time operated in each County | C37: Enter the percent of time the bus to be scrapped, sold, or donated has operated in each county. If there is more than one. separate using a colon (Polk - 80%: Butler 20%).
A38: New Replacement Vehicle Information
A39: Upgrade Vehicle Information
A40: Year of Upgrade Action: | C40: Enter the year the upgrade happened.
A41: VIN for New Vehicle(s) | C41: Enter the vehicle identification numbers (VIN) of the new vehicle.
A42: New Vehicle Manufacturer: | C42: Enter the manufacturer of the new vehicle.
A43: New Vehicle Model: | C43: Enter the model of the new vehicle.
A44: New Vehicle Model Year: | C44: Enter the model year of the new vehicle.
A45: New Engine or Vehicle Family Name: | C45: Enter the engine family name of the new propane vehicle or the vehicle family name of the new electric vehicle.
A46: New Vehicle Fuel Type: | C46: Select the fuel type of the new vehicle.
A47: New Vehicle GVWR: | C47: Enter the gross vehicle weight rating (GVWR) of the new vehicle.
A48: Upgrade Cost per Bus | C48: Enter the cost of vehicle in dollars per unit.
A49: Total Federal Funds Expended Per Bus | C49: Enter the federal funds expended per vehicle in dollars per unit.
A50: New Vehicle Annual Data
A51: New Vehicle Annual Idling Hours | C51: Enter the new average number of idling hours for the new engine.
A52: New Vehicle Annual Miles Traveled | C52: Enter the average number of vehicle miles traveled per year per new vehicle.
A53: New Vehicle Annual Fuel Volume | C53: Enter the new annual fuel volume, in gallons/year for propane or CNG only.
A54: New Vehicle Equipped with Auxiliary Heater? | C54: Select yes or no to specify whether the vehicle is equipped with an auxiliary heater.
A55: Auxiliary Heater Type | C55: If bus has an auxiliary heater, enter the type.
A56: Zero Emission Vehicle Data
A57: Capable of Bidirectional Charging? | C57: Select yes or no into the cell to specify whether the vehicle is capable of bidirectional charging.
A58: Estimate Range in Miles (for ZEV only) | C58: Enter the estimated range in miles for the zero-emission vehicle.
A59: Battery Capacity in kWh (for ZEV only) | C59: Enter the battery capacity in kilowatt-hours for the zero-emission vehicle.
A60: Is the Battery Warranty Included? | C60: Select yes or no into the cell to specify whether the vehicle battery warranty is included.
A61: Battery indicate Number of Years | C61: If the battery includes a warranty, indicate the number of years the coverage is valid for
A62: Battery: Number of Miles | C62: If the battery includes a warranty, indicate the number of miles the coverage is valid for
A63: Battery: Total kWh of battery discharge | C63: Enter the total kWh of battery discharge
A64: Powertrain Warranty Included? | C64: Select yes or no into the cell to specify whether a powertrain battery warranty is included.
A65: Powertrain: Number of Years | C65: If the powertrain includes a warranty, indicate the number of years the coverage is valid for
A66: Powertrain: Number of Miles | C66: If the powertrain includes a warranty, indicate the number of miles the coverage is valid for
A67: Is the bus equipped with Telematics? | C67: Select yes or no into the cells it specify whether the vehicle is equipped with telematics.
A68: EPA or its partners may contact me about participating in research opportunities to provide bus or EVSE data that could inform future transportation work. | C68: Select yes or no.
A69: If Yes, Telematics Primary Point of contact (Name and email) | C69: Enter First and Last name and email address.
A70: New Vehicle Fleet Information
A71: New Vehicle Fleet Owner | C71: Enter the first and last name and email address of the individual or organization that owns the fleet.
A72: Does this bus operate in multiple counties within the project? | C72: Select yes or no.
A73: Place of Performance Replacement: School District | C73: Enter the name of the school district in which the new bus will operate in. If it will operate in multiple school districts, list all and separate with a colon (e.g., Hampton School District: Edgewood School District).
A74: Place of Performance Replacement: NCES ID | C74: Enter the name of the National Center for Education Statistics (NCES) ID associated with the school district in which the new bus will operate in. If it will operate in multiple school districts, list all NCES IDs and separate with a colon (e.g., 1234567: 7654321).
A75: Does this bus operate in multiple counties? | C75: Select yes or no.
A76: % of Time Replacement operated in each County | C76: Enter the percent of time the new bus will operate in each county. If there is more than one, separate using a colon (Polk 80%: Butler 20%)
A77: 10. EV INFRASTRUCTURE
A78: EVSE Equipment Information
A79: Type of Charger | C79: Enter the type of charger, either Level 2 (AC charging up to 19.2 kW) or DC Fast Charging.
A80: If Level 2, is it ENERGY STAR certified | C80: Confirm and select yes if applicable. Please see https://www.energystar.gov/
A81: EVSE Manufacturer | C81: Enter the manufacturer of the charging equipment
A82: EVSE Model | C82: Enter the model name of the charging equipment.
A83: EVSE Manufacture Year | C83: Enter the year the charging equipment was manufactured.
A84: Is the EVSE BABA Compliant? | C84: Select an option. EVSE manufactured on or after July 1, 2024 must be meet BABA requirements.
A85: EVSE Maximum Output Power (kW) | C85: Enter the maximum power output of the charging equipment, measured in kilowatts.
A86: Number of Plugs on EVSE | C86: Enter the number of plugs installed on each unit of the charging equipment.
A87: Is the EVSE Capable of Bidirectional Charging? | C87: Select yes or no into the cell to specify whether the charging equipment is capable of bidirectional charging.
A88: Will the Bus and EVSE be Used for V2G? | C88: Select yes or no into the cell to specify whether the buses and charging equipment will be used for vehicle-to-grid (V2G) services.
A89: EVSE Number of Units | C89: Enter the quantity of charging equipment unit
A90: EVSE Equipment Cost only Per Unit: | C90: Enter the cost of the charging equipment per unit.
A91: Funding Source for EVSE Equipment | C91: Select the source(s) of all funds being using to purchase EVSE equipment from the dropdown. The listed funding sources are from the SF-424 and should reflect the activities updates of other leveraged funds from tabs 4-7 and tab 11.
A92: Total Federal Funds Expended Per EVSE Unit | C92: Enter the total Federal funds expend for charging equipment per unit.
A93: Total Federal Funds Expended for EVSE | C93: No action - autopopulated
A94: Total Other Leveraged Funds Expended for EVSE | C94: No action - autopopulated
A95: Date of EVSE Installation (mm/dd/yyyy) | C95: Enter the date on which the EVSE is permanently affixed.
A96: Location of EV Infrastructure
A97: State | C97: Select the two letter postal code for the state in which the charging equipment will be located.
A98: County | C98: Enter the county in which the charging equipment will be located.
A99: City | C99: Enter the city in which the charging equipment will be located.
A100: Zip Code | C100: Enter the zip code in which the charging equipment will be located.
A101: Street Address | C101: Enter the street address in which the charging equipment will be located.
A102: Who owns the charger? | C102: Enter the name of the school district or organization that owns the charging equipment.
A103: Does the EVSE serve multiple school districts within this application? | C103: Select yes or no
A104: Name of the School District(s) the EVSE will serve (use a colon between school districts) | C104: Enter the name of the school district in which the EVSE will serve. If it will serve multiple school districts, list all and separate with a colon (e.g., Hampton School District: Edgewood School District).
A105: NCES ID of School District that the EVSE will serve (use a colon between school districts) | C105: Enter the name of the National Center for Education Statistics (NCES) ID associated with the school district in which the EVSE will serve. If it will serve multiple school districts, list all NCES IDs and separate with a colon (e.g., 1234567: 7654321).
A106: Infrastructure Installation Information
A107: Total Funds Expended Installation Cost | C107: Enter the total installation costs for the charging equipment for the EV infrastructure group column.
A108: Funding Source for EVSE Equipment Installation Cost | C108: Select the source(s) of all funds being using to purchase EVSE equipment from the dropdown. The listed funding sources are from the SF-424 and should reflect the activities updates of other leveraged funds from tabs 4-7 and tab 11.
A109: Total Federal Funds Expended Installation Cost | C109: Enter the total Federal funds expended for installation costs for the charging equipment for the EV infrastructure group column.
A110: Total Other Leveraged Funds Expended Installation Cost | C110: No action - autopopulated
A111: Does the Infrastructure Equipment Cost Include Installation? | C111: Please enter yes or no into the cell to specify whether the indicated cost of the charging equipment above includes any installation expenses.
A112: Description of Installation Work | C112: Enter a description of the work performed to install the charging equipment, such as design and engineering, trenching, wiring and electrical upgrades, labor, and permitting.
A113: Installation Work Performed By | C113: Enter the name(s) of the organization(s) that performed the installation work described above.
A114: Installation was conducted by an individual who meets the infrastructure electrician requirements as outlined in the program guidance? | C114: Select electrician category
A115: Is waiver being used to fulfill BABA compliance for the Infrastructure Project | C115: If a waiver is being used to meet BABA compliance requirements, select the waiver type
A116: Total Federal Funds Expended Equipment and Installation | C116: Automated cell that will calculate the total Federal Funds expended for the charging equipment and installation for an EV Infrastructure Group.
A117: Total Other Leveraged Funds Equipment and Installation | C117: Automated cell that will calculate the total Leveraged Funds expended for the charging equipment and installation for an EV Infrastructure Group.
A118: On-Site Power Generation Equipment Information
A119: Type of energy generation | C119: Select a type of energy generation, solar or wind.
A120: Generation Capacity of the system | C120: Enter the generation capacity of the system as either kW or MW. Please indicate unit of measurement.
A121: Battery Energy Storage System (BESS) Equipment Information
A122: Type of Battery | C122: Select a type of battery
A123: Energy Capacity | C123: Enter the generation capacity of the system as either kWh or MWh. Please indicate unit of measurement.

Sheet Hidden_State County Lookups (hidden)
A1: statelist | C1: AL | D1: AK | E1: AZ | F1: AR | G1: CA | H1: CO | I1: CT | J1: DE | K1: DC | L1: FL | M1: GA | N1: HI | O1: ID | P1: IL | Q1: IN | R1: IA | S1: KS | T1: KY | U1: LA | V1: ME | W1: MD | X1: MA | Y1: MI | Z1: MN | AA1: MS | AB1: MO | AC1: MT | AD1: NE | AE1: NV | AF1: NH | AG1: NJ | AH1: NM | AI1: NY | AJ1: NC | AK1: ND | AL1: OH | AM1: OK | AN1: OR | AO1: PA | AP1: RI | AQ1: SC | AR1: SD | AS1: TN | AT1: TX | AU1: UT | AV1: VT | AW1: VA | AX1: WA | AY1: WV | AZ1: WI | BA1: WY | BB1: AS | BC1: GU | BD1: MP | BE1: PR | BF1: VI | BH1: County FIPS | BI1: county | BJ1: state | BK1: CountyState
A2: AL | C2: Autauga County | D2: Aleutians East Borough | E2: Apache County | F2: Arkansas County | G2: Alameda County | H2: Adams County | I2: Capitol | J2: Kent County | K2: District of Columbia | L2: Alachua County | M2: Appling County | N2: Hawaii County | O2: Ada County | P2: Adams County | Q2: Adams County | R2: Adair County | S2: Allen County | T2: Adair County | U2: Acadia Parish | V2: Androscoggin County | W2: Allegany County | X2: Barnstable County | Y2: Alcona County | Z2: Aitkin County | AA2: Adams County | AB2: Adair County | AC2: Beaverhead County | AD2: Adams County | AE2: Churchill County | AF2: Belknap County | AG2: Atlantic County | AH2: Bernalillo County | AI2: Albany County | AJ2: Alamance County | AK2: Adams County | AL2: Adams County | AM2: Adair County | AN2: Baker County | AO2: Adams County | AP2: Bristol County | AQ2: Abbeville County | AR2: Aurora County | AS2: Anderson County | AT2: Anderson County | AU2: Beaver County | AV2: Addison County | AW2: Accomack County | AX2: Adams County | AY2: Barbour County | AZ2: Adams County | BA2: Albany County | BB2: Eastern District | BC2: Guam | BD2: Northern Islands Municipality | BE2: Adjuntas Municipio | BF2: St. Croix Island | BH2: 01001 | BI2: Autauga County | BJ2: AL | BK2: =_xlfn.TEXTJOIN(", ", TRUE, BI2,BJ2) -> Autauga County, AL
A3: AK | C3: Baldwin County | D3: Aleutians West Census Area | E3: Cochise County | F3: Ashley County | G3: Alpine County | H3: Alamosa County | I3: Greater Bridgeport | J3: New Castle County | L3: Baker County | M3: Atkinson County | N3: Honolulu County | O3: Adams County | P3: Alexander County | Q3: Allen County | R3: Adams County | S3: Anderson County | T3: Allen County | U3: Allen Parish | V3: Aroostook County | W3: Anne Arundel County | X3: Berkshire County | Y3: Alger County | Z3: Anoka County | AA3: Alcorn County | AB3: Andrew County | AC3: Big Horn County | AD3: Antelope County | AE3: Clark County | AF3: Carroll County | AG3: Bergen County | AH3: Catron County | AI3: Allegany County | AJ3: Alexander County | AK3: Barnes County | AL3: Allen County | AM3: Alfalfa County | AN3: Benton County | AO3: Allegheny County | AP3: Kent County | AQ3: Aiken County | AR3: Beadle County | AS3: Bedford County | AT3: Andrews County | AU3: Box Elder County | AV3: Bennington County | AW3: Albemarle County | AX3: Asotin County | AY3: Berkeley County | AZ3: Ashland County | BA3: Big Horn County | BB3: Manu'a District | BD3: Rota Municipality | BE3: Aguada Municipio | BF3: St. John Island | BH3: 01003 | BI3: Baldwin County | BJ3: AL | BK3: =_xlfn.TEXTJOIN(", ", TRUE, BI3,BJ3) -> Baldwin County, AL
A4: AZ | C4: Barbour County | D4: Anchorage Municipality | E4: Coconino County | F4: Baxter County | G4: Amador County | H4: Arapahoe County | I4: Lower Connecticut River Valley | J4: Sussex County | L4: Bay County | M4: Bacon County | N4: Kalawao County | O4: Bannock County | P4: Bond County | Q4: Bartholomew County | R4: Allamakee County | S4: Atchison County | T4: Anderson County | U4: Ascension Parish | V4: Cumberland County | W4: Baltimore County | X4: Bristol County | Y4: Allegan County | Z4: Becker County | AA4: Amite County | AB4: Atchison County | AC4: Blaine County | AD4: Arthur County | AE4: Douglas County | AF4: Cheshire County | AG4: Burlington County | AH4: Chaves County | AI4: Bronx County | AJ4: Alleghany County | AK4: Benson County | AL4: Ashland County | AM4: Atoka County | AN4: Clackamas County | AO4: Armstrong County | AP4: Newport County | AQ4: Allendale County | AR4: Bennett County | AS4: Benton County | AT4: Angelina County | AU4: Cache County | AV4: Caledonia County | AW4: Alleghany County | AX4: Benton County | AY4: Boone County | AZ4: Barron County | BA4: Campbell County | BB4: Rose Island | BD4: Saipan Municipality | BE4: Aguadilla Municipio | BF4: St. Thomas Island | BH4: 01005 | BI4: Barbour County | BJ4: AL | BK4: Barbour County, AL
A5: AR | C5: Bibb County | D5: Bethel Census Area | E5: Gila County | F5: Benton County | G5: Butte County | H5: Archuleta County | I5: Naugatuck Valley | L5: Bradford County | M5: Baker County | N5: Kauai County | O5: Bear Lake County | P5: Boone County | Q5: Benton County | R5: Appanoose County | S5: Barber County | T5: Ballard County | U5: Assumption Parish | V5: Franklin County | W5: Calvert County | X5: Dukes County | Y5: Alpena County | Z5: Beltrami County | AA5: Attala County | AB5: Audrain County | AC5: Broadwater County | AD5: Banner County | AE5: Elko County | AF5: Coos County | AG5: Camden County | AH5: Cibola County | AI5: Broome County | AJ5: Anson County | AK5: Billings County | AL5: Ashtabula County | AM5: Beaver County | AN5: Clatsop County | AO5: Beaver County | AP5: Providence County | AQ5: Anderson County | AR5: Bon Homme County | AS5: Bledsoe County | AT5: Aransas County | AU5: Carbon County | AV5: Chittenden County | AW5: Amelia County | AX5: Chelan County | AY5: Braxton County | AZ5: Bayfield County | BA5: Carbon County | BB5: Swains Island | BD5: Tinian Municipality | BE5: Aguas Buenas Municipio | BH5: 01007 | BI5: Bibb County | BJ5: AL | BK5: Bibb County, AL
A6: CA | C6: Blount County | D6: Bristol Bay Borough | E6: Graham County | F6: Boone County | G6: Calaveras County | H6: Baca County | I6: Northeastern Connecticut | L6: Brevard County | M6: Baldwin County | N6: Maui County | O6: Benewah County | P6: Brown County | Q6: Blackford County | R6: Audubon County | S6: Barton County | T6: Barren County | U6: Avoyelles Parish | V6: Hancock County | W6: Caroline County | X6: Essex County | Y6: Antrim County | Z6: Benton County | AA6: Benton County | AB6: Barry County | AC6: Carbon County | AD6: Blaine County | AE6: Esmeralda County | AF6: Grafton County | AG6: Cape May County | AH6: Colfax County | AI6: Cattaraugus County | AJ6: Ashe County | AK6: Bottineau County | AL6: Athens County | AM6: Beckham County | AN6: Columbia County | AO6: Bedford County | AP6: Washington County | AQ6: Bamberg County | AR6: Brookings County | AS6: Blount County | AT6: Archer County | AU6: Daggett County | AV6: Essex County | AW6: Amherst County | AX6: Clallam County | AY6: Brooke County | AZ6: Brown County | BA6: Converse County | BB6: Western District | BE6: Aibonito Municipio | BH6: 01009 | BI6: Blount County | BJ6: AL | BK6: Blount County, AL
A7: CO | C7: Bullock County | D7: Chugach Census Area | E7: Greenlee County | F7: Bradley County | G7: Colusa County | H7: Bent County | I7: Northwest Hills | L7: Broward County | M7: Banks County | O7: Bingham County | P7: Bureau County | Q7: Boone County | R7: Benton County | S7: Bourbon County | T7: Bath County | U7: Beauregard Parish | V7: Kennebec County | W7: Carroll County | X7: Franklin County | Y7: Arenac County | Z7: Big Stone County | AA7: Bolivar County | AB7: Barton County | AC7: Carter County | AD7: Boone County | AE7: Eureka County | AF7: Hillsborough County | AG7: Cumberland County | AH7: Curry County | AI7: Cayuga County | AJ7: Avery County | AK7: Bowman County | AL7: Auglaize County | AM7: Blaine County | AN7: Coos County | AO7: Berks County | AQ7: Barnwell County | AR7: Brown County | AS7: Bradley County | AT7: Armstrong County | AU7: Davis County | AV7: Franklin County | AW7: Appomattox County | AX7: Clark County | AY7: Cabell County | AZ7: Buffalo County | BA7: Crook County | BE7: Anasco Municipio | BH7: 01011 | BI7: Bullock County | BJ7: AL | BK7: Bullock County, AL
A8: CT | C8: Butler County | D8: Copper River Census Area | E8: La Paz County | F8: Calhoun County | G8: Contra Costa County | H8: Boulder County | I8: South Central Connecticut | L8: Calhoun County | M8: Barrow County | O8: Blaine County | P8: Calhoun County | Q8: Brown County | R8: Black Hawk County | S8: Brown County | T8: Bell County | U8: Bienville Parish | V8: Knox County | W8: Cecil County | X8: Hampden County | Y8: Baraga County | Z8: Blue Earth County | AA8: Calhoun County | AB8: Bates County | AC8: Cascade County | AD8: Box Butte County | AE8: Humboldt County | AF8: Merrimack County | AG8: Essex County | AH8: De Baca County | AI8: Chautauqua County | AJ8: Beaufort County | AK8: Burke County | AL8: Belmont County | AM8: Bryan County | AN8: Crook County | AO8: Blair County | AQ8: Beaufort County | AR8: Brule County | AS8: Campbell County | AT8: Atascosa County | AU8: Duchesne County | AV8: Grand Isle County | AW8: Arlington County | AX8: Columbia County | AY8: Calhoun County | AZ8: Burnett County | BA8: Fremont County | BE8: Arecibo Municipio | BH8: 01013 | BI8: Butler County | BJ8: AL | BK8: Butler County, AL
A9: DE | C9: Calhoun County | D9: Denali Borough | E9: Maricopa County | F9: Carroll County | G9: Del Norte County | H9: Broomfield County | I9: Southeastern Connecticut | L9: Charlotte County | M9: Bartow County | O9: Boise County | P9: Carroll County | Q9: Carroll County | R9: Boone County | S9: Butler County | T9: Boone County | U9: Bossier Parish | V9: Lincoln County | W9: Charles County | X9: Hampshire County | Y9: Barry County | Z9: Brown County | AA9: Carroll County | AB9: Benton County | AC9: Chouteau County | AD9: Boyd County | AE9: Lander County | AF9: Rockingham County | AG9: Gloucester County | AH9: Dona Ana County | AI9: Chemung County | AJ9: Bertie County | AK9: Burleigh County | AL9: Brown County | AM9: Caddo County | AN9: Curry County | AO9: Bradford County | AQ9: Berkeley County | AR9: Buffalo County | AS9: Cannon County | AT9: Austin County | AU9: Emery County | AV9: Lamoille County | AW9: Augusta County | AX9: Cowlitz County | AY9: Clay County | AZ9: Calumet County | BA9: Goshen County | BE9: Arroyo Municipio | BH9: 01015 | BI9: Calhoun County | BJ9: AL | BK9: Calhoun County, AL
A10: DC | C10: Chambers County | D10: Dillingham Census Area | E10: Mohave County | F10: Chicot County | G10: El Dorado County | H10: Chaffee County | I10: Western Connecticut | L10: Citrus County | M10: Ben Hill County | O10: Bonner County | P10: Cass County | Q10: Cass County | R10: Bremer County | S10: Chase County | T10: Bourbon County | U10: Caddo Parish | V10: Oxford County | W10: Dorchester County | X10: Middlesex County | Y10: Bay County | Z10: Carlton County | AA10: Chickasaw County | AB10: Bollinger County | AC10: Custer County | AD10: Brown County | AE10: Lincoln County | AF10: Strafford County | AG10: Hudson County | AH10: Eddy County | AI10: Chenango County | AJ10: Bladen County | AK10: Cass County | AL10: Butler County | AM10: Canadian County | AN10: Deschutes County | AO10: Bucks County | AQ10: Calhoun County | AR10: Butte County | AS10: Carroll County | AT10: Bailey County | AU10: Garfield County | AV10: Orange County | AW10: Bath County | AX10: Douglas County | AY10: Doddridge County | AZ10: Chippewa County | BA10: Hot Springs County | BE10: Barceloneta Municipio | BH10: 01017 | BI10: Chambers County | BJ10: AL | BK10: Chambers County, AL
A11: FL | C11: Cherokee County | D11: Fairbanks North Star Borough | E11: Navajo County | F11: Clark County | G11: Fresno County | H11: Cheyenne County | I11: Fairfield County | L11: Clay County | M11: Berrien County | O11: Bonneville County | P11: Champaign County | Q11: Clark County | R11: Buchanan County | S11: Chautauqua County | T11: Boyd County | U11: Calcasieu Parish | V11: Penobscot County | W11: Frederick County | X11: Nantucket County | Y11: Benzie County | Z11: Carver County | AA11: Choctaw County | AB11: Boone County | AC11: Daniels County | AD11: Buffalo County | AE11: Lyon County | AF11: Sullivan County | AG11: Hunterdon County | AH11: Grant County | AI11: Clinton County | AJ11: Brunswick County | AK11: Cavalier County | AL11: Carroll County | AM11: Carter County | AN11: Douglas County | AO11: Butler County | AQ11: Charleston County | AR11: Campbell County | AS11: Carter County | AT11: Bandera County | AU11: Grand County | AV11: Orleans County | AW11: Bedford County | AX11: Ferry County | AY11: Fayette County | AZ11: Clark County | BA11: Johnson County | BE11: Barranquitas Municipio | BH11: 01019 | BI11: Cherokee County | BJ11: AL | BK11: Cherokee County, AL
A12: GA | C12: Chilton County | D12: Haines Borough | E12: Pima County | F12: Clay County | G12: Glenn County | H12: Clear Creek County | I12: Hartford County | L12: Collier County | M12: Bibb County | O12: Boundary County | P12: Christian County | Q12: Clay County | R12: Buena Vista County | S12: Cherokee County | T12: Boyle County | U12: Caldwell Parish | V12: Piscataquis County | W12: Garrett County | X12: Norfolk County | Y12: Berrien County | Z12: Cass County | AA12: Claiborne County | AB12: Buchanan County | AC12: Dawson County | AD12: Burt County | AE12: Mineral County | AG12: Mercer County | AH12: Guadalupe County | AI12: Columbia County | AJ12: Buncombe County | AK12: Dickey County | AL12: Champaign County | AM12: Cherokee County | AN12: Gilliam County | AO12: Cambria County | AQ12: Cherokee County | AR12: Charles Mix County | AS12: Cheatham County | AT12: Bastrop County | AU12: Iron County | AV12: Rutland County | AW12: Bland County | AX12: Franklin County | AY12: Gilmer County | AZ12: Columbia County | BA12: Laramie County | BE12: Bayamon Municipio | BH12: 01021 | BI12: Chilton County | BJ12: AL | BK12: Chilton County, AL
A13: HI | C13: Choctaw County | D13: Hoonah-Angoon Census Area | E13: Pinal County | F13: Cleburne County | G13: Humboldt County | H13: Conejos County | I13: Litchfield County | L13: Columbia County | M13: Bleckley County | O13: Butte County | P13: Clark County | Q13: Clinton County | R13: Butler County | S13: Cheyenne County | T13: Bracken County | U13: Cameron Parish | V13: Sagadahoc County | W13: Harford County | X13: Plymouth County | Y13: Branch County | Z13: Chippewa County | AA13: Clarke County | AB13: Butler County | AC13: Deer Lodge County | AD13: Butler County | AE13: Nye County | AG13: Middlesex County | AH13: Harding County | AI13: Cortland County | AJ13: Burke County | AK13: Divide County | AL13: Clark County | AM13: Choctaw County | AN13: Grant County | AO13: Cameron County | AQ13: Chester County | AR13: Clark County | AS13: Chester County | AT13: Baylor County | AU13: Juab County | AV13: Washington County | AW13: Botetourt County | AX13: Garfield County | AY13: Grant County | AZ13: Crawford County | BA13: Lincoln County | BE13: Cabo Rojo Municipio | BH13: 01023 | BI13: Choctaw County | BJ13: AL | BK13: Choctaw County, AL
A14: ID | C14: Clarke County | D14: Juneau City and Borough | E14: Santa Cruz County | F14: Cleveland County | G14: Imperial County | H14: Costilla County | I14: Middlesex County | L14: DeSoto County | M14: Brantley County | O14: Camas County | P14: Clay County | Q14: Crawford County | R14: Calhoun County | S14: Clark County | T14: Breathitt County | U14: Catahoula Parish | V14: Somerset County | W14: Howard County | X14: Suffolk County | Y14: Calhoun County | Z14: Chisago County | AA14: Clay County | AB14: Caldwell County | AC14: Fallon County | AD14: Cass County | AE14: Pershing County | AG14: Monmouth County | AH14: Hidalgo County | AI14: Delaware County | AJ14: Cabarrus County | AK14: Dunn County | AL14: Clermont County | AM14: Cimarron County | AN14: Harney County | AO14: Carbon County | AQ14: Chesterfield County | AR14: Clay County | AS14: Claiborne County | AT14: Bee County | AU14: Kane County | AV14: Windham County | AW14: Brunswick County | AX14: Grant County | AY14: Greenbrier County | AZ14: Dane County | BA14: Natrona County | BE14: Caguas Municipio | BH14: 01025 | BI14: Clarke County | BJ14: AL | BK14: Clarke County, AL
A15: IL | C15: Clay County | D15: Kenai Peninsula Borough | E15: Yavapai County | F15: Columbia County | G15: Inyo County | H15: Crowley County | I15: New Haven County | L15: Dixie County | M15: Brooks County | O15: Canyon County | P15: Clinton County | Q15: Daviess County | R15: Carroll County | S15: Clay County | T15: Breckinridge County | U15: Claiborne Parish | V15: Waldo County | W15: Kent County | X15: Worcester County | Y15: Cass County | Z15: Clay County | AA15: Coahoma County | AB15: Callaway County | AC15: Fergus County | AD15: Cedar County | AE15: Storey County | AG15: Morris County | AH15: Lea County | AI15: Dutchess County | AJ15: Caldwell County | AK15: Eddy County | AL15: Clinton County | AM15: Cleveland County | AN15: Hood River County | AO15: Centre County | AQ15: Clarendon County | AR15: Codington County | AS15: Clay County | AT15: Bell County | AU15: Millard County | AV15: Windsor County | AW15: Buchanan County | AX15: Grays Harbor County | AY15: Hampshire County | AZ15: Dodge County | BA15: Niobrara County | BE15: Camuy Municipio | BH15: 01027 | BI15: Clay County | BJ15: AL | BK15: Clay County, AL
A16: IN | C16: Cleburne County | D16: Ketchikan Gateway Borough | E16: Yuma County | F16: Conway County | G16: Kern County | H16: Custer County | I16: New London County | L16: Duval County | M16: Bryan County | O16: Caribou County | P16: Coles County | Q16: Dearborn County | R16: Cass County | S16: Cloud County | T16: Bullitt County | U16: Concordia Parish | V16: Washington County | W16: Montgomery County | Y16: Charlevoix County | Z16: Clearwater County | AA16: Copiah County | AB16: Camden County | AC16: Flathead County | AD16: Chase County | AE16: Washoe County | AG16: Ocean County | AH16: Lincoln County | AI16: Erie County | AJ16: Camden County | AK16: Emmons County | AL16: Columbiana County | AM16: Coal County | AN16: Jackson County | AO16: Chester County | AQ16: Colleton County | AR16: Corson County | AS16: Cocke County | AT16: Bexar County | AU16: Morgan County | AW16: Buckingham County | AX16: Island County | AY16: Hancock County | AZ16: Door County | BA16: Park County | BE16: Canovanas Municipio | BH16: 01029 | BI16: Cleburne County | BJ16: AL | BK16: Cleburne County, AL
A17: IA | C17: Coffee County | D17: Kodiak Island Borough | F17: Craighead County | G17: Kings County | H17: Delta County | I17: Tolland County | L17: Escambia County | M17: Bulloch County | O17: Cassia County | P17: Cook County | Q17: Decatur County | R17: Cedar County | S17: Coffey County | T17: Butler County | U17: De Soto Parish | V17: York County | W17: Prince George's County | Y17: Cheboygan County | Z17: Cook County | AA17: Covington County | AB17: Cape Girardeau County | AC17: Gallatin County | AD17: Cherry County | AE17: White Pine County | AG17: Passaic County | AH17: Los Alamos County | AI17: Essex County | AJ17: Carteret County | AK17: Foster County | AL17: Coshocton County | AM17: Comanche County | AN17: Jefferson County | AO17: Clarion County | AQ17: Darlington County | AR17: Custer County | AS17: Coffee County | AT17: Blanco County | AU17: Piute County | AW17: Campbell County | AX17: Jefferson County | AY17: Hardy County | AZ17: Douglas County | BA17: Platte County | BE17: Carolina Municipio | BH17: 01031 | BI17: Coffee County | BJ17: AL | BK17: Coffee County, AL
A18: KS | C18: Colbert County | D18: Kusilvak Census Area | F18: Crawford County | G18: Lake County | H18: Denver County | I18: Windham County | L18: Flagler County | M18: Burke County | O18: Clark County | P18: Crawford County | Q18: DeKalb County | R18: Cerro Gordo County | S18: Comanche County | T18: Caldwell County | U18: East Baton Rouge Parish | W18: Queen Anne's County | Y18: Chippewa County | Z18: Cottonwood County | AA18: DeSoto County | AB18: Carroll County | AC18: Garfield County | AD18: Cheyenne County | AE18: Carson City | AG18: Salem County | AH18: Luna County | AI18: Franklin County | AJ18: Caswell County | AK18: Golden Valley County | AL18: Crawford County | AM18: Cotton County | AN18: Josephine County | AO18: Clearfield County | AQ18: Dillon County | AR18: Davison County | AS18: Crockett County | AT18: Borden County | AU18: Rich County | AW18: Caroline County | AX18: King County | AY18: Harrison County | AZ18: Dunn County | BA18: Sheridan County | BE18: Catano Municipio | BH18: 01033 | BI18: Colbert County | BJ18: AL | BK18: Colbert County, AL
A19: KY | C19: Conecuh County | D19: Lake and Peninsula Borough | F19: Crittenden County | G19: Lassen County | H19: Dolores County | L19: Franklin County | M19: Butts County | O19: Clearwater County | P19: Cumberland County | Q19: Delaware County | R19: Cherokee County | S19: Cowley County | T19: Calloway County | U19: East Carroll Parish | W19: St. Mary's County | Y19: Clare County | Z19: Crow Wing County | AA19: Forrest County | AB19: Carter County | AC19: Glacier County | AD19: Clay County | AG19: Somerset County | AH19: McKinley County | AI19: Fulton County | AJ19: Catawba County | AK19: Grand Forks County | AL19: Cuyahoga County | AM19: Craig County | AN19: Klamath County | AO19: Clinton County | AQ19: Dorchester County | AR19: Day County | AS19: Cumberland County | AT19: Bosque County | AU19: Salt Lake County | AW19: Carroll County | AX19: Kitsap County | AY19: Jackson County | AZ19: Eau Claire County | BA19: Sublette County | BE19: Cayey Municipio | BH19: 01035 | BI19: Conecuh County | BJ19: AL | BK19: Conecuh County, AL
A20: LA | C20: Coosa County | D20: Matanuska-Susitna Borough | F20: Cross County | G20: Los Angeles County | H20: Douglas County | L20: Gadsden County | M20: Calhoun County | O20: Custer County | P20: DeKalb County | Q20: Dubois County | R20: Chickasaw County | S20: Crawford County | T20: Campbell County | U20: East Feliciana Parish | W20: Somerset County | Y20: Clinton County | Z20: Dakota County | AA20: Franklin County | AB20: Cass County | AC20: Golden Valley County | AD20: Colfax County | AG20: Sussex County | AH20: Mora County | AI20: Genesee County | AJ20: Chatham County | AK20: Grant County | AL20: Darke County | AM20: Creek County | AN20: Lake County | AO20: Columbia County | AQ20: Edgefield County | AR20: Deuel County | AS20: Davidson County | AT20: Bowie County | AU20: San Juan County | AW20: Charles City County | AX20: Kittitas County | AY20: Jefferson County | AZ20: Florence County | BA20: Sweetwater County | BE20: Ceiba Municipio | BH20: 01037 | BI20: Coosa County | BJ20: AL | BK20: Coosa County, AL
A21: ME | C21: Covington County | D21: Nome Census Area | F21: Dallas County | G21: Madera County | H21: Eagle County | L21: Gilchrist County | M21: Camden County | O21: Elmore County | P21: De Witt County | Q21: Elkhart County | R21: Clarke County | S21: Decatur County | T21: Carlisle County | U21: Evangeline Parish | W21: Talbot County | Y21: Crawford County | Z21: Dodge County | AA21: George County | AB21: Cedar County | AC21: Granite County | AD21: Cuming County | AG21: Union County | AH21: Otero County | AI21: Greene County | AJ21: Cherokee County | AK21: Griggs County | AL21: Defiance County | AM21: Custer County | AN21: Lane County | AO21: Crawford County | AQ21: Fairfield County | AR21: Dewey County | AS21: Decatur County | AT21: Brazoria County | AU21: Sanpete County | AW21: Charlotte County | AX21: Klickitat County | AY21: Kanawha County | AZ21: Fond du Lac County | BA21: Teton County | BE21: Ciales Municipio | BH21: 01039 | BI21: Covington County | BJ21: AL | BK21: Covington County, AL
A22: MD | C22: Crenshaw County | D22: North Slope Borough | F22: Desha County | G22: Marin County | H22: Elbert County | L22: Glades County | M22: Candler County | O22: Franklin County | P22: Douglas County | Q22: Fayette County | R22: Clay County | S22: Dickinson County | T22: Carroll County | U22: Franklin Parish | W22: Washington County | Y22: Delta County | Z22: Douglas County | AA22: Greene County | AB22: Chariton County | AC22: Hill County | AD22: Custer County | AG22: Warren County | AH22: Quay County | AI22: Hamilton County | AJ22: Chowan County | AK22: Hettinger County | AL22: Delaware County | AM22: Delaware County | AN22: Lincoln County | AO22: Cumberland County | AQ22: Florence County | AR22: Douglas County | AS22: DeKalb County | AT22: Brazos County | AU22: Sevier County | AW22: Chesterfield County | AX22: Lewis County | AY22: Lewis County | AZ22: Forest County | BA22: Uinta County | BE22: Cidra Municipio | BH22: 01041 | BI22: Crenshaw County | BJ22: AL | BK22: Crenshaw County, AL
A23: MA | C23: Cullman County | D23: Northwest Arctic Borough | F23: Drew County | G23: Mariposa County | H23: El Paso County | L23: Gulf County | M23: Carroll County | O23: Fremont County | P23: DuPage County | Q23: Floyd County | R23: Clayton County | S23: Doniphan County | T23: Carter County | U23: Grant Parish | W23: Wicomico County | Y23: Dickinson County | Z23: Faribault County | AA23: Grenada County | AB23: Christian County | AC23: Jefferson County | AD23: Dakota County | AH23: Rio Arriba County | AI23: Herkimer County | AJ23: Clay County | AK23: Kidder County | AL23: Erie County | AM23: Dewey County | AN23: Linn County | AO23: Dauphin County | AQ23: Georgetown County | AR23: Edmunds County | AS23: Dickson County | AT23: Brewster County | AU23: Summit County | AW23: Clarke County | AX23: Lincoln County | AY23: Lincoln County | AZ23: Grant County | BA23: Washakie County | BE23: Coamo Municipio | BH23: 01043 | BI23: Cullman County | BJ23: AL | BK23: Cullman County, AL
A24: MI | C24: Dale County | D24: Petersburg Census Area | F24: Faulkner County | G24: Mendocino County | H24: Fremont County | L24: Hamilton County | M24: Catoosa County | O24: Gem County | P24: Edgar County | Q24: Fountain County | R24: Clinton County | S24: Douglas County | T24: Casey County | U24: Iberia Parish | W24: Worcester County | Y24: Eaton County | Z24: Fillmore County | AA24: Hancock County | AB24: Clark County | AC24: Judith Basin County | AD24: Dawes County | AH24: Roosevelt County | AI24: Jefferson County | AJ24: Cleveland County | AK24: LaMoure County | AL24: Fairfield County | AM24: Ellis County | AN24: Malheur County | AO24: Delaware County | AQ24: Greenville County | AR24: Fall River County | AS24: Dyer County | AT24: Briscoe County | AU24: Tooele County | AW24: Craig County | AX24: Mason County | AY24: Logan County | AZ24: Green County | BA24: Weston County | BE24: Comerio Municipio | BH24: 01045 | BI24: Dale County | BJ24: AL | BK24: Dale County, AL
A25: MN | C25: Dallas County | D25: Prince of Wales-Hyder Census Area | F25: Franklin County | G25: Merced County | H25: Garfield County | L25: Hardee County | M25: Charlton County | O25: Gooding County | P25: Edwards County | Q25: Franklin County | R25: Crawford County | S25: Edwards County | T25: Christian County | U25: Iberville Parish | W25: Baltimore city | Y25: Emmet County | Z25: Freeborn County | AA25: Harrison County | AB25: Clay County | AC25: Lake County | AD25: Dawson County | AH25: Sandoval County | AI25: Kings County | AJ25: Columbus County | AK25: Logan County | AL25: Fayette County | AM25: Garfield County | AN25: Marion County | AO25: Elk County | AQ25: Greenwood County | AR25: Faulk County | AS25: Fayette County | AT25: Brooks County | AU25: Uintah County | AW25: Culpeper County | AX25: Okanogan County | AY25: McDowell County | AZ25: Green Lake County | BE25: Corozal Municipio | BH25: 01047 | BI25: Dallas County | BJ25: AL | BK25: Dallas County, AL
A26: MS | C26: DeKalb County | D26: Sitka City and Borough | F26: Fulton County | G26: Modoc County | H26: Gilpin County | L26: Hendry County | M26: Chatham County | O26: Idaho County | P26: Effingham County | Q26: Fulton County | R26: Dallas County | S26: Elk County | T26: Clark County | U26: Jackson Parish | Y26: Genesee County | Z26: Goodhue County | AA26: Hinds County | AB26: Clinton County | AC26: Lewis and Clark County | AD26: Deuel County | AH26: San Juan County | AI26: Lewis County | AJ26: Craven County | AK26: McHenry County | AL26: Franklin County | AM26: Garvin County | AN26: Morrow County | AO26: Erie County | AQ26: Hampton County | AR26: Grant County | AS26: Fentress County | AT26: Brown County | AU26: Utah County | AW26: Cumberland County | AX26: Pacific County | AY26: Marion County | AZ26: Iowa County | BE26: Culebra Municipio | BH26: 01049 | BI26: DeKalb County | BJ26: AL | BK26: DeKalb County, AL
A27: MO | C27: Elmore County | D27: Skagway Municipality | F27: Garland County | G27: Mono County | H27: Grand County | L27: Hernando County | M27: Chattahoochee County | O27: Jefferson County | P27: Fayette County | Q27: Gibson County | R27: Davis County | S27: Ellis County | T27: Clay County | U27: Jefferson Parish | Y27: Gladwin County | Z27: Grant County | AA27: Holmes County | AB27: Cole County | AC27: Liberty County | AD27: Dixon County | AH27: San Miguel County | AI27: Livingston County | AJ27: Cumberland County | AK27: McIntosh County | AL27: Fulton County | AM27: Grady County | AN27: Multnomah County | AO27: Fayette County | AQ27: Horry County | AR27: Gregory County | AS27: Franklin County | AT27: Burleson County | AU27: Wasatch County | AW27: Dickenson County | AX27: Pend Oreille County | AY27: Marshall County | AZ27: Iron County | BE27: Dorado Municipio | BH27: 01051 | BI27: Elmore County | BJ27: AL | BK27: Elmore County, AL
A28: MT | C28: Escambia County | D28: Southeast Fairbanks Census Area | F28: Grant County | G28: Monterey County | H28: Gunnison County | L28: Highlands County | M28: Chattooga County | O28: Jerome County | P28: Ford County | Q28: Grant County | R28: Decatur County | S28: Ellsworth County | T28: Clinton County | U28: Jefferson Davis Parish | Y28: Gogebic County | Z28: Hennepin County | AA28: Humphreys County | AB28: Cooper County | AC28: Lincoln County | AD28: Dodge County | AH28: Santa Fe County | AI28: Madison County | AJ28: Currituck County | AK28: McKenzie County | AL28: Gallia County | AM28: Grant County | AN28: Polk County | AO28: Forest County | AQ28: Jasper County | AR28: Haakon County | AS28: Gibson County | AT28: Burnet County | AU28: Washington County | AW28: Dinwiddie County | AX28: Pierce County | AY28: Mason County | AZ28: Jackson County | BE28: Fajardo Municipio | BH28: 01053 | BI28: Escambia County | BJ28: AL | BK28: Escambia County, AL
A29: NE | C29: Etowah County | D29: Wrangell City and Borough | F29: Greene County | G29: Napa County | H29: Hinsdale County | L29: Hillsborough County | M29: Cherokee County | O29: Kootenai County | P29: Franklin County | Q29: Greene County | R29: Delaware County | S29: Finney County | T29: Crittenden County | U29: Lafayette Parish | Y29: Grand Traverse County | Z29: Houston County | AA29: Issaquena County | AB29: Crawford County | AC29: McCone County | AD29: Douglas County | AH29: Sierra County | AI29: Monroe County | AJ29: Dare County | AK29: McLean County | AL29: Geauga County | AM29: Greer County | AN29: Sherman County | AO29: Franklin County | AQ29: Kershaw County | AR29: Hamlin County | AS29: Giles County | AT29: Caldwell County | AU29: Wayne County | AW29: Essex County | AX29: San Juan County | AY29: Mercer County | AZ29: Jefferson County | BE29: Florida Municipio | BH29: 01055 | BI29: Etowah County | BJ29: AL | BK29: Etowah County, AL
A30: NV | C30: Fayette County | D30: Yakutat City and Borough | F30: Hempstead County | G30: Nevada County | H30: Huerfano County | L30: Holmes County | M30: Clarke County | O30: Latah County | P30: Fulton County | Q30: Hamilton County | R30: Des Moines County | S30: Ford County | T30: Cumberland County | U30: Lafourche Parish | Y30: Gratiot County | Z30: Hubbard County | AA30: Itawamba County | AB30: Dade County | AC30: Madison County | AD30: Dundy County | AH30: Socorro County | AI30: Montgomery County | AJ30: Davidson County | AK30: Mercer County | AL30: Greene County | AM30: Harmon County | AN30: Tillamook County | AO30: Fulton County | AQ30: Lancaster County | AR30: Hand County | AS30: Grainger County | AT30: Calhoun County | AU30: Weber County | AW30: Fairfax County | AX30: Skagit County | AY30: Mineral County | AZ30: Juneau County | BE30: Guanica Municipio | BH30: 01057 | BI30: Fayette County | BJ30: AL | BK30: Fayette County, AL
A31: NH | C31: Franklin County | D31: Yukon-Koyukuk Census Area | F31: Hot Spring County | G31: Orange County | H31: Jackson County | L31: Indian River County | M31: Clay County | O31: Lemhi County | P31: Gallatin County | Q31: Hancock County | R31: Dickinson County | S31: Franklin County | T31: Daviess County | U31: La Salle Parish | Y31: Hillsdale County | Z31: Isanti County | AA31: Jackson County | AB31: Dallas County | AC31: Meagher County | AD31: Fillmore County | AH31: Taos County | AI31: Nassau County | AJ31: Davie County | AK31: Morton County | AL31: Guernsey County | AM31: Harper County | AN31: Umatilla County | AO31: Greene County | AQ31: Laurens County | AR31: Hanson County | AS31: Greene County | AT31: Callahan County | AW31: Fauquier County | AX31: Skamania County | AY31: Mingo County | AZ31: Kenosha County | BE31: Guayama Municipio | BH31: 01059 | BI31: Franklin County | BJ31: AL | BK31: Franklin County, AL
A32: NJ | C32: Geneva County | F32: Howard County | G32: Placer County | H32: Jefferson County | L32: Jackson County | M32: Clayton County | O32: Lewis County | P32: Greene County | Q32: Harrison County | R32: Dubuque County | S32: Geary County | T32: Edmonson County | U32: Lincoln Parish | Y32: Houghton County | Z32: Itasca County | AA32: Jasper County | AB32: Daviess County | AC32: Mineral County | AD32: Franklin County | AH32: Torrance County | AI32: New York County | AJ32: Duplin County | AK32: Mountrail County | AL32: Hamilton County | AM32: Haskell County | AN32: Union County | AO32: Huntingdon County | AQ32: Lee County | AR32: Harding County | AS32: Grundy County | AT32: Cameron County | AW32: Floyd County | AX32: Snohomish County | AY32: Monongalia County | AZ32: Kewaunee County | BE32: Guayanilla Municipio | BH32: 01061 | BI32: Geneva County | BJ32: AL | BK32: Geneva County, AL
A33: NM | C33: Greene County | F33: Independence County | G33: Plumas County | H33: Kiowa County | L33: Jefferson County | M33: Clinch County | O33: Lincoln County | P33: Grundy County | Q33: Hendricks County | R33: Emmet County | S33: Gove County | T33: Elliott County | U33: Livingston Parish | Y33: Huron County | Z33: Jackson County | AA33: Jefferson County | AB33: DeKalb County | AC33: Missoula County | AD33: Frontier County | AH33: Union County | AI33: Niagara County | AJ33: Durham County | AK33: Nelson County | AL33: Hancock County | AM33: Hughes County | AN33: Wallowa County | AO33: Indiana County | AQ33: Lexington County | AR33: Hughes County | AS33: Hamblen County | AT33: Camp County | AW33: Fluvanna County | AX33: Spokane County | AY33: Monroe County | AZ33: La Crosse County | BE33: Guaynabo Municipio | BH33: 01063 | BI33: Greene County | BJ33: AL | BK33: Greene County, AL
A34: NY | C34: Hale County | F34: Izard County | G34: Riverside County | H34: Kit Carson County | L34: Lafayette County | M34: Cobb County | O34: Madison County | P34: Hamilton County | Q34: Henry County | R34: Fayette County | S34: Graham County | T34: Estill County | U34: Madison Parish | Y34: Ingham County | Z34: Kanabec County | AA34: Jefferson Davis County | AB34: Dent County | AC34: Musselshell County | AD34: Furnas County | AH34: Valencia County | AI34: Oneida County | AJ34: Edgecombe County | AK34: Oliver County | AL34: Hardin County | AM34: Jackson County | AN34: Wasco County | AO34: Jefferson County | AQ34: McCormick County | AR34: Hutchinson County | AS34: Hamilton County | AT34: Carson County | AW34: Franklin County | AX34: Stevens County | AY34: Morgan County | AZ34: Lafayette County | BE34: Gurabo Municipio | BH34: 01065 | BI34: Hale County | BJ34: AL | BK34: Hale County, AL
A35: NC | C35: Henry County | F35: Jackson County | G35: Sacramento County | H35: Lake County | L35: Lake County | M35: Coffee County | O35: Minidoka County | P35: Hancock County | Q35: Howard County | R35: Floyd County | S35: Grant County | T35: Fayette County | U35: Morehouse Parish | Y35: Ionia County | Z35: Kandiyohi County | AA35: Jones County | AB35: Douglas County | AC35: Park County | AD35: Gage County | AI35: Onondaga County | AJ35: Forsyth County | AK35: Pembina County | AL35: Harrison County | AM35: Jefferson County | AN35: Washington County | AO35: Juniata County | AQ35: Marion County | AR35: Hyde County | AS35: Hancock County | AT35: Cass County | AW35: Frederick County | AX35: Thurston County | AY35: Nicholas County | AZ35: Langlade County | BE35: Hatillo Municipio | BH35: 01067 | BI35: Henry County | BJ35: AL | BK35: Henry County, AL
A36: ND | C36: Houston County | F36: Jefferson County | G36: San Benito County | H36: La Plata County | L36: Lee County | M36: Colquitt County | O36: Nez Perce County | P36: Hardin County | Q36: Huntington County | R36: Franklin County | S36: Gray County | T36: Fleming County | U36: Natchitoches Parish | Y36: Iosco County | Z36: Kittson County | AA36: Kemper County | AB36: Dunklin County | AC36: Petroleum County | AD36: Garden County | AI36: Ontario County | AJ36: Franklin County | AK36: Pierce County | AL36: Henry County | AM36: Johnston County | AN36: Wheeler County | AO36: Lackawanna County | AQ36: Marlboro County | AR36: Jackson County | AS36: Hardeman County | AT36: Castro County | AW36: Giles County | AX36: Wahkiakum County | AY36: Ohio County | AZ36: Lincoln County | BE36: Hormigueros Municipio | BH36: 01069 | BI36: Houston County | BJ36: AL | BK36: Houston County, AL
A37: OH | C37: Jackson County | F37: Johnson County | G37: San Bernardino County | H37: Larimer County | L37: Leon County | M37: Columbia County | O37: Oneida County | P37: Henderson County | Q37: Jackson County | R37: Fremont County | S37: Greeley County | T37: Floyd County | U37: Orleans Parish | Y37: Iron County | Z37: Koochiching County | AA37: Lafayette County | AB37: Franklin County | AC37: Phillips County | AD37: Garfield County | AI37: Orange County | AJ37: Gaston County | AK37: Ramsey County | AL37: Highland County | AM37: Kay County | AN37: Yamhill County | AO37: Lancaster County | AQ37: Newberry County | AR37: Jerauld County | AS37: Hardin County | AT37: Chambers County | AW37: Gloucester County | AX37: Walla Walla County | AY37: Pendleton County | AZ37: Manitowoc County | BE37: Humacao Municipio | BH37: 01071 | BI37: Jackson County | BJ37: AL | BK37: Jackson County, AL
A38: OK | C38: Jefferson County | F38: Lafayette County | G38: San Diego County | H38: Las Animas County | L38: Levy County | M38: Cook County | O38: Owyhee County | P38: Henry County | Q38: Jasper County | R38: Greene County | S38: Greenwood County | T38: Franklin County | U38: Ouachita Parish | Y38: Isabella County | Z38: Lac qui Parle County | AA38: Lamar County | AB38: Gasconade County | AC38: Pondera County | AD38: Gosper County | AI38: Orleans County | AJ38: Gates County | AK38: Ransom County | AL38: Hocking County | AM38: Kingfisher County | AO38: Lawrence County | AQ38: Oconee County | AR38: Jones County | AS38: Hawkins County | AT38: Cherokee County | AW38: Goochland County | AX38: Whatcom County | AY38: Pleasants County | AZ38: Marathon County | BE38: Isabela Municipio | BH38: 01073 | BI38: Jefferson County | BJ38: AL | BK38: Jefferson County, AL
A39: OR | C39: Lamar County | F39: Lawrence County | G39: San Francisco County | H39: Lincoln County | L39: Liberty County | M39: Coweta County | O39: Payette County | P39: Iroquois County | Q39: Jay County | R39: Grundy County | S39: Hamilton County | T39: Fulton County | U39: Plaquemines Parish | Y39: Jackson County | Z39: Lake County | AA39: Lauderdale County | AB39: Gentry County | AC39: Powder River County | AD39: Grant County | AI39: Oswego County | AJ39: Graham County | AK39: Renville County | AL39: Holmes County | AM39: Kiowa County | AO39: Lebanon County | AQ39: Orangeburg County | AR39: Kingsbury County | AS39: Haywood County | AT39: Childress County | AW39: Grayson County | AX39: Whitman County | AY39: Pocahontas County | AZ39: Marinette County | BE39: Jayuya Municipio | BH39: 01075 | BI39: Lamar County | BJ39: AL | BK39: Lamar County, AL
A40: PA | C40: Lauderdale County | F40: Lee County | G40: San Joaquin County | H40: Logan County | L40: Madison County | M40: Crawford County | O40: Power County | P40: Jackson County | Q40: Jefferson County | R40: Guthrie County | S40: Harper County | T40: Gallatin County | U40: Pointe Coupee Parish | Y40: Kalamazoo County | Z40: Lake of the Woods County | AA40: Lawrence County | AB40: Greene County | AC40: Powell County | AD40: Greeley County | AI40: Otsego County | AJ40: Granville County | AK40: Richland County | AL40: Huron County | AM40: Latimer County | AO40: Lehigh County | AQ40: Pickens County | AR40: Lake County | AS40: Henderson County | AT40: Clay County | AW40: Greene County | AX40: Yakima County | AY40: Preston County | AZ40: Marquette County | BE40: Juana Diaz Municipio | BH40: 01077 | BI40: Lauderdale County | BJ40: AL | BK40: Lauderdale County, AL
A41: RI | C41: Lawrence County | F41: Lincoln County | G41: San Luis Obispo County | H41: Mesa County | L41: Manatee County | M41: Crisp County | O41: Shoshone County | P41: Jasper County | Q41: Jennings County | R41: Hamilton County | S41: Harvey County | T41: Garrard County | U41: Rapides Parish | Y41: Kalkaska County | Z41: Le Sueur County | AA41: Leake County | AB41: Grundy County | AC41: Prairie County | AD41: Hall County | AI41: Putnam County | AJ41: Greene County | AK41: Rolette County | AL41: Jackson County | AM41: Le Flore County | AO41: Luzerne County | AQ41: Richland County | AR41: Lawrence County | AS41: Henry County | AT41: Cochran County | AW41: Greensville County | AY41: Putnam County | AZ41: Menominee County | BE41: Juncos Municipio | BH41: 01079 | BI41: Lawrence County | BJ41: AL | BK41: Lawrence County, AL
A42: SC | C42: Lee County | F42: Little River County | G42: San Mateo County | H42: Mineral County | L42: Marion County | M42: Dade County | O42: Teton County | P42: Jefferson County | Q42: Johnson County | R42: Hancock County | S42: Haskell County | T42: Grant County | U42: Red River Parish | Y42: Kent County | Z42: Lincoln County | AA42: Lee County | AB42: Harrison County | AC42: Ravalli County | AD42: Hamilton County | AI42: Queens County | AJ42: Guilford County | AK42: Sargent County | AL42: Jefferson County | AM42: Lincoln County | AO42: Lycoming County | AQ42: Saluda County | AR42: Lincoln County | AS42: Hickman County | AT42: Coke County | AW42: Halifax County | AY42: Raleigh County | AZ42: Milwaukee County | BE42: Lajas Municipio | BH42: 01081 | BI42: Lee County | BJ42: AL | BK42: Lee County, AL
A43: SD | C43: Limestone County | F43: Logan County | G43: Santa Barbara County | H43: Moffat County | L43: Martin County | M43: Dawson County | O43: Twin Falls County | P43: Jersey County | Q43: Knox County | R43: Hardin County | S43: Hodgeman County | T43: Graves County | U43: Richland Parish | Y43: Keweenaw County | Z43: Lyon County | AA43: Leflore County | AB43: Henry County | AC43: Richland County | AD43: Harlan County | AI43: Rensselaer County | AJ43: Halifax County | AK43: Sheridan County | AL43: Knox County | AM43: Logan County | AO43: McKean County | AQ43: Spartanburg County | AR43: Lyman County | AS43: Houston County | AT43: Coleman County | AW43: Hanover County | AY43: Randolph County | AZ43: Monroe County | BE43: Lares Municipio | BH43: 01083 | BI43: Limestone County | BJ43: AL | BK43: Limestone County, AL
A44: TN | C44: Lowndes County | F44: Lonoke County | G44: Santa Clara County | H44: Montezuma County | L44: Miami-Dade County | M44: Decatur County | O44: Valley County | P44: Jo Daviess County | Q44: Kosciusko County | R44: Harrison County | S44: Jackson County | T44: Grayson County | U44: Sabine Parish | Y44: Lake County | Z44: McLeod County | AA44: Lincoln County | AB44: Hickory County | AC44: Roosevelt County | AD44: Hayes County | AI44: Richmond County | AJ44: Harnett County | AK44: Sioux County | AL44: Lake County | AM44: Love County | AO44: Mercer County | AQ44: Sumter County | AR44: McCook County | AS44: Humphreys County | AT44: Collin County | AW44: Henrico County | AY44: Ritchie County | AZ44: Oconto County | BE44: Las Marias Municipio | BH44: 01085 | BI44: Lowndes County | BJ44: AL | BK44: Lowndes County, AL
A45: TX | C45: Macon County | F45: Madison County | G45: Santa Cruz County | H45: Montrose County | L45: Monroe County | M45: DeKalb County | O45: Washington County | P45: Johnson County | Q45: LaGrange County | R45: Henry County | S45: Jefferson County | T45: Green County | U45: St. Bernard Parish | Y45: Lapeer County | Z45: Mahnomen County | AA45: Lowndes County | AB45: Holt County | AC45: Rosebud County | AD45: Hitchcock County | AI45: Rockland County | AJ45: Haywood County | AK45: Slope County | AL45: Lawrence County | AM45: McClain County | AO45: Mifflin County | AQ45: Union County | AR45: McPherson County | AS45: Jackson County | AT45: Collingsworth County | AW45: Henry County | AY45: Roane County | AZ45: Oneida County | BE45: Las Piedras Municipio | BH45: 01087 | BI45: Macon County | BJ45: AL | BK45: Macon County, AL
A46: UT | C46: Madison County | F46: Marion County | G46: Shasta County | H46: Morgan County | L46: Nassau County | M46: Dodge County | P46: Kane County | Q46: Lake County | R46: Howard County | S46: Jewell County | T46: Greenup County | U46: St. Charles Parish | Y46: Leelanau County | Z46: Marshall County | AA46: Madison County | AB46: Howard County | AC46: Sanders County | AD46: Holt County | AI46: St. Lawrence County | AJ46: Henderson County | AK46: Stark County | AL46: Licking County | AM46: McCurtain County | AO46: Monroe County | AQ46: Williamsburg County | AR46: Marshall County | AS46: Jefferson County | AT46: Colorado County | AW46: Highland County | AY46: Summers County | AZ46: Outagamie County | BE46: Loiza Municipio | BH46: 01089 | BI46: Madison County | BJ46: AL | BK46: Madison County, AL
A47: VT | C47: Marengo County | F47: Miller County | G47: Sierra County | H47: Otero County | L47: Okaloosa County | M47: Dooly County | P47: Kankakee County | Q47: LaPorte County | R47: Humboldt County | S47: Johnson County | T47: Hancock County | U47: St. Helena Parish | Y47: Lenawee County | Z47: Martin County | AA47: Marion County | AB47: Howell County | AC47: Sheridan County | AD47: Hooker County | AI47: Saratoga County | AJ47: Hertford County | AK47: Steele County | AL47: Logan County | AM47: McIntosh County | AO47: Montgomery County | AQ47: York County | AR47: Meade County | AS47: Johnson County | AT47: Comal County | AW47: Isle of Wight County | AY47: Taylor County | AZ47: Ozaukee County | BE47: Luquillo Municipio | BH47: 01091 | BI47: Marengo County | BJ47: AL | BK47: Marengo County, AL
A48: VA | C48: Marion County | F48: Mississippi County | G48: Siskiyou County | H48: Ouray County | L48: Okeechobee County | M48: Dougherty County | P48: Kendall County | Q48: Lawrence County | R48: Ida County | S48: Kearny County | T48: Hardin County | U48: St. James Parish | Y48: Livingston County | Z48: Meeker County | AA48: Marshall County | AB48: Iron County | AC48: Silver Bow County | AD48: Howard County | AI48: Schenectady County | AJ48: Hoke County | AK48: Stutsman County | AL48: Lorain County | AM48: Major County | AO48: Montour County | AR48: Mellette County | AS48: Knox County | AT48: Comanche County | AW48: James City County | AY48: Tucker County | AZ48: Pepin County | BE48: Manati Municipio | BH48: 01093 | BI48: Marion County | BJ48: AL | BK48: Marion County, AL
A49: WA | C49: Marshall County | F49: Monroe County | G49: Solano County | H49: Park County | L49: Orange County | M49: Douglas County | P49: Knox County | Q49: Madison County | R49: Iowa County | S49: Kingman County | T49: Harlan County | U49: St. John the Baptist Parish | Y49: Luce County | Z49: Mille Lacs County | AA49: Monroe County | AB49: Jackson County | AC49: Stillwater County | AD49: Jefferson County | AI49: Schoharie County | AJ49: Hyde County | AK49: Towner County | AL49: Lucas County | AM49: Marshall County | AO49: Northampton County | AR49: Miner County | AS49: Lake County | AT49: Concho County | AW49: King and Queen County | AY49: Tyler County | AZ49: Pierce County | BE49: Maricao Municipio | BH49: 01095 | BI49: Marshall County | BJ49: AL | BK49: Marshall County, AL
A50: WV | C50: Mobile County | F50: Montgomery County | G50: Sonoma County | H50: Phillips County | L50: Osceola County | M50: Early County | P50: Lake County | Q50: Marion County | R50: Jackson County | S50: Kiowa County | T50: Harrison County | U50: St. Landry Parish | Y50: Mackinac County | Z50: Morrison County | AA50: Montgomery County | AB50: Jasper County | AC50: Sweet Grass County | AD50: Johnson County | AI50: Schuyler County | AJ50: Iredell County | AK50: Traill County | AL50: Madison County | AM50: Mayes County | AO50: Northumberland County | AR50: Minnehaha County | AS50: Lauderdale County | AT50: Cooke County | AW50: King George County | AY50: Upshur County | AZ50: Polk County | BE50: Maunabo Municipio | BH50: 01097 | BI50: Mobile County | BJ50: AL | BK50: Mobile County, AL
A51: WI | C51: Monroe County | F51: Nevada County | G51: Stanislaus County | H51: Pitkin County | L51: Palm Beach County | M51: Echols County | P51: LaSalle County | Q51: Marshall County | R51: Jasper County | S51: Labette County | T51: Hart County | U51: St. Martin Parish | Y51: Macomb County | Z51: Mower County | AA51: Neshoba County | AB51: Jefferson County | AC51: Teton County | AD51: Kearney County | AI51: Seneca County | AJ51: Jackson County | AK51: Walsh County | AL51: Mahoning County | AM51: Murray County | AO51: Perry County | AR51: Moody County | AS51: Lawrence County | AT51: Coryell County | AW51: King William County | AY51: Wayne County | AZ51: Portage County | BE51: Mayaguez Municipio | BH51: 01099 | BI51: Monroe County | BJ51: AL | BK51: Monroe County, AL
A52: WY | C52: Montgomery County | F52: Newton County | G52: Sutter County | H52: Prowers County | L52: Pasco County | M52: Effingham County | P52: Lawrence County | Q52: Martin County | R52: Jefferson County | S52: Lane County | T52: Henderson County | U52: St. Mary Parish | Y52: Manistee County | Z52: Murray County | AA52: Newton County | AB52: Johnson County | AC52: Toole County | AD52: Keith County | AI52: Steuben County | AJ52: Johnston County | AK52: Ward County | AL52: Marion County | AM52: Muskogee County | AO52: Philadelphia County | AR52: Oglala Lakota County | AS52: Lewis County | AT52: Cottle County | AW52: Lancaster County | AY52: Webster County | AZ52: Price County | BE52: Moca Municipio | BH52: 01101 | BI52: Montgomery County | BJ52: AL | BK52: Montgomery County, AL
A53: AS | C53: Morgan County | F53: Ouachita County | G53: Tehama County | H53: Pueblo County | L53: Pinellas County | M53: Elbert County | P53: Lee County | Q53: Miami County | R53: Johnson County | S53: Leavenworth County | T53: Henry County | U53: St. Tammany Parish | Y53: Marquette County | Z53: Nicollet County | AA53: Noxubee County | AB53: Knox County | AC53: Treasure County | AD53: Keya Paha County | AI53: Suffolk County | AJ53: Jones County | AK53: Wells County | AL53: Medina County | AM53: Noble County | AO53: Pike County | AR53: Pennington County | AS53: Lincoln County | AT53: Crane County | AW53: Lee County | AY53: Wetzel County | AZ53: Racine County | BE53: Morovis Municipio | BH53: 01103 | BI53: Morgan County | BJ53: AL | BK53: Morgan County, AL
A54: GU | C54: Perry County | F54: Perry County | G54: Trinity County | H54: Rio Blanco County | L54: Polk County | M54: Emanuel County | P54: Livingston County | Q54: Monroe County | R54: Jones County | S54: Lincoln County | T54: Hickman County | U54: Tangipahoa Parish | Y54: Mason County | Z54: Nobles County | AA54: Oktibbeha County | AB54: Laclede County | AC54: Valley County | AD54: Kimball County | AI54: Sullivan County | AJ54: Lee County | AK54: Williams County | AL54: Meigs County | AM54: Nowata County | AO54: Potter County | AR54: Perkins County | AS54: Loudon County | AT54: Crockett County | AW54: Loudoun County | AY54: Wirt County | AZ54: Richland County | BE54: Naguabo Municipio | BH54: 01105 | BI54: Perry County | BJ54: AL | BK54: Perry County, AL
A55: MP | C55: Pickens County | F55: Phillips County | G55: Tulare County | H55: Rio Grande County | L55: Putnam County | M55: Evans County | P55: Logan County | Q55: Montgomery County | R55: Keokuk County | S55: Linn County | T55: Hopkins County | U55: Tensas Parish | Y55: Mecosta County | Z55: Norman County | AA55: Panola County | AB55: Lafayette County | AC55: Wheatland County | AD55: Knox County | AI55: Tioga County | AJ55: Lenoir County | AL55: Mercer County | AM55: Okfuskee County | AO55: Schuylkill County | AR55: Potter County | AS55: McMinn County | AT55: Crosby County | AW55: Louisa County | AY55: Wood County | AZ55: Rock County | BE55: Naranjito Municipio | BH55: 01107 | BI55: Pickens County | BJ55: AL | BK55: Pickens County, AL
A56: PR | C56: Pike County | F56: Pike County | G56: Tuolumne County | H56: Routt County | L56: St. Johns County | M56: Fannin County | P56: McDonough County | Q56: Morgan County | R56: Kossuth County | S56: Logan County | T56: Jackson County | U56: Terrebonne Parish | Y56: Menominee County | Z56: Olmsted County | AA56: Pearl River County | AB56: Lawrence County | AC56: Wibaux County | AD56: Lancaster County | AI56: Tompkins County | AJ56: Lincoln County | AL56: Miami County | AM56: Oklahoma County | AO56: Snyder County | AR56: Roberts County | AS56: McNairy County | AT56: Culberson County | AW56: Lunenburg County | AY56: Wyoming County | AZ56: Rusk County | BE56: Orocovis Municipio | BH56: 01109 | BI56: Pike County | BJ56: AL | BK56: Pike County, AL
A57: VI | C57: Randolph County | F57: Poinsett County | G57: Ventura County | H57: Saguache County | L57: St. Lucie County | M57: Fayette County | P57: McHenry County | Q57: Newton County | R57: Lee County | S57: Lyon County | T57: Jefferson County | U57: Union Parish | Y57: Midland County | Z57: Otter Tail County | AA57: Perry County | AB57: Lewis County | AC57: Yellowstone County | AD57: Lincoln County | AI57: Ulster County | AJ57: McDowell County | AL57: Monroe County | AM57: Okmulgee County | AO57: Somerset County | AR57: Sanborn County | AS57: Macon County | AT57: Dallam County | AW57: Madison County | AZ57: St. Croix County | BE57: Patillas Municipio | BH57: 01111 | BI57: Randolph County | BJ57: AL | BK57: Randolph County, AL
C58: Russell County | F58: Polk County | G58: Yolo County | H58: San Juan County | L58: Santa Rosa County | M58: Floyd County | P58: McLean County | Q58: Noble County | R58: Linn County | S58: McPherson County | T58: Jessamine County | U58: Vermilion Parish | Y58: Missaukee County | Z58: Pennington County | AA58: Pike County | AB58: Lincoln County | AD58: Logan County | AI58: Warren County | AJ58: Macon County | AL58: Montgomery County | AM58: Osage County | AO58: Sullivan County | AR58: Spink County | AS58: Madison County | AT58: Dallas County | AW58: Mathews County | AZ58: Sauk County | BE58: Penuelas Municipio | BH58: 01113 | BI58: Russell County | BJ58: AL | BK58: Russell County, AL
C59: St. Clair County | F59: Pope County | G59: Yuba County | H59: San Miguel County | L59: Sarasota County | M59: Forsyth County | P59: Macon County | Q59: Ohio County | R59: Louisa County | S59: Marion County | T59: Johnson County | U59: Vernon Parish | Y59: Monroe County | Z59: Pine County | AA59: Pontotoc County | AB59: Linn County | AD59: Loup County | AI59: Washington County | AJ59: Madison County | AL59: Morgan County | AM59: Ottawa County | AO59: Susquehanna County | AR59: Stanley County | AS59: Marion County | AT59: Dawson County | AW59: Mecklenburg County | AZ59: Sawyer County | BE59: Ponce Municipio | BH59: 01115 | BI59: St. Clair County | BJ59: AL | BK59: St. Clair County, AL
C60: Shelby County | F60: Prairie County | H60: Sedgwick County | L60: Seminole County | M60: Franklin County | P60: Macoupin County | Q60: Orange County | R60: Lucas County | S60: Marshall County | T60: Kenton County | U60: Washington Parish | Y60: Montcalm County | Z60: Pipestone County | AA60: Prentiss County | AB60: Livingston County | AD60: McPherson County | AI60: Wayne County | AJ60: Martin County | AL60: Morrow County | AM60: Pawnee County | AO60: Tioga County | AR60: Sully County | AS60: Marshall County | AT60: Deaf Smith County | AW60: Middlesex County | AZ60: Shawano County | BE60: Quebradillas Municipio | BH60: 01117 | BI60: Shelby County | BJ60: AL | BK60: Shelby County, AL
C61: Sumter County | F61: Pulaski County | H61: Summit County | L61: Sumter County | M61: Fulton County | P61: Madison County | Q61: Owen County | R61: Lyon County | S61: Meade County | T61: Knott County | U61: Webster Parish | Y61: Montmorency County | Z61: Polk County | AA61: Quitman County | AB61: McDonald County | AD61: Madison County | AI61: Westchester County | AJ61: Mecklenburg County | AL61: Muskingum County | AM61: Payne County | AO61: Union County | AR61: Todd County | AS61: Maury County | AT61: Delta County | AW61: Montgomery County | AZ61: Sheboygan County | BE61: Rincon Municipio | BH61: 01119 | BI61: Sumter County | BJ61: AL | BK61: Sumter County, AL
C62: Talladega County | F62: Randolph County | H62: Teller County | L62: Suwannee County | M62: Gilmer County | P62: Marion County | Q62: Parke County | R62: Madison County | S62: Miami County | T62: Knox County | U62: West Baton Rouge Parish | Y62: Muskegon County | Z62: Pope County | AA62: Rankin County | AB62: Macon County | AD62: Merrick County | AI62: Wyoming County | AJ62: Mitchell County | AL62: Noble County | AM62: Pittsburg County | AO62: Venango County | AR62: Tripp County | AS62: Meigs County | AT62: Denton County | AW62: Nelson County | AZ62: Taylor County | BE62: Rio Grande Municipio | BH62: 01121 | BI62: Talladega County | BJ62: AL | BK62: Talladega County, AL
C63: Tallapoosa County | F63: St. Francis County | H63: Washington County | L63: Taylor County | M63: Glascock County | P63: Marshall County | Q63: Perry County | R63: Mahaska County | S63: Mitchell County | T63: Larue County | U63: West Carroll Parish | Y63: Newaygo County | Z63: Ramsey County | AA63: Scott County | AB63: Madison County | AD63: Morrill County | AI63: Yates County | AJ63: Montgomery County | AL63: Ottawa County | AM63: Pontotoc County | AO63: Warren County | AR63: Turner County | AS63: Monroe County | AT63: DeWitt County | AW63: New Kent County | AZ63: Trempealeau County | BE63: Sabana Grande Municipio | BH63: 01123 | BI63: Tallapoosa County | BJ63: AL | BK63: Tallapoosa County, AL
C64: Tuscaloosa County | F64: Saline County | H64: Weld County | L64: Union County | M64: Glynn County | P64: Mason County | Q64: Pike County | R64: Marion County | S64: Montgomery County | T64: Laurel County | U64: West Feliciana Parish | Y64: Oakland County | Z64: Red Lake County | AA64: Sharkey County | AB64: Maries County | AD64: Nance County | AJ64: Moore County | AL64: Paulding County | AM64: Pottawatomie County | AO64: Washington County | AR64: Union County | AS64: Montgomery County | AT64: Dickens County | AW64: Northampton County | AZ64: Vernon County | BE64: Salinas Municipio | BH64: 01125 | BI64: Tuscaloosa County | BJ64: AL | BK64: Tuscaloosa County, AL
C65: Walker County | F65: Scott County | H65: Yuma County | L65: Volusia County | M65: Gordon County | P65: Massac County | Q65: Porter County | R65: Marshall County | S65: Morris County | T65: Lawrence County | U65: Winn Parish | Y65: Oceana County | Z65: Redwood County | AA65: Simpson County | AB65: Marion County | AD65: Nemaha County | AJ65: Nash County | AL65: Perry County | AM65: Pushmataha County | AO65: Wayne County | AR65: Walworth County | AS65: Moore County | AT65: Dimmit County | AW65: Northumberland County | AZ65: Vilas County | BE65: San German Municipio | BH65: 01127 | BI65: Walker County | BJ65: AL | BK65: Walker County, AL
C66: Washington County | F66: Searcy County | L66: Wakulla County | M66: Grady County | P66: Menard County | Q66: Posey County | R66: Mills County | S66: Morton County | T66: Lee County | Y66: Ogemaw County | Z66: Renville County | AA66: Smith County | AB66: Mercer County | AD66: Nuckolls County | AJ66: New Hanover County | AL66: Pickaway County | AM66: Roger Mills County | AO66: Westmoreland County | AR66: Yankton County | AS66: Morgan County | AT66: Donley County | AW66: Nottoway County | AZ66: Walworth County | BE66: San Juan Municipio | BH66: 01129 | BI66: Washington County | BJ66: AL | BK66: Washington County, AL
C67: Wilcox County | F67: Sebastian County | L67: Walton County | M67: Greene County | P67: Mercer County | Q67: Pulaski County | R67: Mitchell County | S67: Nemaha County | T67: Leslie County | Y67: Ontonagon County | Z67: Rice County | AA67: Stone County | AB67: Miller County | AD67: Otoe County | AJ67: Northampton County | AL67: Pike County | AM67: Rogers County | AO67: Wyoming County | AR67: Ziebach County | AS67: Obion County | AT67: Duval County | AW67: Orange County | AZ67: Washburn County | BE67: San Lorenzo Municipio | BH67: 01131 | BI67: Wilcox County | BJ67: AL | BK67: =_xlfn.TEXTJOIN(", ", TRUE, BI67,BJ67) -> Wilcox County, AL
C68: Winston County | F68: Sevier County | L68: Washington County | M68: Gwinnett County | P68: Monroe County | Q68: Putnam County | R68: Monona County | S68: Neosho County | T68: Letcher County | Y68: Osceola County | Z68: Rock County | AA68: Sunflower County | AB68: Mississippi County | AD68: Pawnee County | AJ68: Onslow County | AL68: Portage County | AM68: Seminole County | AO68: York County | AS68: Overton County | AT68: Eastland County | AW68: Page County | AZ68: Washington County | BE68: San Sebastian Municipio | BH68: 01133 | BI68: Winston County | BJ68: AL | BK68: Winston County, AL
F69: Sharp County | M69: Habersham County | P69: Montgomery County | Q69: Randolph County | R69: Monroe County | S69: Ness County | T69: Lewis County | Y69: Oscoda County | Z69: Roseau County | AA69: Tallahatchie County | AB69: Moniteau County | AD69: Perkins County | AJ69: Orange County | AL69: Preble County | AM69: Sequoyah County | AS69: Perry County | AT69: Ector County | AW69: Patrick County | AZ69: Waukesha County | BE69: Santa Isabel Municipio | BH69: 02013 | BI69: Aleutians East Borough | BJ69: AK | BK69: Aleutians East Borough, AK
F70: Stone County | M70: Hall County | P70: Morgan County | Q70: Ripley County | R70: Montgomery County | S70: Norton County | T70: Lincoln County | Y70: Otsego County | Z70: St. Louis County | AA70: Tate County | AB70: Monroe County | AD70: Phelps County | AJ70: Pamlico County | AL70: Putnam County | AM70: Stephens County | AS70: Pickett County | AT70: Edwards County | AW70: Pittsylvania County | AZ70: Waupaca County | BE70: Toa Alta Municipio | BH70: 02016 | BI70: Aleutians West Census Area | BJ70: AK | BK70: Aleutians West Census Area, AK
F71: Union County | M71: Hancock County | P71: Moultrie County | Q71: Rush County | R71: Muscatine County | S71: Osage County | T71: Livingston County | Y71: Ottawa County | Z71: Scott County | AA71: Tippah County | AB71: Montgomery County | AD71: Pierce County | AJ71: Pasquotank County | AL71: Richland County | AM71: Texas County | AS71: Polk County | AT71: Ellis County | AW71: Powhatan County | AZ71: Waushara County | BE71: Toa Baja Municipio | BH71: 02020 | BI71: Anchorage Municipality | BJ71: AK | BK71: Anchorage Municipality, AK
F72: Van Buren County | M72: Haralson County | P72: Ogle County | Q72: St. Joseph County | R72: O'Brien County | S72: Osborne County | T72: Logan County | Y72: Presque Isle County | Z72: Sherburne County | AA72: Tishomingo County | AB72: Morgan County | AD72: Platte County | AJ72: Pender County | AL72: Ross County | AM72: Tillman County | AS72: Putnam County | AT72: El Paso County | AW72: Prince Edward County | AZ72: Winnebago County | BE72: Trujillo Alto Municipio | BH72: 02050 | BI72: Bethel Census Area | BJ72: AK | BK72: Bethel Census Area, AK
F73: Washington County | M73: Harris County | P73: Peoria County | Q73: Scott County | R73: Osceola County | S73: Ottawa County | T73: Lyon County | Y73: Roscommon County | Z73: Sibley County | AA73: Tunica County | AB73: New Madrid County | AD73: Polk County | AJ73: Perquimans County | AL73: Sandusky County | AM73: Tulsa County | AS73: Rhea County | AT73: Erath County | AW73: Prince George County | AZ73: Wood County | BE73: Utuado Municipio | BH73: 02060 | BI73: Bristol Bay Borough | BJ73: AK | BK73: Bristol Bay Borough, AK
F74: White County | M74: Hart County | P74: Perry County | Q74: Shelby County | R74: Page County | S74: Pawnee County | T74: McCracken County | Y74: Saginaw County | Z74: Stearns County | AA74: Union County | AB74: Newton County | AD74: Red Willow County | AJ74: Person County | AL74: Scioto County | AM74: Wagoner County | AS74: Roane County | AT74: Falls County | AW74: Prince William County | BE74: Vega Alta Municipio | BH74: 02063 | BI74: Chugach Census Area | BJ74: AK | BK74: Chugach Census Area, AK
F75: Woodruff County | M75: Heard County | P75: Piatt County | Q75: Spencer County | R75: Palo Alto County | S75: Phillips County | T75: McCreary County | Y75: St. Clair County | Z75: Steele County | AA75: Walthall County | AB75: Nodaway County | AD75: Richardson County | AJ75: Pitt County | AL75: Seneca County | AM75: Washington County | AS75: Robertson County | AT75: Fannin County | AW75: Pulaski County | BE75: Vega Baja Municipio | BH75: 02066 | BI75: Copper River Census Area | BJ75: AK | BK75: Copper River Census Area, AK
F76: Yell County | M76: Henry County | P76: Pike County | Q76: Starke County | R76: Plymouth County | S76: Pottawatomie County | T76: McLean County | Y76: St. Joseph County | Z76: Stevens County | AA76: Warren County | AB76: Oregon County | AD76: Rock County | AJ76: Polk County | AL76: Shelby County | AM76: Washita County | AS76: Rutherford County | AT76: Fayette County | AW76: Rappahannock County | BE76: Vieques Municipio | BH76: 02068 | BI76: Denali Borough | BJ76: AK | BK76: Denali Borough, AK
M77: Houston County | P77: Pope County | Q77: Steuben County | R77: Pocahontas County | S77: Pratt County | T77: Madison County | Y77: Sanilac County | Z77: Swift County | AA77: Washington County | AB77: Osage County | AD77: Saline County | AJ77: Randolph County | AL77: Stark County | AM77: Woods County | AS77: Scott County | AT77: Fisher County | AW77: Richmond County | BE77: Villalba Municipio | BH77: 02070 | BI77: Dillingham Census Area | BJ77: AK | BK77: Dillingham Census Area, AK
M78: Irwin County | P78: Pulaski County | Q78: Sullivan County | R78: Polk County | S78: Rawlins County | T78: Magoffin County | Y78: Schoolcraft County | Z78: Todd County | AA78: Wayne County | AB78: Ozark County | AD78: Sarpy County | AJ78: Richmond County | AL78: Summit County | AM78: Woodward County | AS78: Sequatchie County | AT78: Floyd County | AW78: Roanoke County | BE78: Yabucoa Municipio | BH78: 02090 | BI78: Fairbanks North Star Borough | BJ78: AK | BK78: Fairbanks North Star Borough, AK
M79: Jackson County | P79: Putnam County | Q79: Switzerland County | R79: Pottawattamie County | S79: Reno County | T79: Marion County | Y79: Shiawassee County | Z79: Traverse County | AA79: Webster County | AB79: Pemiscot County | AD79: Saunders County | AJ79: Robeson County | AL79: Trumbull County | AS79: Sevier County | AT79: Foard County | AW79: Rockbridge County | BE79: Yauco Municipio | BH79: 02100 | BI79: Haines Borough | BJ79: AK | BK79: Haines Borough, AK
M80: Jasper County | P80: Randolph County | Q80: Tippecanoe County | R80: Poweshiek County | S80: Republic County | T80: Marshall County | Y80: Tuscola County | Z80: Wabasha County | AA80: Wilkinson County | AB80: Perry County | AD80: Scotts Bluff County | AJ80: Rockingham County | AL80: Tuscarawas County | AS80: Shelby County | AT80: Fort Bend County | AW80: Rockingham County | BH80: 02105 | BI80: Hoonah-Angoon Census Area | BJ80: AK | BK80: Hoonah-Angoon Census Area, AK
M81: Jeff Davis County | P81: Richland County | Q81: Tipton County | R81: Ringgold County | S81: Rice County | T81: Martin County | Y81: Van Buren County | Z81: Wadena County | AA81: Winston County | AB81: Pettis County | AD81: Seward County | AJ81: Rowan County | AL81: Union County | AS81: Smith County | AT81: Franklin County | AW81: Russell County | BH81: 02110 | BI81: Juneau City and Borough | BJ81: AK | BK81: Juneau City and Borough, AK
M82: Jefferson County | P82: Rock Island County | Q82: Union County | R82: Sac County | S82: Riley County | T82: Mason County | Y82: Washtenaw County | Z82: Waseca County | AA82: Yalobusha County | AB82: Phelps County | AD82: Sheridan County | AJ82: Rutherford County | AL82: Van Wert County | AS82: Stewart County | AT82: Freestone County | AW82: Scott County | BH82: 02122 | BI82: Kenai Peninsula Borough | BJ82: AK | BK82: Kenai Peninsula Borough, AK
M83: Jenkins County | P83: St. Clair County | Q83: Vanderburgh County | R83: Scott County | S83: Rooks County | T83: Meade County | Y83: Wayne County | Z83: Washington County | AA83: Yazoo County | AB83: Pike County | AD83: Sherman County | AJ83: Sampson County | AL83: Vinton County | AS83: Sullivan County | AT83: Frio County | AW83: Shenandoah County | BH83: 02130 | BI83: Ketchikan Gateway Borough | BJ83: AK | BK83: Ketchikan Gateway Borough, AK
M84: Johnson County | P84: Saline County | Q84: Vermillion County | R84: Shelby County | S84: Rush County | T84: Menifee County | Y84: Wexford County | Z84: Watonwan County | AB84: Platte County | AD84: Sioux County | AJ84: Scotland County | AL84: Warren County | AS84: Sumner County | AT84: Gaines County | AW84: Smyth County | BH84: 02150 | BI84: Kodiak Island Borough | BJ84: AK | BK84: Kodiak Island Borough, AK
M85: Jones County | P85: Sangamon County | Q85: Vigo County | R85: Sioux County | S85: Russell County | T85: Mercer County | Z85: Wilkin County | AB85: Polk County | AD85: Stanton County | AJ85: Stanly County | AL85: Washington County | AS85: Tipton County | AT85: Galveston County | AW85: Southampton County | BH85: 02158 | BI85: Kusilvak Census Area | BJ85: AK | BK85: Kusilvak Census Area, AK
M86: Lamar County | P86: Schuyler County | Q86: Wabash County | R86: Story County | S86: Saline County | T86: Metcalfe County | Z86: Winona County | AB86: Pulaski County | AD86: Thayer County | AJ86: Stokes County | AL86: Wayne County | AS86: Trousdale County | AT86: Garza County | AW86: Spotsylvania County | BH86: 02164 | BI86: Lake and Peninsula Borough | BJ86: AK | BK86: Lake and Peninsula Borough, AK
M87: Lanier County | P87: Scott County | Q87: Warren County | R87: Tama County | S87: Scott County | T87: Monroe County | Z87: Wright County | AB87: Putnam County | AD87: Thomas County | AJ87: Surry County | AL87: Williams County | AS87: Unicoi County | AT87: Gillespie County | AW87: Stafford County | BH87: 02170 | BI87: Matanuska-Susitna Borough | BJ87: AK | BK87: Matanuska-Susitna Borough, AK
M88: Laurens County | P88: Shelby County | Q88: Warrick County | R88: Taylor County | S88: Sedgwick County | T88: Montgomery County | Z88: Yellow Medicine County | AB88: Ralls County | AD88: Thurston County | AJ88: Swain County | AL88: Wood County | AS88: Union County | AT88: Glasscock County | AW88: Surry County | BH88: 02180 | BI88: Nome Census Area | BJ88: AK | BK88: Nome Census Area, AK
M89: Lee County | P89: Stark County | Q89: Washington County | R89: Union County | S89: Seward County | T89: Morgan County | AB89: Randolph County | AD89: Valley County | AJ89: Transylvania County | AL89: Wyandot County | AS89: Van Buren County | AT89: Goliad County | AW89: Sussex County | BH89: 02185 | BI89: North Slope Borough | BJ89: AK | BK89: North Slope Borough, AK
M90: Liberty County | P90: Stephenson County | Q90: Wayne County | R90: Van Buren County | S90: Shawnee County | T90: Muhlenberg County | AB90: Ray County | AD90: Washington County | AJ90: Tyrrell County | AS90: Warren County | AT90: Gonzales County | AW90: Tazewell County | BH90: 02188 | BI90: Northwest Arctic Borough | BJ90: AK | BK90: Northwest Arctic Borough, AK
M91: Lincoln County | P91: Tazewell County | Q91: Wells County | R91: Wapello County | S91: Sheridan County | T91: Nelson County | AB91: Reynolds County | AD91: Wayne County | AJ91: Union County | AS91: Washington County | AT91: Gray County | AW91: Warren County | BH91: 02195 | BI91: Petersburg Census Area | BJ91: AK | BK91: Petersburg Census Area, AK
M92: Long County | P92: Union County | Q92: White County | R92: Warren County | S92: Sherman County | T92: Nicholas County | AB92: Ripley County | AD92: Webster County | AJ92: Vance County | AS92: Wayne County | AT92: Grayson County | AW92: Washington County | BH92: 02198 | BI92: Prince of Wales-Hyder Census Area | BJ92: AK | BK92: Prince of Wales-Hyder Census Area, AK
M93: Lowndes County | P93: Vermilion County | Q93: Whitley County | R93: Washington County | S93: Smith County | T93: Ohio County | AB93: St. Charles County | AD93: Wheeler County | AJ93: Wake County | AS93: Weakley County | AT93: Gregg County | AW93: Westmoreland County | BH93: 02220 | BI93: Sitka City and Borough | BJ93: AK | BK93: Sitka City and Borough, AK
M94: Lumpkin County | P94: Wabash County | R94: Wayne County | S94: Stafford County | T94: Oldham County | AB94: St. Clair County | AD94: York County | AJ94: Warren County | AS94: White County | AT94: Grimes County | AW94: Wise County | BH94: 02230 | BI94: Skagway Municipality | BJ94: AK | BK94: Skagway Municipality, AK
M95: McDuffie County | P95: Warren County | R95: Webster County | S95: Stanton County | T95: Owen County | AB95: Ste. Genevieve County | AJ95: Washington County | AS95: Williamson County | AT95: Guadalupe County | AW95: Wythe County | BH95: 02240 | BI95: Southeast Fairbanks Census Area | BJ95: AK | BK95: Southeast Fairbanks Census Area, AK
M96: McIntosh County | P96: Washington County | R96: Winnebago County | S96: Stevens County | T96: Owsley County | AB96: St. Francois County | AJ96: Watauga County | AS96: Wilson County | AT96: Hale County | AW96: York County | BH96: 02275 | BI96: Wrangell City and Borough | BJ96: AK | BK96: Wrangell City and Borough, AK
M97: Macon County | P97: Wayne County | R97: Winneshiek County | S97: Sumner County | T97: Pendleton County | AB97: St. Louis County | AJ97: Wayne County | AT97: Hall County | AW97: Alexandria city | BH97: 02282 | BI97: Yakutat City and Borough | BJ97: AK | BK97: Yakutat City and Borough, AK
M98: Madison County | P98: White County | R98: Woodbury County | S98: Thomas County | T98: Perry County | AB98: Saline County | AJ98: Wilkes County | AT98: Hamilton County | AW98: Bristol city | BH98: 02290 | BI98: Yukon-Koyukuk Census Area | BJ98: AK | BK98: Yukon-Koyukuk Census Area, AK
M99: Marion County | P99: Whiteside County | R99: Worth County | S99: Trego County | T99: Pike County | AB99: Schuyler County | AJ99: Wilson County | AT99: Hansford County | AW99: Buena Vista city | BH99: 04001 | BI99: Apache County | BJ99: AZ | BK99: Apache County, AZ
M100: Meriwether County | P100: Will County | R100: Wright County | S100: Wabaunsee County | T100: Powell County | AB100: Scotland County | AJ100: Yadkin County | AT100: Hardeman County | AW100: Charlottesville city | BH100: 04003 | BI100: Cochise County | BJ100: AZ | BK100: Cochise County, AZ
M101: Miller County | P101: Williamson County | S101: Wallace County | T101: Pulaski County | AB101: Scott County | AJ101: Yancey County | AT101: Hardin County | AW101: Chesapeake city | BH101: 04005 | BI101: Coconino County | BJ101: AZ | BK101: Coconino County, AZ
M102: Mitchell County | P102: Winnebago County | S102: Washington County | T102: Robertson County | AB102: Shannon County | AT102: Harris County | AW102: Colonial Heights city | BH102: 04007 | BI102: Gila County | BJ102: AZ | BK102: Gila County, AZ
M103: Monroe County | P103: Woodford County | S103: Wichita County | T103: Rockcastle County | AB103: Shelby County | AT103: Harrison County | AW103: Covington city | BH103: 04009 | BI103: Graham County | BJ103: AZ | BK103: Graham County, AZ
M104: Montgomery County | S104: Wilson County | T104: Rowan County | AB104: Stoddard County | AT104: Hartley County | AW104: Danville city | BH104: 04011 | BI104: Greenlee County | BJ104: AZ | BK104: Greenlee County, AZ
M105: Morgan County | S105: Woodson County | T105: Russell County | AB105: Stone County | AT105: Haskell County | AW105: Emporia city | BH105: 04012 | BI105: La Paz County | BJ105: AZ | BK105: La Paz County, AZ
M106: Murray County | S106: Wyandotte County | T106: Scott County | AB106: Sullivan County | AT106: Hays County | AW106: Fairfax city | BH106: 04013 | BI106: Maricopa County | BJ106: AZ | BK106: Maricopa County, AZ
M107: Muscogee County | T107: Shelby County | AB107: Taney County | AT107: Hemphill County | AW107: Falls Church city | BH107: 04015 | BI107: Mohave County | BJ107: AZ | BK107: Mohave County, AZ
M108: Newton County | T108: Simpson County | AB108: Texas County | AT108: Henderson County | AW108: Franklin city | BH108: 04017 | BI108: Navajo County | BJ108: AZ | BK108: Navajo County, AZ
M109: Oconee County | T109: Spencer County | AB109: Vernon County | AT109: Hidalgo County | AW109: Fredericksburg city | BH109: 04019 | BI109: Pima County | BJ109: AZ | BK109: Pima County, AZ
M110: Oglethorpe County | T110: Taylor County | AB110: Warren County | AT110: Hill County | AW110: Galax city | BH110: 04021 | BI110: Pinal County | BJ110: AZ | BK110: Pinal County, AZ
M111: Paulding County | T111: Todd County | AB111: Washington County | AT111: Hockley County | AW111: Hampton city | BH111: 04023 | BI111: Santa Cruz County | BJ111: AZ | BK111: Santa Cruz County, AZ
M112: Peach County | T112: Trigg County | AB112: Wayne County | AT112: Hood County | AW112: Harrisonburg city | BH112: 04025 | BI112: Yavapai County | BJ112: AZ | BK112: Yavapai County, AZ
M113: Pickens County | T113: Trimble County | AB113: Webster County | AT113: Hopkins County | AW113: Hopewell city | BH113: 04027 | BI113: Yuma County | BJ113: AZ | BK113: Yuma County, AZ
M114: Pierce County | T114: Union County | AB114: Worth County | AT114: Houston County | AW114: Lexington city | BH114: 05001 | BI114: Arkansas County | BJ114: AR | BK114: Arkansas County, AR
M115: Pike County | T115: Warren County | AB115: Wright County | AT115: Howard County | AW115: Lynchburg city | BH115: 05003 | BI115: Ashley County | BJ115: AR | BK115: Ashley County, AR
M116: Polk County | T116: Washington County | AB116: St. Louis city | AT116: Hudspeth County | AW116: Manassas city | BH116: 05005 | BI116: Baxter County | BJ116: AR | BK116: Baxter County, AR
M117: Pulaski County | T117: Wayne County | AT117: Hunt County | AW117: Manassas Park city | BH117: 05007 | BI117: Benton County | BJ117: AR | BK117: Benton County, AR
M118: Putnam County | T118: Webster County | AT118: Hutchinson County | AW118: Martinsville city | BH118: 05009 | BI118: Boone County | BJ118: AR | BK118: Boone County, AR
M119: Quitman County | T119: Whitley County | AT119: Irion County | AW119: Newport News city | BH119: 05011 | BI119: Bradley County | BJ119: AR | BK119: Bradley County, AR
M120: Rabun County | T120: Wolfe County | AT120: Jack County | AW120: Norfolk city | BH120: 05013 | BI120: Calhoun County | BJ120: AR | BK120: Calhoun County, AR
M121: Randolph County | T121: Woodford County | AT121: Jackson County | AW121: Norton city | BH121: 05015 | BI121: Carroll County | BJ121: AR | BK121: Carroll County, AR
M122: Richmond County | AT122: Jasper County | AW122: Petersburg city | BH122: 05017 | BI122: Chicot County | BJ122: AR | BK122: Chicot County, AR
M123: Rockdale County | AT123: Jeff Davis County | AW123: Poquoson city | BH123: 05019 | BI123: Clark County | BJ123: AR | BK123: Clark County, AR
M124: Schley County | AT124: Jefferson County | AW124: Portsmouth city | BH124: 05021 | BI124: Clay County | BJ124: AR | BK124: Clay County, AR
M125: Screven County | AT125: Jim Hogg County | AW125: Radford city | BH125: 05023 | BI125: Cleburne County | BJ125: AR | BK125: Cleburne County, AR
M126: Seminole County | AT126: Jim Wells County | AW126: Richmond city | BH126: 05025 | BI126: Cleveland County | BJ126: AR | BK126: Cleveland County, AR
M127: Spalding County | AT127: Johnson County | AW127: Roanoke city | BH127: 05027 | BI127: Columbia County | BJ127: AR | BK127: Columbia County, AR
M128: Stephens County | AT128: Jones County | AW128: Salem city | BH128: 05029 | BI128: Conway County | BJ128: AR | BK128: Conway County, AR
M129: Stewart County | AT129: Karnes County | AW129: Staunton city | BH129: 05031 | BI129: Craighead County | BJ129: AR | BK129: Craighead County, AR
M130: Sumter County | AT130: Kaufman County | AW130: Suffolk city | BH130: 05033 | BI130: Crawford County | BJ130: AR | BK130: Crawford County, AR
M131: Talbot County | AT131: Kendall County | AW131: Virginia Beach city | BH131: 05035 | BI131: Crittenden County | BJ131: AR | BK131: =_xlfn.TEXTJOIN(", ", TRUE, BI131,BJ131) -> Crittenden County, AR
M132: Taliaferro County | AT132: Kenedy County | AW132: Waynesboro city | BH132: 05037 | BI132: Cross County | BJ132: AR | BK132: Cross County, AR
M133: Tattnall County | AT133: Kent County | AW133: Williamsburg city | BH133: 05039 | BI133: Dallas County | BJ133: AR | BK133: Dallas County, AR
M134: Taylor County | AT134: Kerr County | AW134: Winchester city | BH134: 05041 | BI134: Desha County | BJ134: AR | BK134: Desha County, AR
M135: Telfair County | AT135: Kimble County | BH135: 05043 | BI135: Drew County | BJ135: AR | BK135: Drew County, AR
M136: Terrell County | AT136: King County | BH136: 05045 | BI136: Faulkner County | BJ136: AR | BK136: Faulkner County, AR
M137: Thomas County | AT137: Kinney County | BH137: 05047 | BI137: Franklin County | BJ137: AR | BK137: Franklin County, AR
M138: Tift County | AT138: Kleberg County | BH138: 05049 | BI138: Fulton County | BJ138: AR | BK138: Fulton County, AR
M139: Toombs County | AT139: Knox County | BH139: 05051 | BI139: Garland County | BJ139: AR | BK139: Garland County, AR
M140: Towns County | AT140: Lamar County | BH140: 05053 | BI140: Grant County | BJ140: AR | BK140: Grant County, AR
M141: Treutlen County | AT141: Lamb County | BH141: 05055 | BI141: Greene County | BJ141: AR | BK141: Greene County, AR
M142: Troup County | AT142: Lampasas County | BH142: 05057 | BI142: Hempstead County | BJ142: AR | BK142: Hempstead County, AR
M143: Turner County | AT143: La Salle County | BH143: 05059 | BI143: Hot Spring County | BJ143: AR | BK143: Hot Spring County, AR
M144: Twiggs County | AT144: Lavaca County | BH144: 05061 | BI144: Howard County | BJ144: AR | BK144: Howard County, AR
M145: Union County | AT145: Lee County | BH145: 05063 | BI145: Independence County | BJ145: AR | BK145: Independence County, AR
M146: Upson County | AT146: Leon County | BH146: 05065 | BI146: Izard County | BJ146: AR | BK146: Izard County, AR
M147: Walker County | AT147: Liberty County | BH147: 05067 | BI147: Jackson County | BJ147: AR | BK147: Jackson County, AR
M148: Walton County | AT148: Limestone County | BH148: 05069 | BI148: Jefferson County | BJ148: AR | BK148: Jefferson County, AR
M149: Ware County | AT149: Lipscomb County | BH149: 05071 | BI149: Johnson County | BJ149: AR | BK149: Johnson County, AR
M150: Warren County | AT150: Live Oak County | BH150: 05073 | BI150: Lafayette County | BJ150: AR | BK150: Lafayette County, AR
M151: Washington County | AT151: Llano County | BH151: 05075 | BI151: Lawrence County | BJ151: AR | BK151: Lawrence County, AR
M152: Wayne County | AT152: Loving County | BH152: 05077 | BI152: Lee County | BJ152: AR | BK152: Lee County, AR
M153: Webster County | AT153: Lubbock County | BH153: 05079 | BI153: Lincoln County | BJ153: AR | BK153: Lincoln County, AR
M154: Wheeler County | AT154: Lynn County | BH154: 05081 | BI154: Little River County | BJ154: AR | BK154: Little River County, AR
M155: White County | AT155: McCulloch County | BH155: 05083 | BI155: Logan County | BJ155: AR | BK155: Logan County, AR
M156: Whitfield County | AT156: McLennan County | BH156: 05085 | BI156: Lonoke County | BJ156: AR | BK156: Lonoke County, AR
M157: Wilcox County | AT157: McMullen County | BH157: 05087 | BI157: Madison County | BJ157: AR | BK157: Madison County, AR
M158: Wilkes County | AT158: Madison County | BH158: 05089 | BI158: Marion County | BJ158: AR | BK158: Marion County, AR
M159: Wilkinson County | AT159: Marion County | BH159: 05091 | BI159: Miller County | BJ159: AR | BK159: Miller County, AR
M160: Worth County | AT160: Martin County | BH160: 05093 | BI160: Mississippi County | BJ160: AR | BK160: Mississippi County, AR
AT161: Mason County | BH161: 05095 | BI161: Monroe County | BJ161: AR | BK161: Monroe County, AR
AT162: Matagorda County | BH162: 05097 | BI162: Montgomery County | BJ162: AR | BK162: Montgomery County, AR
AT163: Maverick County | BH163: 05099 | BI163: Nevada County | BJ163: AR | BK163: Nevada County, AR
AT164: Medina County | BH164: 05101 | BI164: Newton County | BJ164: AR | BK164: Newton County, AR
AT165: Menard County | BH165: 05103 | BI165: Ouachita County | BJ165: AR | BK165: Ouachita County, AR
AT166: Midland County | BH166: 05105 | BI166: Perry County | BJ166: AR | BK166: Perry County, AR
AT167: Milam County | BH167: 05107 | BI167: Phillips County | BJ167: AR | BK167: Phillips County, AR
AT168: Mills County | BH168: 05109 | BI168: Pike County | BJ168: AR | BK168: Pike County, AR
AT169: Mitchell County | BH169: 05111 | BI169: Poinsett County | BJ169: AR | BK169: Poinsett County, AR
AT170: Montague County | BH170: 05113 | BI170: Polk County | BJ170: AR | BK170: Polk County, AR
AT171: Montgomery County | BH171: 05115 | BI171: Pope County | BJ171: AR | BK171: Pope County, AR
AT172: Moore County | BH172: 05117 | BI172: Prairie County | BJ172: AR | BK172: Prairie County, AR
AT173: Morris County | BH173: 05119 | BI173: Pulaski County | BJ173: AR | BK173: Pulaski County, AR
AT174: Motley County | BH174: 05121 | BI174: Randolph County | BJ174: AR | BK174: Randolph County, AR
AT175: Nacogdoches County | BH175: 05123 | BI175: St. Francis County | BJ175: AR | BK175: St. Francis County, AR
AT176: Navarro County | BH176: 05125 | BI176: Saline County | BJ176: AR | BK176: Saline County, AR
AT177: Newton County | BH177: 05127 | BI177: Scott County | BJ177: AR | BK177: Scott County, AR
AT178: Nolan County | BH178: 05129 | BI178: Searcy County | BJ178: AR | BK178: Searcy County, AR
AT179: Nueces County | BH179: 05131 | BI179: Sebastian County | BJ179: AR | BK179: Sebastian County, AR
AT180: Ochiltree County | BH180: 05133 | BI180: Sevier County | BJ180: AR | BK180: Sevier County, AR
AT181: Oldham County | BH181: 05135 | BI181: Sharp County | BJ181: AR | BK181: Sharp County, AR
AT182: Orange County | BH182: 05137 | BI182: Stone County | BJ182: AR | BK182: Stone County, AR
AT183: Palo Pinto County | BH183: 05139 | BI183: Union County | BJ183: AR | BK183: Union County, AR
AT184: Panola County | BH184: 05141 | BI184: Van Buren County | BJ184: AR | BK184: Van Buren County, AR
AT185: Parker County | BH185: 05143 | BI185: Washington County | BJ185: AR | BK185: Washington County, AR
AT186: Parmer County | BH186: 05145 | BI186: White County | BJ186: AR | BK186: White County, AR
AT187: Pecos County | BH187: 05147 | BI187: Woodruff County | BJ187: AR | BK187: Woodruff County, AR
AT188: Polk County | BH188: 05149 | BI188: Yell County | BJ188: AR | BK188: Yell County, AR
AT189: Potter County | BH189: 06001 | BI189: Alameda County | BJ189: CA | BK189: Alameda County, CA
AT190: Presidio County | BH190: 06003 | BI190: Alpine County | BJ190: CA | BK190: Alpine County, CA
AT191: Rains County | BH191: 06005 | BI191: Amador County | BJ191: CA | BK191: Amador County, CA
AT192: Randall County | BH192: 06007 | BI192: Butte County | BJ192: CA | BK192: Butte County, CA
AT193: Reagan County | BH193: 06009 | BI193: Calaveras County | BJ193: CA | BK193: Calaveras County, CA
AT194: Real County | BH194: 06011 | BI194: Colusa County | BJ194: CA | BK194: Colusa County, CA
AT195: Red River County | BH195: 06013 | BI195: Contra Costa County | BJ195: CA | BK195: =_xlfn.TEXTJOIN(", ", TRUE, BI195,BJ195) -> Contra Costa County, CA
AT196: Reeves County | BH196: 06015 | BI196: Del Norte County | BJ196: CA | BK196: Del Norte County, CA
AT197: Refugio County | BH197: 06017 | BI197: El Dorado County | BJ197: CA | BK197: El Dorado County, CA
AT198: Roberts County | BH198: 06019 | BI198: Fresno County | BJ198: CA | BK198: Fresno County, CA
AT199: Robertson County | BH199: 06021 | BI199: Glenn County | BJ199: CA | BK199: Glenn County, CA
AT200: Rockwall County | BH200: 06023 | BI200: Humboldt County | BJ200: CA | BK200: Humboldt County, CA
... 925 more rows

Sheet Data Validation_Will Hide (hidden)
A1: Progress | B1: All Classes | C1: Upgrade | D1: Old Fuel | E1: Reporting Date Quarters | F1: Select Status | G1: State | H1: Abbreviation | I1: Applicant Self-Cert Status | J1: Electrician Certification | K1: Waiver | L1: Types of BESS | M1: Amendments | N1: Quarterly | O1: Biannually | P1: Bus Model Year | Q1: Is this infrastructure BABA Complaint? | R1: Remaining Years of Life
A2: N/A | B2: Class 3 | C2: Electric | D2: Diesel | E2: Please select reporting period. | F2: N/A | G2: Alaska | H2: AK | I2: Yes - Title I | J2: Yes - Certification from EVITP | K2: No - Infrastructure meets all BABA requirements | L2: Lithium-Ion | M2: Number of CNG Buses | N2: Please select reporting quarter. | O2: Jan. to Jun. 2024 | P2: 1980 | Q2: Yes - This infrastructure is BABA compliant | R2: 1
A3: Not Yet Started | B3: Class 4 | C3: CNG | D3: Gasoline | E3: Jan. to Jun. 2024 | F3: Not yet started | G3: Alabama | H3: AL | I3: Yes - Large SD with 80% Title I | J3: Yes - Certificate from a registered apprenticeship program | K3: Yes - EPA's De Minimis Waiver | L3: Lead-Acid | M3: Number of Propane Buses | N3: Oct. to Dec. 2023 | O3: Jul. to Dec. 2024 | P3: 1981 | Q3: A waiver is being used to fulfill BABA compliance | R3: 2
A4: In Progress | B4: Class 5 | C4: Propane | D4: Propane | E4: Jul. to Dec. 2024 | F4: In-Progress | G4: Arkansas | H4: AR | I4: Yes - Large SD with sub-group of Title I | K4: Yes - EPA's Small Project Waiver | L4: Flow | M4: Number of Electric Buses | N4: Jan. to Mar. 2024 | O4: Jan. to Jun. 2025 | P4: 1982 | R4: 3
A5: Completed | B5: Class 6 | D5: CNG | E5: Jan. to Jun. 2025 | F5: Completed | G5: American Samoa | H5: AS | I5: Not Applicable | K5: Yes - Project-Level Waiver | L5: Flywheels | M5: Number of AC Level 2 Chargers | N5: Apr. to Jun. 2024 | O5: Jul. to Dec. 2025 | P5: 1983 | Q5: BABA Compliance | R5: 4
B6: Class 7 | E6: Jul. to Dec. 2025 | G6: Arizona | H6: AZ | K6: Yes - EPA's Pacific Island Territories General Applicability Waiver | M6: Number of DC Level 3 Chargers | N6: Jul. to Sep. 2024 | O6: Jan. to Jun. 2026 | P6: 1984 | Q6: Yes - This Infrastructure is BABA Compliant | R6: 5
A7: Yes | B7: Class 8 | E7: Jan. to Jun. 2026 | F7: Select Reporting Period | G7: California | H7: CA | K7: Yes - EPA's EV Charger Waiver (expired July 2024) | M7: EPA Funds for CNG Buses | N7: Oct. to Dec. 2024 | O7: Jul. to Dec. 2026 | P7: 1985 | Q7: No | R7: 6
A8: No | E8: Jul. to Dec. 2026 | F8: N/A | G8: Colorado | H8: CO | M8: EPA Funds for Propane Buses | N8: Jan. to Mar. 2025 | O8: Jan. to Jun. 2027 | P8: 1986 | Q8: NA | R8: 7
A9: N/A | F9: Jan. to Jun. 2024 | G9: Connecticut | H9: CT | M9: EPA Funds for Electric Buses | N9: Apr. to Jun. 2025 | O9: Jul. to Dec. 2027 | P9: 1987 | R9: 8
A10: (Select Year) | F10: Jul. to Dec. 2024 | G10: District of Columbia | H10: DC | M10: EPA Funds for AC Level 2 Chargers | N10: Jul. to Sep. 2025 | P10: 1988 | R10: 9
A11: Year 1 Update | F11: Jan. to Jun. 2025 | G11: Delaware | H11: DE | M11: EPA Funds for DC Level 3 Chargers | N11: Oct. to Dec. 2025 | P11: 1989 | R11: 10
A12: Year 2 Update | F12: Jul. to Dec. 2025 | G12: Florida | H12: FL | M12: Other Changes | N12: Jan. to Mar. 2026 | P12: 1990 | R12: 11
A13: Year 3 Update | F13: Jan. to Jun. 2026 | G13: Georgia | H13: GA | N13: Apr. to Jun. 2026 | P13: 1991 | R13: 12
A14: Year 4 Update | F14: Jul. to Dec. 2026 | G14: Guam | H14: GU | N14: Jul. to Sep. 2026 | P14: 1992 | R14: 13
A15: N/A | G15: Hawaii | H15: HI | N15: Oct. to Dec. 2026 | P15: 1993 | R15: 14
A16: CSB Grant FY2023 | G16: Iowa | H16: IA | P16: 1994 | R16: 15
A17: CSB Grant FY2024 | G17: Idaho | H17: ID | P17: 1995 | R17: 16
A18: CSB Grant FY2025 | G18: Illinois | H18: IL | P18: 1996 | R18: 17
A19: CSB Grant FY2026 | G19: Indiana | H19: IN | P19: 1997 | R19: 18
A20: CSB Grant FY2027 | G20: Kansas | H20: KS | P20: 1998 | R20: 19
A21: CSB Grant FY2028 | G21: Kentucky | H21: KY | P21: 1999 | R21: 20
A22: CSB Grant FY2029 | G22: Louisiana | H22: LA | P22: 2000 | R22: 21
A23: CSB Grant FY2030 | G23: Massachusetts | H23: MA | P23: 2001 | R23: 22
G24: Maryland | H24: MD | P24: 2002 | R24: 23
G25: Maine | H25: ME | P25: 2003 | R25: 24
G26: Michigan | H26: MI | P26: 2004 | R26: 25
G27: Minnesota | H27: MN | P27: 2005 | R27: 26
G28: Missouri | H28: MO | P28: 2006 | R28: 27
G29: Commonwealth of the Northern Mariana Islands | H29: MP | P29: 2007 | R29: 28
G30: Mississippi | H30: MS | P30: 2008 | R30: 29
G31: Montana | H31: MT | P31: 2009 | R31: 30
G32: North Carolina | H32: NC | P32: 2010 | R32: 31
G33: North Dakota | H33: ND | P33: 2011 | R33: 32
G34: Nebraska | H34: NE | P34: 2012 | R34: 33
G35: New Hampshire | H35: NH | P35: 2013 | R35: 34
G36: New Jersey | H36: NJ | P36: 2014 | R36: 35
G37: New Mexico | H37: NM | P37: 2015
G38: Nevada | H38: NV | P38: 2016
G39: New York | H39: NY | P39: 2017
G40: Ohio | H40: OH | P40: 2018
G41: Oklahoma | H41: OK | P41: 2019
G42: Oregon | H42: OR | P42: 2020
G43: Pennsylvania | H43: PA | P43: 2021
G44: Puerto Rico | H44: PR | P44: 2022
G45: Rhode Island | H45: RI | P45: 2023
G46: South Carolina | H46: SC | P46: 2024
G47: South Dakota | H47: SD | P47: 2025
G48: Tennessee | H48: TN | P48: 2026
G49: Texas | H49: TX | P49: 2027
G50: Utah | H50: UT | P50: 2028
G51: Virginia | H51: VA | P51: 2029
G52: United States Virgin Islands | H52: VI | P52: 2030
G53: Vermont | H53: VT
G54: Washington | H54: WA
G55: Wisconsin | H55: WI
G56: West Virginia | H56: WV
G57: Wyoming | H57: WY
